BodyName,ServiceAreaCategorisation,ServiceDivisionCategorisation,ExpensesType,Date,TransactionNumber,Amount,CapitalorRevenue,SupplierName,MerchantCategory
Peterborough City Council,Children's & Safeguarding,Child Health,Services,01/08/2018,30183435,12931.66,Revenue,Vivacity Culture and Leisure,Purchased Social Care Services
Peterborough City Council,Corporate Items,Corporate Services,Agency Staff,01/08/2018,30185740,12720.00,Revenue,Penna Plc,External Temporary Staff
Peterborough City Council,Corporate Items,Corporate Services,Agency Staff,01/08/2018,30185745,15540.00,Revenue,Penna Plc,External Temporary Staff
Peterborough City Council,Financial Services,Finance,Services,01/08/2018,30185746,14640.00,Revenue,Penna Plc,Consultants Fees
Peterborough City Council,Financial Services,Finance,Agency Staff,01/08/2018,30185747,16012.50,Revenue,Penna Plc,External Temporary Staff
Peterborough City Council,Corporate Items,Corporate Services,Agency Staff,01/08/2018,30185749,1036.00,Revenue,Penna Plc,External Temporary Staff
Peterborough City Council,Marketing & Communications,Marketing & Communications,Services,01/08/2018,30185754,772.00,Revenue,XL Circondare Ltd t/a  XL Press,Printing
Peterborough City Council,Regulatory Services,Regulatory Services,Agency Staff,01/08/2018,30185812,1394.53,Revenue,Reed Specialist Recruitment Limited,External Temporary Staff
Peterborough City Council,Legal Services,Legal Services,Agency Staff,01/08/2018,30185858,517.00,Revenue,Venn Group Ltd,External Temporary Staff
Peterborough City Council,Legal Services,Legal Services,Agency Staff,01/08/2018,30185862,643.80,Revenue,Venn Group Ltd,External Temporary Staff
Peterborough City Council,Legal Services,Legal Services,Agency Staff,01/08/2018,30185865,1008.14,Revenue,Venn Group Ltd,External Temporary Staff
Peterborough City Council,"Waste, Cleansing and Open Spaces",Waste & Operational Svs Mgmt,Cleaning & Domestic Supplies,01/08/2018,30185883,680.00,Revenue,Sulo MGB Ltd,Refuse Collection
Peterborough City Council,Financial Services,Finance,Interview & Training Expenses,01/08/2018,30185884,2500.00,Revenue,CIPFA Business Ltd,Training
Peterborough City Council,"Waste, Cleansing and Open Spaces",Waste & Operational Svs Mgmt,Third Party Payments,01/08/2018,30185885,1110.00,Revenue,Sulo MGB Ltd,Third Party Payments - Contract
Peterborough City Council,Peterborough Highway Services,Network and Traffic Management,Members Allowances,01/08/2018,30185919,667.41,Revenue,British Telecom PLC,Telephones
Peterborough City Council,Education,Special Educational Needs / Inclusion,Services,01/08/2018,30185936,2974.00,Revenue,The Guide Dogs for the Blind Association,Hired Services
Peterborough City Council,Education,Special Educational Needs / Inclusion,Services,01/08/2018,30185938,4225.00,Revenue,The Guide Dogs for the Blind Association,Hired Services
Peterborough City Council,Peterborough Highway Services,Network and Traffic Management,Services,01/08/2018,30185950,546.00,Revenue,Johnston Press Midlands Division,Advertising
Peterborough City Council,Education,Special Educational Needs / Inclusion,Agency Staff,01/08/2018,30185965,15827.46,Revenue,Lincolnshire County Council,External Temporary Staff
Peterborough City Council,Service Director Environment & Economy,Service Director,Agency Staff,01/08/2018,30185972,3599.00,Revenue,Central Management Solutions Ltd,External Temporary Staff
Peterborough City Council,Westcombe Engineering,Westcombe Engineering,"Tools, Equipment, Furniture & Materials",01/08/2018,30185999,7413.06,Revenue,RMS Engineers LTD,Equipment Maintenance
Peterborough City Council,Communities,Targeted Youth Service,Transport Costs,01/08/2018,30186000,4185.00,Revenue,Stagecoach in Peterborough,Public Transport
Peterborough City Council,Legal Services,Legal Services,Agency Staff,01/08/2018,30186008,2062.50,Revenue,Venn Group Ltd,External Temporary Staff
Peterborough City Council,Adults,Independent Sector Placements,Services,01/08/2018,30186013,3743.92,Revenue,Voyage,Home Care
Peterborough City Council,Adults,Independent Sector Placements,Services,01/08/2018,30186014,4925.36,Revenue,Voyage,Home Care
Peterborough City Council,Adults,Independent Sector Placements,Services,01/08/2018,30186015,4869.20,Revenue,Voyage,Residential Care
Peterborough City Council,Adults,Independent Sector Placements,Services,01/08/2018,30186016,5354.88,Revenue,Voyage,Residential Care
Peterborough City Council,Adults,Day opportunities - Older People,Agency Staff,01/08/2018,30186019,1221.00,Revenue,Medicare First Ltd,External Temporary Staff
Peterborough City Council,Constitutional Services,Democratic Services,Services,01/08/2018,30186027,585.00,Revenue,Dods Parliamentary Communications Ltd,Conferences/Events
Peterborough City Council,Adults,Home Services Delivery Model,Third Party Payments,01/08/2018,30186028,44166.66,Revenue,Axiom Housing Association Ltd,Grant-Third Party
Peterborough City Council,Development and Construction,Planning Compliance,Agency Staff,01/08/2018,30186029,3351.30,Revenue,Park Avenue Recruitment Limited,External Temporary Staff
Peterborough City Council,Legal Services,Legal Services,Agency Staff,01/08/2018,30186091,773.69,Revenue,Venn Group Ltd,External Temporary Staff
Peterborough City Council,Adults,Independent Sector Placements,Services,01/08/2018,30186119,6966.72,Revenue,Autism Care (UK) Ltd,Residential Care
Peterborough City Council,Constitutional Services,Democratic Services,Services,01/08/2018,30186137,1089.00,Revenue,Bull & Co Ltd,Hired Services
Peterborough City Council,"Cemeteries, Cremation & Registrars",Bereavement Service,Repair & Maintenance of Buildings,01/08/2018,30186147,500.00,Revenue,Chris Groome Decorating Ltd,Premises Maintenance
Peterborough City Council,Corporate,Corporate,Non Revenue,01/08/2018,30186557,9486.04,Capital,A W Morley T/A Morley Building Services,Grant Payment
Peterborough City Council,Corporate,Corporate,Non Revenue,01/08/2018,30186560,8116.50,Capital,Gaswise Services Ltd,Grant Payment
Peterborough City Council,Corporate,Corporate,Non Revenue,01/08/2018,30186561,585.00,Capital,A W Morley T/A Morley Building Services,Grant Payment
Peterborough City Council,Corporate,Corporate,Non Revenue,01/08/2018,30186562,26086.96,Capital,A W Morley T/A Morley Building Services,Grant Payment
Peterborough City Council,Corporate Property,Office Accomodation,Cleaning & Domestic Supplies,01/08/2018,30186618,1477.28,Revenue,Beebys Ltd,Cleaning
Peterborough City Council,Commissioning and Commercial Operations,Clare Lodge,Agency Staff,01/08/2018,30186647,1056.00,Revenue,Wrixon Care Services,External Temporary Staff
Peterborough City Council,Commissioning and Commercial Operations,Clare Lodge,Agency Staff,01/08/2018,30186653,912.00,Revenue,Wrixon Care Services,External Temporary Staff
Peterborough City Council,Commissioning and Commercial Operations,Clare Lodge,Agency Staff,01/08/2018,30186656,1456.00,Revenue,Wrixon Care Services,External Temporary Staff
Peterborough City Council,Commissioning and Commercial Operations,Clare Lodge,Agency Staff,01/08/2018,30186657,1872.00,Revenue,Wrixon Care Services,External Temporary Staff
Peterborough City Council,Commissioning and Commercial Operations,Clare Lodge,Agency Staff,01/08/2018,30186658,960.00,Revenue,Wrixon Care Services,External Temporary Staff
Peterborough City Council,Commissioning and Commercial Operations,Clare Lodge,Agency Staff,01/08/2018,30186659,1832.00,Revenue,Wrixon Care Services,External Temporary Staff
Peterborough City Council,Commissioning and Commercial Operations,Clare Lodge,Agency Staff,01/08/2018,30186660,1456.00,Revenue,Wrixon Care Services,External Temporary Staff
Peterborough City Council,Adults,Independent Sector Placements,Services,01/08/2018,30186728,1821.88,Revenue,Athena (Ashlynn Grange),Residential Care
Peterborough City Council,Adults,Independent Sector Placements,Services,01/08/2018,30186729,1737.96,Revenue,Athena (Ashlynn Grange),Residential Care
Peterborough City Council,Adults,Independent Sector Placements,Services,01/08/2018,30186730,1785.96,Revenue,Athena (Ashlynn Grange),Residential Care
Peterborough City Council,Adults,Independent Sector Placements,Services,01/08/2018,30186734,1703.36,Revenue,Athena (Ashlynn Grange),Residential Care
Peterborough City Council,Adults,Independent Sector Placements,Services,01/08/2018,30186736,1455.20,Revenue,Athena (Ashlynn Grange),Residential Care
Peterborough City Council,Commissioning and Commercial Operations,Clare Lodge,Agency Staff,01/08/2018,30186737,1072.00,Revenue,Wrixon Care Services,External Temporary Staff
Peterborough City Council,Adults,Independent Sector Placements,Services,01/08/2018,30186739,920.92,Revenue,Athena (Ashlynn Grange),Residential Care
Peterborough City Council,Adults,Independent Sector Placements,Services,01/08/2018,30186743,1032.88,Revenue,Athena (Ashlynn Grange),Residential Care
Peterborough City Council,Adults,Independent Sector Placements,Services,01/08/2018,30186745,2401.16,Revenue,Athena (Ashlynn Grange),Residential Care
Peterborough City Council,Adults,Independent Sector Placements,Services,01/08/2018,30186748,974.16,Revenue,Athena (Ashlynn Grange),Residential Care
Peterborough City Council,Adults,Independent Sector Placements,Services,01/08/2018,30186750,1821.88,Revenue,Athena (Ashlynn Grange),Residential Care
Peterborough City Council,Adults,Independent Sector Placements,Services,01/08/2018,30186780,1165.92,Revenue,Athena (Ashlynn Grange),Residential Care
Peterborough City Council,Adults,Independent Sector Placements,Services,01/08/2018,30186781,2318.36,Revenue,Athena (Ashlynn Grange),Residential Care
Peterborough City Council,Adults,Independent Sector Placements,Services,01/08/2018,30186782,1014.96,Revenue,Athena (Ashlynn Grange),Residential Care
Peterborough City Council,Adults,Independent Sector Placements,Services,01/08/2018,30186783,1980.00,Revenue,Athena (Ashlynn Grange),Residential Care
Peterborough City Council,Adults,Independent Sector Placements,Services,01/08/2018,30186784,3000.00,Revenue,Athena (Ashlynn Grange),Residential Care
Peterborough City Council,Adults,Independent Sector Placements,Services,01/08/2018,30186785,1569.36,Revenue,Athena (Ashlynn Grange),Residential Care
Peterborough City Council,Adults,Independent Sector Placements,Services,01/08/2018,30186786,1115.20,Revenue,Athena (Ashlynn Grange),Residential Care
Peterborough City Council,Adults,Independent Sector Placements,Services,01/08/2018,30186788,1821.88,Revenue,Athena (Ashlynn Grange),Residential Care
Peterborough City Council,Adults,Independent Sector Placements,Services,01/08/2018,30186789,1757.48,Revenue,Athena (Ashlynn Grange),Residential Care
Peterborough City Council,Adults,Independent Sector Placements,Services,01/08/2018,30186791,1282.00,Revenue,Athena (Ashlynn Grange),Residential Care
Peterborough City Council,Adults,Independent Sector Placements,Services,01/08/2018,30186792,1644.72,Revenue,Athena (Ashlynn Grange),Residential Care
Peterborough City Council,Adults,Independent Sector Placements,Services,01/08/2018,30186793,1685.40,Revenue,Athena (Ashlynn Grange),Residential Care
Peterborough City Council,Adults,Independent Sector Placements,Services,01/08/2018,30186794,1731.44,Revenue,Athena (Ashlynn Grange),Residential Care
Peterborough City Council,Adults,Independent Sector Placements,Services,01/08/2018,30186795,1268.16,Revenue,Athena (Ashlynn Grange),Residential Care
Peterborough City Council,Adults,Independent Sector Placements,Services,01/08/2018,30186796,810.92,Revenue,Athena (Ashlynn Grange),Residential Care
Peterborough City Council,Adults,Independent Sector Placements,Services,01/08/2018,30186797,1765.96,Revenue,Athena (Ashlynn Grange),Residential Care
Peterborough City Council,Adults,Independent Sector Placements,Services,01/08/2018,30186798,1685.72,Revenue,Athena (Ashlynn Grange),Residential Care
Peterborough City Council,Adults,Independent Sector Placements,Services,01/08/2018,30186818,1773.96,Revenue,Athena (Ashlynn Grange),Residential Care
Peterborough City Council,Adults,Independent Sector Placements,Services,01/08/2018,30186819,2318.36,Revenue,Athena (Ashlynn Grange),Residential Care
Peterborough City Council,Corporate,Corporate,Non Revenue,01/08/2018,30186879,3180.00,Capital,Permanent Futures Ltd,Consultants Fees
Peterborough City Council,Legal Services,Legal Services,Services,01/08/2018,30186915,500.00,Revenue,Miss Jodie Drummond,Legal Costs
Peterborough City Council,Regulatory Services,Regulatory Services,"Tools, Equipment, Furniture & Materials",01/08/2018,30187006,2271.55,Revenue,VIP-System Ltd,Purchase of Equipment
Peterborough City Council,Adults,Independent Sector Placements,Services,01/08/2018,30187078,2318.36,Revenue,Athena (Ashlynn Grange),Residential Care
Peterborough City Council,Adults,Independent Sector Placements,Services,01/08/2018,30187079,2318.36,Revenue,Athena (Ashlynn Grange),Residential Care
Peterborough City Council,Adults,Independent Sector Placements,Services,01/08/2018,30187346,797.40,Revenue,Red Rock Partnership Ltd,Day Care
Peterborough City Council,Children's & Safeguarding,Access to Resources & Specialist Commissioning,Agency Staff,01/08/2018,30187395,880.00,Revenue,HCL Social Care Ltd,External Temporary Staff
Peterborough City Council,Adults,OP/PD/SI,"Tools, Equipment, Furniture & Materials",01/08/2018,30187480,105616.19,Revenue,NRS Healthcare,Occupational Therapy Equipment
Peterborough City Council,Adults,Mental Capacity Act & DoLs,Services,01/08/2018,30187482,743.20,Revenue,SS Psychiatric Services Ltd,Hired Services
Peterborough City Council,Adults,Independent Sector Placements,Services,01/08/2018,30187619,1329.48,Revenue,Pilgrim Havens,Residential Care
Peterborough City Council,Adults,Independent Sector Placements,Services,01/08/2018,30187622,1567.48,Revenue,Pilgrim Havens,Residential Care
Peterborough City Council,Adults,Independent Sector Placements,Services,01/08/2018,30187624,1617.16,Revenue,Pilgrim Havens,Residential Care
Peterborough City Council,Adults,Independent Sector Placements,Services,01/08/2018,30187625,883.96,Revenue,Pilgrim Havens,Residential Care
Peterborough City Council,Adults,Independent Sector Placements,Services,01/08/2018,30187626,1269.48,Revenue,Pilgrim Havens,Residential Care
Peterborough City Council,Adults,Independent Sector Placements,Services,01/08/2018,30187628,644.20,Revenue,Pilgrim Havens,Residential Care
Peterborough City Council,Adults,Independent Sector Placements,Services,01/08/2018,30187630,1023.84,Revenue,Pilgrim Havens,Residential Care
Peterborough City Council,Adults,Independent Sector Placements,Services,01/08/2018,30187663,3095.60,Revenue,Voyage,Home Care
Peterborough City Council,Adults,Independent Sector Placements,Services,01/08/2018,30187664,1830.72,Revenue,Voyage,Home Care
Peterborough City Council,Adults,Independent Sector Placements,Services,01/08/2018,30187665,1931.20,Revenue,Voyage,Home Care
Peterborough City Council,Adults,Independent Sector Placements,Services,01/08/2018,30187666,4378.96,Revenue,Voyage,Home Care
Peterborough City Council,Adults,Independent Sector Placements,Services,01/08/2018,30187667,3952.40,Revenue,Voyage,Home Care
Peterborough City Council,Adults,Independent Sector Placements,Services,01/08/2018,30187668,2328.80,Revenue,Voyage,Home Care
Peterborough City Council,Adults,Independent Sector Placements,Services,01/08/2018,30187669,1931.20,Revenue,Voyage,Home Care
Peterborough City Council,Westcombe Engineering,Westcombe Engineering,"Tools, Equipment, Furniture & Materials",01/08/2018,30187674,614.90,Revenue,Barron Clark Castings Ltd,Items For Resale
Peterborough City Council,Westcombe Engineering,Westcombe Engineering,"Tools, Equipment, Furniture & Materials",01/08/2018,30187675,953.76,Revenue,Barron Clark Castings Ltd,Items For Resale
Peterborough City Council,Westcombe Engineering,Westcombe Engineering,"Tools, Equipment, Furniture & Materials",01/08/2018,30187677,639.65,Revenue,Barron Clark Castings Ltd,Items For Resale
Peterborough City Council,Westcombe Engineering,Westcombe Engineering,"Tools, Equipment, Furniture & Materials",01/08/2018,30187679,530.28,Revenue,Barron Clark Castings Ltd,Items For Resale
Peterborough City Council,Westcombe Engineering,Westcombe Engineering,"Tools, Equipment, Furniture & Materials",01/08/2018,30187682,614.90,Revenue,Barron Clark Castings Ltd,Items For Resale
Peterborough City Council,Peterborough Highway Services,Network and Traffic Management,Services,01/08/2018,30187708,5694.70,Revenue,Vix Technology UK Ltd,Real Time Passenger Information
Peterborough City Council,Adults,Home Services Delivery Model,Services,01/08/2018,30187721,1598.00,Revenue,Rawheat Heating & Plumbing Eng.,Contractors
Peterborough City Council,Adults,Day opportunities - Older People,Rents,01/08/2018,30187741,975.00,Revenue,Cross Keys Homes,Hire Of Premises
Peterborough City Council,Peterborough Highway Services,Highway & Drainage Control,Agency Staff,01/08/2018,30187805,1440.01,Revenue,Reed Specialist Recruitment Limited,External Temporary Staff
Peterborough City Council,Financial Services,Finance,Agency Staff,01/08/2018,30187808,750.94,Revenue,Reed Specialist Recruitment Limited,External Temporary Staff
Peterborough City Council,Communities,Housing,Services,01/08/2018,30187835,816.67,Revenue,DA Rosalia Hotel,Temporary Accommodation
Peterborough City Council,Communities,Housing,Services,01/08/2018,30187837,816.67,Revenue,DA Rosalia Hotel,Temporary Accommodation
Peterborough City Council,Communities,Housing,Services,01/08/2018,30187838,816.67,Revenue,DA Rosalia Hotel,Temporary Accommodation
Peterborough City Council,Communities,Housing,Services,01/08/2018,30187839,816.67,Revenue,DA Rosalia Hotel,Temporary Accommodation
Peterborough City Council,Communities,Housing,Services,01/08/2018,30187840,816.67,Revenue,DA Rosalia Hotel,Temporary Accommodation
Peterborough City Council,Communities,Housing,Services,01/08/2018,30187841,595.58,Revenue,DA Rosalia Hotel,Temporary Accommodation
Peterborough City Council,Communities,Housing,Services,01/08/2018,30187842,748.67,Revenue,DA Rosalia Hotel,Temporary Accommodation
Peterborough City Council,Communities,Housing,Services,01/08/2018,30187843,595.58,Revenue,DA Rosalia Hotel,Temporary Accommodation
Peterborough City Council,Communities,Housing,Services,01/08/2018,30187844,816.67,Revenue,DA Rosalia Hotel,Temporary Accommodation
Peterborough City Council,Communities,Housing,Services,01/08/2018,30187845,933.33,Revenue,DA Rosalia Hotel,Temporary Accommodation
Peterborough City Council,Communities,Housing,Services,01/08/2018,30187846,714.58,Revenue,DA Rosalia Hotel,Temporary Accommodation
Peterborough City Council,Communities,Housing,Services,01/08/2018,30187847,595.58,Revenue,DA Rosalia Hotel,Temporary Accommodation
Peterborough City Council,Communities,Housing,Services,01/08/2018,30187848,816.67,Revenue,DA Rosalia Hotel,Temporary Accommodation
Peterborough City Council,Communities,Housing,Services,01/08/2018,30187849,595.58,Revenue,DA Rosalia Hotel,Temporary Accommodation
Peterborough City Council,Communities,Housing,Services,01/08/2018,30187850,595.58,Revenue,DA Rosalia Hotel,Temporary Accommodation
Peterborough City Council,Communities,Housing,Services,01/08/2018,30187851,714.58,Revenue,DA Rosalia Hotel,Temporary Accommodation
Peterborough City Council,Communities,Housing,Services,01/08/2018,30187852,595.58,Revenue,DA Rosalia Hotel,Temporary Accommodation
Peterborough City Council,Communities,Housing,Services,01/08/2018,30187853,1310.17,Revenue,DA Rosalia Hotel,Temporary Accommodation
Peterborough City Council,Communities,Housing,Services,01/08/2018,30187870,1310.17,Revenue,DA Rosalia Hotel,Temporary Accommodation
Peterborough City Council,Communities,Housing,Services,01/08/2018,30187871,714.58,Revenue,DA Rosalia Hotel,Temporary Accommodation
Peterborough City Council,Communities,Housing,Services,01/08/2018,30187872,714.58,Revenue,DA Rosalia Hotel,Temporary Accommodation
Peterborough City Council,Communities,Housing,Services,01/08/2018,30187874,595.58,Revenue,DA Rosalia Hotel,Temporary Accommodation
Peterborough City Council,Communities,Housing,Services,01/08/2018,30187877,595.58,Revenue,DA Rosalia Hotel,Temporary Accommodation
Peterborough City Council,Communities,Housing,Services,01/08/2018,30187878,1061.67,Revenue,DA Rosalia Hotel,Temporary Accommodation
Peterborough City Council,Adults,OP/PD/SI,"Tools, Equipment, Furniture & Materials",01/08/2018,30187923,1266.97,Revenue,NRS Healthcare,Occupational Therapy Equipment
Peterborough City Council,Communities,Housing,Services,01/08/2018,30187995,547.00,Revenue,Redacted Personal Data,Financial Assistance
Peterborough City Council,Communities,Housing,Services,01/08/2018,30187996,1000.00,Revenue,Redacted Personal Data,Financial Assistance
Peterborough City Council,Peterborough Serco Strategic Partnership,PSSP Retained Services,Services,01/08/2018,30188046,1891.30,Revenue,Whistl UK Ltd,Postage
Peterborough City Council,Corporate,Corporate,Non Revenue,01/08/2018,30188076,2268.60,Capital,Reed Specialist Recruitment Limited,Consultants Fees
Peterborough City Council,"Cemeteries, Cremation & Registrars",Bereavement Service,Services,01/08/2018,30188169,1708.00,Revenue,Anglia Co-operative Funerals,Contract Funerals
Peterborough City Council,Children's & Safeguarding,Early Help ASC/CSC,Agency Staff,01/08/2018,30188266,543.39,Revenue,Reed Specialist Recruitment Limited,External Temporary Staff
Peterborough City Council,Corporate,Corporate,Non Revenue,01/08/2018,30188367,16108.37,Capital,Serco Ltd,Computer Hardware
Peterborough City Council,Commissioning and Commercial Operations,Commissioning Team,Agency Staff,01/08/2018,30188370,2243.60,Revenue,Reed Specialist Recruitment Limited,External Temporary Staff
Peterborough City Council,Financial Services,Finance,Agency Staff,01/08/2018,30188375,586.74,Revenue,Reed Specialist Recruitment Limited,External Temporary Staff
Peterborough City Council,ICT,ICT,Agency Staff,01/08/2018,30188377,538.57,Revenue,Reed Specialist Recruitment Limited,External Temporary Staff
Peterborough City Council,Peterborough Highway Services,Highway & Drainage Control,Agency Staff,01/08/2018,30188382,1419.51,Revenue,Reed Specialist Recruitment Limited,External Temporary Staff
Peterborough City Council,Commissioning and Commercial Operations,Commissioning Team,Agency Staff,01/08/2018,30188383,1822.51,Revenue,Reed Specialist Recruitment Limited,External Temporary Staff
Peterborough City Council,Corporate,Corporate,Non Revenue,01/08/2018,30188385,1121.80,Capital,Reed Specialist Recruitment Limited,Consultants Fees
Peterborough City Council,Communities,Performance & Information,Agency Staff,01/08/2018,30188386,985.88,Revenue,Reed Specialist Recruitment Limited,External Temporary Staff
Peterborough City Council,Legal Services,Legal Services,Agency Staff,01/08/2018,30188390,1508.15,Revenue,Reed Specialist Recruitment Limited,External Temporary Staff
Peterborough City Council,Adults,Finance,Agency Staff,01/08/2018,30188399,2433.60,Revenue,Reed Specialist Recruitment Limited,External Temporary Staff
Peterborough City Council,Peterborough Highway Services,Highway & Drainage Control,Agency Staff,01/08/2018,30188401,1420.80,Revenue,Reed Specialist Recruitment Limited,External Temporary Staff
Peterborough City Council,Commissioning and Commercial Operations,Clare Lodge,Agency Staff,01/08/2018,30188404,766.82,Revenue,Reed Specialist Recruitment Limited,External Temporary Staff
Peterborough City Council,Legal Services,Legal Services,Agency Staff,01/08/2018,30188405,1674.31,Revenue,Reed Specialist Recruitment Limited,External Temporary Staff
Peterborough City Council,Commissioning and Commercial Operations,Clare Lodge,Agency Staff,01/08/2018,30188408,728.46,Revenue,Reed Specialist Recruitment Limited,External Temporary Staff
Peterborough City Council,Commissioning and Commercial Operations,Clare Lodge,Agency Staff,01/08/2018,30188409,855.05,Revenue,Reed Specialist Recruitment Limited,External Temporary Staff
Peterborough City Council,Adults,Strategic Commissioning - Management,Agency Staff,01/08/2018,30188410,836.88,Revenue,Reed Specialist Recruitment Limited,External Temporary Staff
Peterborough City Council,Adults,Strategic Commissioning - Management,Agency Staff,01/08/2018,30188412,689.29,Revenue,Reed Specialist Recruitment Limited,External Temporary Staff
Peterborough City Council,Financial Services,Finance,Agency Staff,01/08/2018,30188417,744.93,Revenue,Reed Specialist Recruitment Limited,External Temporary Staff
Peterborough City Council,Adults,Independent Sector Placements,Services,01/08/2018,30188440,650.70,Revenue,Pilgrim Havens,Residential Care
Peterborough City Council,Adults,Strategic Commissioning - Management,Agency Staff,01/08/2018,30188447,2953.60,Revenue,Reed Specialist Recruitment Limited,External Temporary Staff
Peterborough City Council,Adults,Independent Sector Placements,Services,01/08/2018,30188521,3306.90,Revenue,Turning Point Services Ltd,Home Care
Peterborough City Council,Adults,Independent Sector Placements,Services,01/08/2018,30188522,6172.88,Revenue,Turning Point Services Ltd,Home Care
Peterborough City Council,Adults,Independent Sector Placements,Services,01/08/2018,30188523,6172.88,Revenue,Turning Point Services Ltd,Home Care
Peterborough City Council,Communities,Housing,Services,01/08/2018,30188535,9838.50,Revenue,Eastfield Guesthouse,Temporary Accommodation
Peterborough City Council,Communities,Housing Enforcement,Contract Hire and Operating Leases,01/08/2018,30188559,3634.55,Revenue,Northumbria Healthcare NHS Foundation Trust,Leasing Charges
Peterborough City Council,Adults,Community Team,Contract Hire and Operating Leases,01/08/2018,30188560,4915.88,Revenue,Northumbria Healthcare NHS Foundation Trust,Leasing Charges
Peterborough City Council,Commissioning and Commercial Operations,Commissioning Team,Contract Hire and Operating Leases,01/08/2018,30188561,3577.89,Revenue,Northumbria Healthcare NHS Foundation Trust,Leasing Charges
Peterborough City Council,Communities,Housing,Services,01/08/2018,30188569,714.58,Revenue,DA Rosalia Hotel,Temporary Accommodation
Peterborough City Council,Communities,Housing,Services,01/08/2018,30188571,1061.67,Revenue,DA Rosalia Hotel,Temporary Accommodation
Peterborough City Council,Communities,Housing,Services,01/08/2018,30188573,1110.42,Revenue,DA Rosalia Hotel,Temporary Accommodation
Peterborough City Council,Communities,Housing,Services,01/08/2018,30188575,595.58,Revenue,DA Rosalia Hotel,Temporary Accommodation
Peterborough City Council,Communities,Housing,Services,01/08/2018,30188577,842.50,Revenue,DA Rosalia Hotel,Temporary Accommodation
Peterborough City Council,Communities,Housing,Services,01/08/2018,30188578,595.58,Revenue,DA Rosalia Hotel,Temporary Accommodation
Peterborough City Council,Resilience & Health & Safety,Resilience & Health & Safety,Interview & Training Expenses,01/08/2018,30188623,564.20,Revenue,Cambridgeshire & Peterborough Fire Authority,Training
Peterborough City Council,Adults,Home Services Delivery Model,Third Party Payments,01/08/2018,30188647,8259.09,Revenue,Cross Keys Homes,Grant-Third Party
Peterborough City Council,Corporate,Corporate,Non Revenue,01/08/2018,30188663,620604.30,Balance Sheet,Teachers Pensions,Pensions
Peterborough City Council,Communities,Housing,Services,01/08/2018,30188664,553.00,Revenue,Eastfield Guesthouse,Temporary Accommodation
Peterborough City Council,Communities,Housing,Services,01/08/2018,30188668,553.00,Revenue,Eastfield Guesthouse,Temporary Accommodation
Peterborough City Council,Communities,Housing,Services,01/08/2018,30188670,553.00,Revenue,Eastfield Guesthouse,Temporary Accommodation
Peterborough City Council,Communities,Housing,Services,01/08/2018,30188672,553.00,Revenue,Eastfield Guesthouse,Temporary Accommodation
Peterborough City Council,Communities,Housing,Services,01/08/2018,30188673,553.00,Revenue,Eastfield Guesthouse,Temporary Accommodation
Peterborough City Council,Communities,Housing,Services,01/08/2018,30188677,553.00,Revenue,Eastfield Guesthouse,Temporary Accommodation
Peterborough City Council,Communities,Housing,Services,01/08/2018,30188682,553.00,Revenue,Eastfield Guesthouse,Temporary Accommodation
Peterborough City Council,Communities,Housing,Services,01/08/2018,30188683,553.00,Revenue,Eastfield Guesthouse,Temporary Accommodation
Peterborough City Council,Communities,Housing,Services,01/08/2018,30188684,553.00,Revenue,Eastfield Guesthouse,Temporary Accommodation
Peterborough City Council,Communities,Housing,Services,01/08/2018,30188687,553.00,Revenue,Eastfield Guesthouse,Temporary Accommodation
Peterborough City Council,Communities,Housing,Services,01/08/2018,30188690,532.00,Revenue,Eastfield Guesthouse,Temporary Accommodation
Peterborough City Council,Communities,Housing,Services,01/08/2018,30188692,532.00,Revenue,Eastfield Guesthouse,Temporary Accommodation
Peterborough City Council,Communities,Housing,Services,01/08/2018,30188693,553.00,Revenue,Eastfield Guesthouse,Temporary Accommodation
Peterborough City Council,Communities,Housing,Services,01/08/2018,30188694,553.00,Revenue,Eastfield Guesthouse,Temporary Accommodation
Peterborough City Council,Communities,Housing,Services,01/08/2018,30188696,553.00,Revenue,Eastfield Guesthouse,Temporary Accommodation
Peterborough City Council,Communities,Housing,Services,01/08/2018,30188702,553.00,Revenue,Eastfield Guesthouse,Temporary Accommodation
Peterborough City Council,Communities,Housing,Services,01/08/2018,30188703,532.00,Revenue,Eastfield Guesthouse,Temporary Accommodation
Peterborough City Council,Communities,Housing,Services,01/08/2018,30188711,560.00,Revenue,Singh and Sons Property Management Ltd,Temporary Accommodation
Peterborough City Council,Corporate,Corporate,Non Revenue,01/08/2018,30188722,4099.19,Capital,Rawheat Heating & Plumbing Eng.,Grant Payment
Peterborough City Council,Commissioning and Commercial Operations,Early Years & Quality Improvement,Services,01/08/2018,30188725,5123.30,Revenue,"Family Action ,  Birchtree Pre- School",Grant Payment
Peterborough City Council,Communities,Housing,Services,01/08/2018,30188731,532.00,Revenue,Eastfield Guesthouse,Temporary Accommodation
Peterborough City Council,Adults,Independent Sector Placements,Services,01/08/2018,30188766,4179.04,Revenue,Consensus Support Services Ltd,Residential Care
Peterborough City Council,Adults,Independent Sector Placements,Services,01/08/2018,30188779,-1732.50,Revenue,Sagecare,Home Care
Peterborough City Council,Adults,Independent Sector Placements,Services,01/08/2018,30188780,2231.46,Revenue,Sagecare,Home Care
Peterborough City Council,Adults,Independent Sector Placements,Services,01/08/2018,30188792,3869.88,Revenue,Consensus Support Services Ltd,Residential Care
Peterborough City Council,Adults,Independent Sector Placements,Contract Hire and Operating Leases,01/08/2018,30188824,1200.00,Revenue,King Carz Ltd,Hired Transport
Peterborough City Council,Adults,Independent Sector Placements,Services,01/08/2018,30188825,1263.44,Revenue,THE CLAIR FRANCIS RETIREMENT HOME,Residential Care
Peterborough City Council,Adults,Independent Sector Placements,Services,01/08/2018,30188828,1821.88,Revenue,THE CLAIR FRANCIS RETIREMENT HOME,Residential Care
Peterborough City Council,Adults,Independent Sector Placements,Services,01/08/2018,30188829,771.00,Revenue,THE CLAIR FRANCIS RETIREMENT HOME,Residential Care
Peterborough City Council,Adults,Independent Sector Placements,Services,01/08/2018,30188830,1217.28,Revenue,THE CLAIR FRANCIS RETIREMENT HOME,Residential Care
Peterborough City Council,ICT,ICT,Services,01/08/2018,30188864,2312.57,Revenue,ADVANCED HEALTH & CARE,Computer Software
Peterborough City Council,Adults,Independent Sector Placements,Services,01/08/2018,8000120941,540.00,Revenue,CambridgeshireHome Care,Home Care
Peterborough City Council,Adults,Independent Sector Placements,Services,01/08/2018,8000120943,11148.63,Revenue,CambridgeshireHome Care,Home Care
Peterborough City Council,Adults,Independent Sector Placements,Social Services,01/08/2018,8000121840,930.48,Revenue,Redacted Personal Data,Direct Payments
Peterborough City Council,Adults,Independent Sector Placements,Social Services,01/08/2018,8000121842,1537.20,Revenue,Redacted Personal Data,Direct Payments
Peterborough City Council,Adults,Independent Sector Placements,Social Services,01/08/2018,8000121843,1187.96,Revenue,Redacted Personal Data,Direct Payments
Peterborough City Council,Adults,Independent Sector Placements,Social Services,01/08/2018,8000121844,1390.12,Revenue,Redacted Personal Data,Direct Payments
Peterborough City Council,Adults,Independent Sector Placements,Social Services,01/08/2018,8000121846,2950.84,Revenue,Redacted Personal Data,Direct Payments
Peterborough City Council,Adults,Independent Sector Placements,Social Services,01/08/2018,8000121847,2753.85,Revenue,Redacted Personal Data,Direct Payments
Peterborough City Council,Adults,Independent Sector Placements,Social Services,01/08/2018,8000121849,1037.84,Revenue,Redacted Personal Data,Direct Payments
Peterborough City Council,Adults,Independent Sector Placements,Social Services,01/08/2018,8000121850,820.40,Revenue,Redacted Personal Data,Direct Payments
Peterborough City Council,Adults,Independent Sector Placements,Social Services,01/08/2018,8000121851,1608.36,Revenue,Redacted Personal Data,Direct Payments
Peterborough City Council,Adults,Independent Sector Placements,Social Services,01/08/2018,8000121853,1223.56,Revenue,Redacted Personal Data,Direct Payments
Peterborough City Council,Adults,Independent Sector Placements,Social Services,01/08/2018,8000121854,2249.00,Revenue,Redacted Personal Data,Direct Payments
Peterborough City Council,Adults,Independent Sector Placements,Social Services,01/08/2018,8000121855,620.64,Revenue,Redacted Personal Data,Direct Payments
Peterborough City Council,Adults,Independent Sector Placements,Social Services,01/08/2018,8000121857,1504.92,Revenue,Redacted Personal Data,Direct Payments
Peterborough City Council,Adults,Independent Sector Placements,Social Services,01/08/2018,8000121858,544.80,Revenue,Redacted Personal Data,Direct Payments
Peterborough City Council,Adults,Independent Sector Placements,Social Services,01/08/2018,8000121859,534.48,Revenue,Redacted Personal Data,Direct Payments
Peterborough City Council,Adults,Independent Sector Placements,Social Services,01/08/2018,8000121860,938.28,Revenue,Redacted Personal Data,Direct Payments
Peterborough City Council,Adults,Independent Sector Placements,Social Services,01/08/2018,8000121861,1293.60,Revenue,Redacted Personal Data,Direct Payments
Peterborough City Council,Adults,Independent Sector Placements,Social Services,01/08/2018,8000121864,6124.16,Revenue,Redacted Personal Data,Direct Payments
Peterborough City Council,Adults,Independent Sector Placements,Social Services,01/08/2018,8000121865,550.72,Revenue,Redacted Personal Data,Direct Payments
Peterborough City Council,Adults,Independent Sector Placements,Social Services,01/08/2018,8000121866,2391.04,Revenue,Redacted Personal Data,Direct Payments
Peterborough City Council,Adults,Independent Sector Placements,Social Services,01/08/2018,8000121867,820.36,Revenue,Redacted Personal Data,Direct Payments
Peterborough City Council,Adults,Independent Sector Placements,Social Services,01/08/2018,8000121868,700.04,Revenue,Redacted Personal Data,Direct Payments
Peterborough City Council,Adults,Independent Sector Placements,Social Services,01/08/2018,8000121869,1664.40,Revenue,Redacted Personal Data,Direct Payments
Peterborough City Council,Adults,Independent Sector Placements,Social Services,01/08/2018,8000121870,552.48,Revenue,Redacted Personal Data,Direct Payments
Peterborough City Council,Adults,Independent Sector Placements,Social Services,01/08/2018,8000121872,1666.36,Revenue,Redacted Personal Data,Direct Payments
Peterborough City Council,Adults,Independent Sector Placements,Social Services,01/08/2018,8000121873,1251.04,Revenue,Redacted Personal Data,Direct Payments
Peterborough City Council,Adults,Independent Sector Placements,Social Services,01/08/2018,8000121874,1050.48,Revenue,Redacted Personal Data,Direct Payments
Peterborough City Council,Adults,Independent Sector Placements,Social Services,01/08/2018,8000121875,4364.36,Revenue,Redacted Personal Data,Direct Payments
Peterborough City Council,Adults,Independent Sector Placements,Social Services,01/08/2018,8000121876,993.36,Revenue,Redacted Personal Data,Direct Payments
Peterborough City Council,Adults,Independent Sector Placements,Social Services,01/08/2018,8000121877,7956.76,Revenue,Redacted Personal Data,Direct Payments
Peterborough City Council,Adults,Independent Sector Placements,Social Services,01/08/2018,8000121879,2118.60,Revenue,Redacted Personal Data,Direct Payments
Peterborough City Council,Adults,Independent Sector Placements,Social Services,01/08/2018,8000121880,557.20,Revenue,Redacted Personal Data,Direct Payments
Peterborough City Council,Adults,Independent Sector Placements,Social Services,01/08/2018,8000121881,758.08,Revenue,Redacted Personal Data,Direct Payments
Peterborough City Council,Adults,Independent Sector Placements,Social Services,01/08/2018,8000121888,1085.36,Revenue,Redacted Personal Data,Direct Payments
Peterborough City Council,Adults,Independent Sector Placements,Social Services,01/08/2018,8000121891,590.08,Revenue,Redacted Personal Data,Direct Payments
Peterborough City Council,Adults,Independent Sector Placements,Social Services,01/08/2018,8000121893,897.92,Revenue,Redacted Personal Data,Direct Payments
Peterborough City Council,Adults,Independent Sector Placements,Social Services,01/08/2018,8000121894,7123.48,Revenue,Redacted Personal Data,Direct Payments
Peterborough City Council,Adults,Independent Sector Placements,Social Services,01/08/2018,8000121895,6740.40,Revenue,Redacted Personal Data,Direct Payments
Peterborough City Council,Adults,Independent Sector Placements,Social Services,01/08/2018,8000121896,671.08,Revenue,Redacted Personal Data,Direct Payments
Peterborough City Council,Adults,Independent Sector Placements,Social Services,01/08/2018,8000121897,8333.00,Revenue,Redacted Personal Data,Direct Payments
Peterborough City Council,Adults,Independent Sector Placements,Social Services,01/08/2018,8000121898,1113.28,Revenue,Redacted Personal Data,Direct Payments
Peterborough City Council,Adults,Independent Sector Placements,Social Services,01/08/2018,8000121900,818.88,Revenue,Redacted Personal Data,Direct Payments
Peterborough City Council,Adults,Independent Sector Placements,Social Services,01/08/2018,8000121901,3753.12,Revenue,Redacted Personal Data,Direct Payments
Peterborough City Council,Adults,Independent Sector Placements,Social Services,01/08/2018,8000121902,681.08,Revenue,Redacted Personal Data,Direct Payments
Peterborough City Council,Adults,Independent Sector Placements,Social Services,01/08/2018,8000121903,1279.96,Revenue,Redacted Personal Data,Direct Payments
Peterborough City Council,Adults,Independent Sector Placements,Social Services,01/08/2018,8000121904,612.80,Revenue,Redacted Personal Data,Direct Payments
Peterborough City Council,Adults,Independent Sector Placements,Social Services,01/08/2018,8000121905,2529.24,Revenue,Redacted Personal Data,Direct Payments
Peterborough City Council,Adults,Independent Sector Placements,Social Services,01/08/2018,8000121906,2168.08,Revenue,Redacted Personal Data,Direct Payments
Peterborough City Council,Adults,Independent Sector Placements,Social Services,01/08/2018,8000121907,569.68,Revenue,Redacted Personal Data,Direct Payments
Peterborough City Council,Adults,Independent Sector Placements,Social Services,01/08/2018,8000121908,988.68,Revenue,Redacted Personal Data,Direct Payments
Peterborough City Council,Adults,Independent Sector Placements,Social Services,01/08/2018,8000121909,847.44,Revenue,Redacted Personal Data,Direct Payments
Peterborough City Council,Adults,Independent Sector Placements,Social Services,01/08/2018,8000121911,672.16,Revenue,Redacted Personal Data,Direct Payments
Peterborough City Council,Adults,Independent Sector Placements,Social Services,01/08/2018,8000121912,1140.48,Revenue,Redacted Personal Data,Direct Payments
Peterborough City Council,Adults,Independent Sector Placements,Social Services,01/08/2018,8000121914,623.04,Revenue,Redacted Personal Data,Direct Payments
Peterborough City Council,Adults,Independent Sector Placements,Social Services,01/08/2018,8000121915,3990.48,Revenue,Redacted Personal Data,Direct Payments
Peterborough City Council,Adults,Independent Sector Placements,Social Services,01/08/2018,8000121916,1316.44,Revenue,Redacted Personal Data,Direct Payments
Peterborough City Council,Adults,Independent Sector Placements,Social Services,01/08/2018,8000121919,779.56,Revenue,Redacted Personal Data,Direct Payments
Peterborough City Council,Adults,Independent Sector Placements,Social Services,01/08/2018,8000121920,1167.48,Revenue,Redacted Personal Data,Direct Payments
Peterborough City Council,Adults,Independent Sector Placements,Social Services,01/08/2018,8000121921,1156.60,Revenue,Redacted Personal Data,Direct Payments
Peterborough City Council,Adults,Independent Sector Placements,Social Services,01/08/2018,8000121922,500.00,Revenue,Redacted Personal Data,Direct Payments
Peterborough City Council,Adults,Independent Sector Placements,Social Services,01/08/2018,8000121923,2978.52,Revenue,Redacted Personal Data,Direct Payments
Peterborough City Council,Adults,Independent Sector Placements,Social Services,01/08/2018,8000121924,1180.28,Revenue,Redacted Personal Data,Direct Payments
Peterborough City Council,Adults,Independent Sector Placements,Social Services,01/08/2018,8000121926,3488.00,Revenue,Redacted Personal Data,Direct Payments
Peterborough City Council,Adults,Independent Sector Placements,Social Services,01/08/2018,8000121927,898.96,Revenue,Redacted Personal Data,Direct Payments
Peterborough City Council,Adults,Independent Sector Placements,Social Services,01/08/2018,8000121928,3349.28,Revenue,Redacted Personal Data,Direct Payments
Peterborough City Council,Adults,Independent Sector Placements,Social Services,01/08/2018,8000121929,579.68,Revenue,Redacted Personal Data,Direct Payments
Peterborough City Council,Adults,Independent Sector Placements,Social Services,01/08/2018,8000121930,816.00,Revenue,Redacted Personal Data,Direct Payments
Peterborough City Council,Adults,Independent Sector Placements,Social Services,01/08/2018,8000121931,1120.00,Revenue,Redacted Personal Data,Direct Payments
Peterborough City Council,Adults,Independent Sector Placements,Social Services,01/08/2018,8000121932,587.20,Revenue,Redacted Personal Data,Direct Payments
Peterborough City Council,Adults,Independent Sector Placements,Social Services,01/08/2018,8000121934,1041.76,Revenue,Redacted Personal Data,Direct Payments
Peterborough City Council,Adults,Independent Sector Placements,Social Services,01/08/2018,8000121935,9339.00,Revenue,Redacted Personal Data,Direct Payments
Peterborough City Council,Adults,Independent Sector Placements,Social Services,01/08/2018,8000121938,956.76,Revenue,Redacted Personal Data,Direct Payments
Peterborough City Council,Adults,Independent Sector Placements,Social Services,01/08/2018,8000121939,1709.56,Revenue,Redacted Personal Data,Direct Payments
Peterborough City Council,Adults,Independent Sector Placements,Social Services,01/08/2018,8000121940,858.48,Revenue,Redacted Personal Data,Direct Payments
Peterborough City Council,Adults,Independent Sector Placements,Social Services,01/08/2018,8000121941,701.64,Revenue,Redacted Personal Data,Direct Payments
Peterborough City Council,Adults,Independent Sector Placements,Social Services,01/08/2018,8000121942,547.32,Revenue,Redacted Personal Data,Direct Payments
Peterborough City Council,Adults,Independent Sector Placements,Social Services,01/08/2018,8000121944,792.48,Revenue,Redacted Personal Data,Direct Payments
Peterborough City Council,Adults,Independent Sector Placements,Social Services,01/08/2018,8000121945,601.48,Revenue,Redacted Personal Data,Direct Payments
Peterborough City Council,Adults,Independent Sector Placements,Social Services,01/08/2018,8000121946,1576.24,Revenue,Redacted Personal Data,Direct Payments
Peterborough City Council,Adults,Independent Sector Placements,Social Services,01/08/2018,8000121949,1694.40,Revenue,Redacted Personal Data,Direct Payments
Peterborough City Council,Adults,Independent Sector Placements,Social Services,01/08/2018,8000121950,750.00,Revenue,Redacted Personal Data,Direct Payments
Peterborough City Council,Adults,Independent Sector Placements,Social Services,01/08/2018,8000121951,3206.64,Revenue,Redacted Personal Data,Direct Payments
Peterborough City Council,Adults,Independent Sector Placements,Social Services,01/08/2018,8000121954,659.08,Revenue,Redacted Personal Data,Direct Payments
Peterborough City Council,Adults,Independent Sector Placements,Social Services,01/08/2018,8000121956,1024.00,Revenue,Redacted Personal Data,Direct Payments
Peterborough City Council,Adults,Independent Sector Placements,Social Services,01/08/2018,8000121957,1998.52,Revenue,Redacted Personal Data,Direct Payments
Peterborough City Council,Adults,Independent Sector Placements,Social Services,01/08/2018,8000121959,978.48,Revenue,Redacted Personal Data,Direct Payments
Peterborough City Council,Adults,Independent Sector Placements,Social Services,01/08/2018,8000121960,554.64,Revenue,Redacted Personal Data,Direct Payments
Peterborough City Council,Adults,Independent Sector Placements,Social Services,01/08/2018,8000121963,2274.48,Revenue,Redacted Personal Data,Direct Payments
Peterborough City Council,Adults,Independent Sector Placements,Social Services,01/08/2018,8000121967,733.36,Revenue,Redacted Personal Data,Direct Payments
Peterborough City Council,Adults,Independent Sector Placements,Social Services,01/08/2018,8000121969,616.36,Revenue,Redacted Personal Data,Direct Payments
Peterborough City Council,Adults,Independent Sector Placements,Social Services,01/08/2018,8000121970,891.04,Revenue,Redacted Personal Data,Direct Payments
Peterborough City Council,Adults,Independent Sector Placements,Social Services,01/08/2018,8000121971,895.32,Revenue,Redacted Personal Data,Direct Payments
Peterborough City Council,Adults,Independent Sector Placements,Social Services,01/08/2018,8000121972,3411.04,Revenue,Redacted Personal Data,Direct Payments
Peterborough City Council,Adults,Independent Sector Placements,Social Services,01/08/2018,8000121973,1502.52,Revenue,Redacted Personal Data,Direct Payments
Peterborough City Council,Adults,Independent Sector Placements,Social Services,01/08/2018,8000121975,504.00,Revenue,Redacted Personal Data,Direct Payments
Peterborough City Council,Adults,Independent Sector Placements,Social Services,01/08/2018,8000121976,2034.48,Revenue,Redacted Personal Data,Direct Payments
Peterborough City Council,Adults,Independent Sector Placements,Social Services,01/08/2018,8000121977,864.20,Revenue,Redacted Personal Data,Direct Payments
Peterborough City Council,Adults,Independent Sector Placements,Social Services,01/08/2018,8000121982,1073.00,Revenue,Redacted Personal Data,Direct Payments
Peterborough City Council,Adults,Independent Sector Placements,Social Services,01/08/2018,8000121984,673.12,Revenue,Redacted Personal Data,Direct Payments
Peterborough City Council,Adults,Independent Sector Placements,Social Services,01/08/2018,8000121985,594.68,Revenue,Redacted Personal Data,Direct Payments
Peterborough City Council,Adults,Independent Sector Placements,Social Services,01/08/2018,8000121989,637.84,Revenue,Redacted Personal Data,Direct Payments
Peterborough City Council,Adults,Independent Sector Placements,Social Services,01/08/2018,8000121995,844.48,Revenue,Redacted Personal Data,Direct Payments
Peterborough City Council,Adults,Independent Sector Placements,Social Services,01/08/2018,8000121996,706.48,Revenue,Redacted Personal Data,Direct Payments
Peterborough City Council,Adults,Independent Sector Placements,Social Services,01/08/2018,8000121997,802.68,Revenue,Redacted Personal Data,Direct Payments
Peterborough City Council,Adults,Independent Sector Placements,Social Services,01/08/2018,8000121999,602.48,Revenue,Redacted Personal Data,Direct Payments
Peterborough City Council,Adults,Independent Sector Placements,Social Services,01/08/2018,8000122000,4621.12,Revenue,Redacted Personal Data,Direct Payments
Peterborough City Council,Adults,Independent Sector Placements,Social Services,01/08/2018,8000122003,714.40,Revenue,Redacted Personal Data,Direct Payments
Peterborough City Council,Adults,Independent Sector Placements,Social Services,01/08/2018,8000122004,1554.39,Revenue,Redacted Personal Data,Direct Payments
Peterborough City Council,Adults,Independent Sector Placements,Social Services,01/08/2018,8000122005,786.48,Revenue,Redacted Personal Data,Direct Payments
Peterborough City Council,Adults,Independent Sector Placements,Social Services,01/08/2018,8000122006,900.48,Revenue,Redacted Personal Data,Direct Payments
Peterborough City Council,Adults,Independent Sector Placements,Social Services,01/08/2018,8000122007,1603.46,Revenue,Redacted Personal Data,Direct Payments
Peterborough City Council,Adults,Independent Sector Placements,Social Services,01/08/2018,8000122009,1558.64,Revenue,Redacted Personal Data,Direct Payments
Peterborough City Council,Adults,Independent Sector Placements,Social Services,01/08/2018,8000122010,2335.12,Revenue,Redacted Personal Data,Direct Payments
Peterborough City Council,Adults,Independent Sector Placements,Social Services,01/08/2018,8000122011,712.96,Revenue,Redacted Personal Data,Direct Payments
Peterborough City Council,Adults,Independent Sector Placements,Social Services,01/08/2018,8000122012,606.48,Revenue,Redacted Personal Data,Direct Payments
Peterborough City Council,Adults,Independent Sector Placements,Social Services,01/08/2018,8000122015,934.44,Revenue,Redacted Personal Data,Direct Payments
Peterborough City Council,Adults,Independent Sector Placements,Social Services,01/08/2018,8000122017,1194.48,Revenue,Redacted Personal Data,Direct Payments
Peterborough City Council,Adults,Independent Sector Placements,Social Services,01/08/2018,8000122019,1254.36,Revenue,Redacted Personal Data,Direct Payments
Peterborough City Council,Adults,Independent Sector Placements,Social Services,01/08/2018,8000122020,541.24,Revenue,Redacted Personal Data,Direct Payments
Peterborough City Council,Adults,Independent Sector Placements,Social Services,01/08/2018,8000122021,2958.48,Revenue,Redacted Personal Data,Direct Payments
Peterborough City Council,Adults,Independent Sector Placements,Social Services,01/08/2018,8000122023,1204.48,Revenue,Redacted Personal Data,Direct Payments
Peterborough City Council,Adults,Independent Sector Placements,Social Services,01/08/2018,8000122025,538.48,Revenue,Redacted Personal Data,Direct Payments
Peterborough City Council,Adults,Independent Sector Placements,Social Services,01/08/2018,8000122026,1073.00,Revenue,Redacted Personal Data,Direct Payments
Peterborough City Council,Adults,Independent Sector Placements,Social Services,01/08/2018,8000122028,3602.80,Revenue,Redacted Personal Data,Direct Payments
Peterborough City Council,Adults,Independent Sector Placements,Social Services,01/08/2018,8000122030,1547.56,Revenue,Redacted Personal Data,Direct Payments
Peterborough City Council,Adults,Independent Sector Placements,Social Services,01/08/2018,8000122031,7348.00,Revenue,Redacted Personal Data,Direct Payments
Peterborough City Council,Adults,Independent Sector Placements,Social Services,01/08/2018,8000122032,969.76,Revenue,Redacted Personal Data,Direct Payments
Peterborough City Council,Adults,Independent Sector Placements,Social Services,01/08/2018,8000122033,1426.52,Revenue,Redacted Personal Data,Direct Payments
Peterborough City Council,Adults,Independent Sector Placements,Social Services,01/08/2018,8000122035,1107.60,Revenue,Redacted Personal Data,Direct Payments
Peterborough City Council,Adults,Independent Sector Placements,Social Services,01/08/2018,8000122036,795.56,Revenue,Redacted Personal Data,Direct Payments
Peterborough City Council,Adults,Independent Sector Placements,Social Services,01/08/2018,8000122037,978.40,Revenue,Redacted Personal Data,Direct Payments
Peterborough City Council,Adults,Independent Sector Placements,Social Services,01/08/2018,8000122041,2573.28,Revenue,Redacted Personal Data,Direct Payments
Peterborough City Council,Adults,Independent Sector Placements,Social Services,01/08/2018,8000122042,885.84,Revenue,Redacted Personal Data,Direct Payments
Peterborough City Council,Adults,Independent Sector Placements,Social Services,01/08/2018,8000122044,2673.20,Revenue,Redacted Personal Data,Direct Payments
Peterborough City Council,Adults,Independent Sector Placements,Social Services,01/08/2018,8000122045,1440.80,Revenue,Redacted Personal Data,Direct Payments
Peterborough City Council,Adults,Independent Sector Placements,Social Services,01/08/2018,8000122046,7151.00,Revenue,Redacted Personal Data,Direct Payments
Peterborough City Council,Adults,Independent Sector Placements,Social Services,01/08/2018,8000122047,5692.44,Revenue,Redacted Personal Data,Direct Payments
Peterborough City Council,Adults,Independent Sector Placements,Social Services,01/08/2018,8000122048,862.40,Revenue,Redacted Personal Data,Direct Payments
Peterborough City Council,Adults,Independent Sector Placements,Social Services,01/08/2018,8000122049,5237.40,Revenue,Redacted Personal Data,Direct Payments
Peterborough City Council,Adults,Independent Sector Placements,Social Services,01/08/2018,8000122051,858.40,Revenue,Redacted Personal Data,Direct Payments
Peterborough City Council,Adults,Independent Sector Placements,Social Services,01/08/2018,8000122052,658.56,Revenue,Redacted Personal Data,Direct Payments
Peterborough City Council,Adults,Independent Sector Placements,Social Services,01/08/2018,8000122053,2120.36,Revenue,Redacted Personal Data,Direct Payments
Peterborough City Council,Adults,Independent Sector Placements,Social Services,01/08/2018,8000122054,7057.56,Revenue,Redacted Personal Data,Direct Payments
Peterborough City Council,Adults,Independent Sector Placements,Social Services,01/08/2018,8000122055,2513.80,Revenue,Redacted Personal Data,Direct Payments
Peterborough City Council,Adults,Independent Sector Placements,Social Services,01/08/2018,8000122056,1397.52,Revenue,Redacted Personal Data,Direct Payments
Peterborough City Council,Adults,Independent Sector Placements,Social Services,01/08/2018,8000122058,1780.40,Revenue,Redacted Personal Data,Direct Payments
Peterborough City Council,Adults,Independent Sector Placements,Social Services,01/08/2018,8000122059,1025.32,Revenue,Redacted Personal Data,Direct Payments
Peterborough City Council,Adults,Independent Sector Placements,Social Services,01/08/2018,8000122060,1739.40,Revenue,Redacted Personal Data,Direct Payments
Peterborough City Council,Adults,Independent Sector Placements,Social Services,01/08/2018,8000122061,1596.48,Revenue,Redacted Personal Data,Direct Payments
Peterborough City Council,Adults,Independent Sector Placements,Social Services,01/08/2018,8000122062,5783.16,Revenue,Redacted Personal Data,Direct Payments
Peterborough City Council,Adults,Independent Sector Placements,Social Services,01/08/2018,8000122063,2743.64,Revenue,Redacted Personal Data,Direct Payments
Peterborough City Council,Adults,Independent Sector Placements,Social Services,01/08/2018,8000122064,1290.08,Revenue,Redacted Personal Data,Direct Payments
Peterborough City Council,Adults,Independent Sector Placements,Social Services,01/08/2018,8000122065,2576.24,Revenue,Redacted Personal Data,Direct Payments
Peterborough City Council,Adults,Independent Sector Placements,Social Services,01/08/2018,8000122067,1629.24,Revenue,Redacted Personal Data,Direct Payments
Peterborough City Council,Adults,Independent Sector Placements,Social Services,01/08/2018,8000122068,978.08,Revenue,Redacted Personal Data,Direct Payments
Peterborough City Council,Adults,Independent Sector Placements,Social Services,01/08/2018,8000122070,3045.60,Revenue,Redacted Personal Data,Direct Payments
Peterborough City Council,Adults,Independent Sector Placements,Social Services,01/08/2018,8000122071,1355.56,Revenue,Redacted Personal Data,Direct Payments
Peterborough City Council,Adults,Independent Sector Placements,Social Services,01/08/2018,8000122072,652.56,Revenue,Redacted Personal Data,Direct Payments
Peterborough City Council,Adults,Independent Sector Placements,Social Services,01/08/2018,8000122073,1340.40,Revenue,Redacted Personal Data,Direct Payments
Peterborough City Council,Adults,Independent Sector Placements,Social Services,01/08/2018,8000122074,1436.00,Revenue,Redacted Personal Data,Direct Payments
Peterborough City Council,Adults,Independent Sector Placements,Social Services,01/08/2018,8000122075,1982.44,Revenue,Redacted Personal Data,Direct Payments
Peterborough City Council,Adults,Independent Sector Placements,Social Services,01/08/2018,8000122076,2654.32,Revenue,Redacted Personal Data,Direct Payments
Peterborough City Council,Adults,Independent Sector Placements,Social Services,01/08/2018,8000122077,3762.48,Revenue,Redacted Personal Data,Direct Payments
Peterborough City Council,Adults,Independent Sector Placements,Social Services,01/08/2018,8000122078,1625.00,Revenue,Redacted Personal Data,Direct Payments
Peterborough City Council,Adults,Independent Sector Placements,Social Services,01/08/2018,8000122079,2585.52,Revenue,Redacted Personal Data,Direct Payments
Peterborough City Council,Adults,Independent Sector Placements,Social Services,01/08/2018,8000122080,2258.36,Revenue,Redacted Personal Data,Direct Payments
Peterborough City Council,Adults,Independent Sector Placements,Social Services,01/08/2018,8000122083,503.36,Revenue,Redacted Personal Data,Direct Payments
Peterborough City Council,Adults,Independent Sector Placements,Social Services,01/08/2018,8000122084,705.36,Revenue,Redacted Personal Data,Direct Payments
Peterborough City Council,Adults,Independent Sector Placements,Social Services,01/08/2018,8000122085,648.08,Revenue,Redacted Personal Data,Direct Payments
Peterborough City Council,Adults,Independent Sector Placements,Social Services,01/08/2018,8000122086,1533.00,Revenue,Redacted Personal Data,Direct Payments
Peterborough City Council,Adults,Independent Sector Placements,Social Services,01/08/2018,8000122087,883.36,Revenue,Redacted Personal Data,Direct Payments
Peterborough City Council,Adults,Independent Sector Placements,Social Services,01/08/2018,8000122089,1090.80,Revenue,Redacted Personal Data,Direct Payments
Peterborough City Council,Adults,Independent Sector Placements,Social Services,01/08/2018,8000122090,2176.00,Revenue,Redacted Personal Data,Direct Payments
Peterborough City Council,Adults,Independent Sector Placements,Social Services,01/08/2018,8000122091,1394.48,Revenue,Redacted Personal Data,Direct Payments
Peterborough City Council,Adults,Independent Sector Placements,Social Services,01/08/2018,8000122093,1716.32,Revenue,Redacted Personal Data,Direct Payments
Peterborough City Council,Adults,Independent Sector Placements,Social Services,01/08/2018,8000122094,596.96,Revenue,Redacted Personal Data,Direct Payments
Peterborough City Council,Adults,Independent Sector Placements,Social Services,01/08/2018,8000122095,541.40,Revenue,Redacted Personal Data,Direct Payments
Peterborough City Council,Adults,Independent Sector Placements,Social Services,01/08/2018,8000122097,1735.40,Revenue,Redacted Personal Data,Direct Payments
Peterborough City Council,Adults,Independent Sector Placements,Social Services,01/08/2018,8000122100,530.84,Revenue,Redacted Personal Data,Direct Payments
Peterborough City Council,Adults,Independent Sector Placements,Social Services,01/08/2018,8000122101,709.80,Revenue,Redacted Personal Data,Direct Payments
Peterborough City Council,Adults,Independent Sector Placements,Social Services,01/08/2018,8000122102,1341.44,Revenue,Redacted Personal Data,Direct Payments
Peterborough City Council,Adults,Independent Sector Placements,Social Services,01/08/2018,8000122105,1562.00,Revenue,Redacted Personal Data,Direct Payments
Peterborough City Council,Adults,Independent Sector Placements,Social Services,01/08/2018,8000122106,815.08,Revenue,Redacted Personal Data,Direct Payments
Peterborough City Council,Adults,Independent Sector Placements,Social Services,01/08/2018,8000122107,897.60,Revenue,Redacted Personal Data,Direct Payments
Peterborough City Council,Adults,Independent Sector Placements,Social Services,01/08/2018,8000122109,2310.00,Revenue,Redacted Personal Data,Direct Payments
Peterborough City Council,Adults,Independent Sector Placements,Social Services,01/08/2018,8000122110,760.88,Revenue,Redacted Personal Data,Direct Payments
Peterborough City Council,Adults,Independent Sector Placements,Social Services,01/08/2018,8000122111,725.08,Revenue,Redacted Personal Data,Direct Payments
Peterborough City Council,Adults,Independent Sector Placements,Social Services,01/08/2018,8000122112,890.48,Revenue,Redacted Personal Data,Direct Payments
Peterborough City Council,Adults,Independent Sector Placements,Social Services,01/08/2018,8000122113,3222.56,Revenue,Redacted Personal Data,Direct Payments
Peterborough City Council,Adults,Independent Sector Placements,Social Services,01/08/2018,8000122115,1149.60,Revenue,Redacted Personal Data,Direct Payments
Peterborough City Council,Adults,Independent Sector Placements,Social Services,01/08/2018,8000122118,2737.40,Revenue,Redacted Personal Data,Direct Payments
Peterborough City Council,Adults,Independent Sector Placements,Social Services,01/08/2018,8000122119,1678.12,Revenue,Redacted Personal Data,Direct Payments
Peterborough City Council,Adults,Independent Sector Placements,Social Services,01/08/2018,8000122120,3528.84,Revenue,Redacted Personal Data,Direct Payments
Peterborough City Council,Adults,Independent Sector Placements,Social Services,01/08/2018,8000122121,1038.48,Revenue,Redacted Personal Data,Direct Payments
Peterborough City Council,Adults,Independent Sector Placements,Social Services,01/08/2018,8000122122,2832.56,Revenue,Redacted Personal Data,Direct Payments
Peterborough City Council,Adults,Independent Sector Placements,Social Services,01/08/2018,8000122123,780.72,Revenue,Redacted Personal Data,Direct Payments
Peterborough City Council,Adults,Independent Sector Placements,Social Services,01/08/2018,8000122124,1979.16,Revenue,Redacted Personal Data,Direct Payments
Peterborough City Council,Adults,Independent Sector Placements,Social Services,01/08/2018,8000122125,5668.24,Revenue,Redacted Personal Data,Direct Payments
Peterborough City Council,Adults,Independent Sector Placements,Social Services,01/08/2018,8000122126,1612.08,Revenue,Redacted Personal Data,Direct Payments
Peterborough City Council,Adults,Independent Sector Placements,Social Services,01/08/2018,8000122127,4944.48,Revenue,Redacted Personal Data,Direct Payments
Peterborough City Council,Adults,Independent Sector Placements,Social Services,01/08/2018,8000122128,5231.44,Revenue,Redacted Personal Data,Direct Payments
Peterborough City Council,Adults,Independent Sector Placements,Social Services,01/08/2018,8000122129,6292.08,Revenue,Redacted Personal Data,Direct Payments
Peterborough City Council,Adults,Independent Sector Placements,Social Services,01/08/2018,8000122130,1604.60,Revenue,Redacted Personal Data,Direct Payments
Peterborough City Council,Adults,Independent Sector Placements,Social Services,01/08/2018,8000122132,7350.08,Revenue,Redacted Personal Data,Direct Payments
Peterborough City Council,Adults,Independent Sector Placements,Social Services,01/08/2018,8000122134,3293.68,Revenue,Redacted Personal Data,Direct Payments
Peterborough City Council,Adults,Independent Sector Placements,Social Services,01/08/2018,8000122135,952.00,Revenue,Redacted Personal Data,Direct Payments
Peterborough City Council,Adults,Independent Sector Placements,Social Services,01/08/2018,8000122138,2608.68,Revenue,Redacted Personal Data,Direct Payments
Peterborough City Council,Adults,Independent Sector Placements,Social Services,01/08/2018,8000122139,1748.00,Revenue,Redacted Personal Data,Direct Payments
Peterborough City Council,Adults,Independent Sector Placements,Social Services,01/08/2018,8000122140,1416.64,Revenue,Redacted Personal Data,Direct Payments
Peterborough City Council,Adults,Independent Sector Placements,Social Services,01/08/2018,8000122141,1167.92,Revenue,Redacted Personal Data,Direct Payments
Peterborough City Council,Adults,Independent Sector Placements,Social Services,01/08/2018,8000122142,2278.96,Revenue,Redacted Personal Data,Direct Payments
Peterborough City Council,Adults,Independent Sector Placements,Social Services,01/08/2018,8000122143,2184.20,Revenue,Redacted Personal Data,Direct Payments
Peterborough City Council,Adults,Independent Sector Placements,Social Services,01/08/2018,8000122144,2381.88,Revenue,Redacted Personal Data,Direct Payments
Peterborough City Council,Adults,Independent Sector Placements,Social Services,01/08/2018,8000122146,1250.84,Revenue,Redacted Personal Data,Direct Payments
Peterborough City Council,Adults,Independent Sector Placements,Social Services,01/08/2018,8000122148,777.20,Revenue,Redacted Personal Data,Direct Payments
Peterborough City Council,Adults,Independent Sector Placements,Social Services,01/08/2018,8000122149,773.28,Revenue,Redacted Personal Data,Direct Payments
Peterborough City Council,Adults,Independent Sector Placements,Social Services,01/08/2018,8000122150,762.48,Revenue,Redacted Personal Data,Direct Payments
Peterborough City Council,Adults,Independent Sector Placements,Social Services,01/08/2018,8000122151,576.00,Revenue,Redacted Personal Data,Direct Payments
Peterborough City Council,Adults,Independent Sector Placements,Social Services,01/08/2018,8000122152,8586.48,Revenue,Redacted Personal Data,Direct Payments
Peterborough City Council,Adults,Independent Sector Placements,Social Services,01/08/2018,8000122153,914.84,Revenue,Redacted Personal Data,Direct Payments
Peterborough City Council,Adults,Independent Sector Placements,Social Services,01/08/2018,8000122154,6439.28,Revenue,Redacted Personal Data,Direct Payments
Peterborough City Council,Adults,Independent Sector Placements,Social Services,01/08/2018,8000122155,2400.88,Revenue,Redacted Personal Data,Direct Payments
Peterborough City Council,Adults,Independent Sector Placements,Social Services,01/08/2018,8000122156,1119.92,Revenue,Redacted Personal Data,Direct Payments
Peterborough City Council,Adults,Independent Sector Placements,Social Services,01/08/2018,8000122157,1205.16,Revenue,Redacted Personal Data,Direct Payments
Peterborough City Council,Adults,Independent Sector Placements,Social Services,01/08/2018,8000122158,9329.88,Revenue,Redacted Personal Data,Direct Payments
Peterborough City Council,Adults,Independent Sector Placements,Social Services,01/08/2018,8000122159,3618.48,Revenue,Redacted Personal Data,Direct Payments
Peterborough City Council,Adults,Independent Sector Placements,Social Services,01/08/2018,8000122162,1367.28,Revenue,Redacted Personal Data,Direct Payments
Peterborough City Council,Adults,Independent Sector Placements,Social Services,01/08/2018,8000122163,3131.20,Revenue,Redacted Personal Data,Direct Payments
Peterborough City Council,Adults,Independent Sector Placements,Social Services,01/08/2018,8000122164,1266.48,Revenue,Redacted Personal Data,Direct Payments
Peterborough City Council,Adults,Independent Sector Placements,Social Services,01/08/2018,8000122165,6338.00,Revenue,Redacted Personal Data,Direct Payments
Peterborough City Council,Adults,Independent Sector Placements,Social Services,01/08/2018,8000122166,716.80,Revenue,Redacted Personal Data,Direct Payments
Peterborough City Council,Adults,Independent Sector Placements,Social Services,01/08/2018,8000122167,10074.40,Revenue,Redacted Personal Data,Direct Payments
Peterborough City Council,Adults,Independent Sector Placements,Social Services,01/08/2018,8000122169,1366.96,Revenue,Redacted Personal Data,Direct Payments
Peterborough City Council,Adults,Independent Sector Placements,Social Services,01/08/2018,8000122170,2342.76,Revenue,Redacted Personal Data,Direct Payments
Peterborough City Council,Adults,Independent Sector Placements,Social Services,01/08/2018,8000122171,1338.48,Revenue,Redacted Personal Data,Direct Payments
Peterborough City Council,Adults,Independent Sector Placements,Social Services,01/08/2018,8000122172,3908.60,Revenue,Redacted Personal Data,Direct Payments
Peterborough City Council,Adults,Independent Sector Placements,Social Services,01/08/2018,8000122173,6801.88,Revenue,Redacted Personal Data,Direct Payments
Peterborough City Council,Adults,Independent Sector Placements,Social Services,01/08/2018,8000122174,4758.48,Revenue,Redacted Personal Data,Direct Payments
Peterborough City Council,Adults,Independent Sector Placements,Social Services,01/08/2018,8000122175,1303.32,Revenue,Redacted Personal Data,Direct Payments
Peterborough City Council,Adults,Independent Sector Placements,Social Services,01/08/2018,8000122176,744.00,Revenue,Redacted Personal Data,Direct Payments
Peterborough City Council,Adults,Independent Sector Placements,Social Services,01/08/2018,8000122177,7046.48,Revenue,Redacted Personal Data,Direct Payments
Peterborough City Council,Adults,Independent Sector Placements,Social Services,01/08/2018,8000122178,2086.20,Revenue,Redacted Personal Data,Direct Payments
Peterborough City Council,Adults,Independent Sector Placements,Social Services,01/08/2018,8000122180,6782.07,Revenue,Redacted Personal Data,Direct Payments
Peterborough City Council,Adults,Independent Sector Placements,Social Services,01/08/2018,8000122181,6488.96,Revenue,Redacted Personal Data,Direct Payments
Peterborough City Council,Adults,Independent Sector Placements,Social Services,01/08/2018,8000122182,1025.08,Revenue,Redacted Personal Data,Direct Payments
Peterborough City Council,Adults,Independent Sector Placements,Social Services,01/08/2018,8000122184,3022.36,Revenue,Redacted Personal Data,Direct Payments
Peterborough City Council,Adults,Independent Sector Placements,Social Services,01/08/2018,8000122185,12746.84,Revenue,Redacted Personal Data,Direct Payments
Peterborough City Council,Adults,Independent Sector Placements,Social Services,01/08/2018,8000122186,6855.28,Revenue,Redacted Personal Data,Direct Payments
Peterborough City Council,Adults,Independent Sector Placements,Social Services,01/08/2018,8000122188,4176.40,Revenue,Redacted Personal Data,Direct Payments
Peterborough City Council,Adults,Independent Sector Placements,Social Services,01/08/2018,8000122190,738.44,Revenue,Redacted Personal Data,Direct Payments
Peterborough City Council,Adults,Independent Sector Placements,Social Services,01/08/2018,8000122191,716.08,Revenue,Redacted Personal Data,Direct Payments
Peterborough City Council,Adults,Independent Sector Placements,Social Services,01/08/2018,8000122192,2288.52,Revenue,Redacted Personal Data,Direct Payments
Peterborough City Council,Adults,Independent Sector Placements,Social Services,01/08/2018,8000122193,648.00,Revenue,Redacted Personal Data,Direct Payments
Peterborough City Council,Adults,Independent Sector Placements,Social Services,01/08/2018,8000122194,2370.48,Revenue,Redacted Personal Data,Direct Payments
Peterborough City Council,Adults,Independent Sector Placements,Social Services,01/08/2018,8000122195,800.00,Revenue,Redacted Personal Data,Direct Payments
Peterborough City Council,Adults,Independent Sector Placements,Social Services,01/08/2018,8000122197,634.88,Revenue,Redacted Personal Data,Direct Payments
Peterborough City Council,Adults,Independent Sector Placements,Social Services,01/08/2018,8000122198,3024.48,Revenue,Redacted Personal Data,Direct Payments
Peterborough City Council,Adults,Independent Sector Placements,Social Services,01/08/2018,8000122199,1170.48,Revenue,Redacted Personal Data,Direct Payments
Peterborough City Council,Adults,Independent Sector Placements,Social Services,01/08/2018,8000122200,4208.48,Revenue,Redacted Personal Data,Direct Payments
Peterborough City Council,Adults,Independent Sector Placements,Social Services,01/08/2018,8000122201,1724.60,Revenue,Redacted Personal Data,Direct Payments
Peterborough City Council,Adults,Independent Sector Placements,Social Services,01/08/2018,8000122202,574.40,Revenue,Redacted Personal Data,Direct Payments
Peterborough City Council,Adults,Independent Sector Placements,Social Services,01/08/2018,8000122203,5569.12,Revenue,Redacted Personal Data,Direct Payments
Peterborough City Council,Adults,Independent Sector Placements,Social Services,01/08/2018,8000122204,874.16,Revenue,Redacted Personal Data,Direct Payments
Peterborough City Council,Adults,Independent Sector Placements,Social Services,01/08/2018,8000122205,1818.40,Revenue,Redacted Personal Data,Direct Payments
Peterborough City Council,Adults,Independent Sector Placements,Social Services,01/08/2018,8000122208,1002.48,Revenue,Redacted Personal Data,Direct Payments
Peterborough City Council,Adults,Independent Sector Placements,Social Services,01/08/2018,8000122209,669.12,Revenue,Redacted Personal Data,Direct Payments
Peterborough City Council,Adults,Independent Sector Placements,Social Services,01/08/2018,8000122210,7384.30,Revenue,Redacted Personal Data,Direct Payments
Peterborough City Council,Adults,Independent Sector Placements,Social Services,01/08/2018,8000122211,606.48,Revenue,Redacted Personal Data,Direct Payments
Peterborough City Council,Adults,Independent Sector Placements,Social Services,01/08/2018,8000122212,5731.64,Revenue,Redacted Personal Data,Direct Payments
Peterborough City Council,Adults,Independent Sector Placements,Social Services,01/08/2018,8000122213,1903.48,Revenue,Redacted Personal Data,Direct Payments
Peterborough City Council,Adults,Independent Sector Placements,Social Services,01/08/2018,8000122214,8634.00,Revenue,Redacted Personal Data,Direct Payments
Peterborough City Council,Adults,Independent Sector Placements,Social Services,01/08/2018,8000122215,5559.46,Revenue,Redacted Personal Data,Direct Payments
Peterborough City Council,Adults,Independent Sector Placements,Social Services,01/08/2018,8000122216,627.48,Revenue,Redacted Personal Data,Direct Payments
Peterborough City Council,Adults,Independent Sector Placements,Social Services,01/08/2018,8000122217,692.12,Revenue,Redacted Personal Data,Direct Payments
Peterborough City Council,Adults,Independent Sector Placements,Social Services,01/08/2018,8000122218,1348.84,Revenue,Redacted Personal Data,Direct Payments
Peterborough City Council,Adults,Independent Sector Placements,Social Services,01/08/2018,8000122220,1326.48,Revenue,Redacted Personal Data,Direct Payments
Peterborough City Council,Adults,Independent Sector Placements,Social Services,01/08/2018,8000122221,2330.48,Revenue,Redacted Personal Data,Direct Payments
Peterborough City Council,Adults,Independent Sector Placements,Social Services,01/08/2018,8000122224,1960.00,Revenue,Redacted Personal Data,Direct Payments
Peterborough City Council,Adults,Independent Sector Placements,Social Services,01/08/2018,8000122226,675.59,Revenue,Redacted Personal Data,Direct Payments
Peterborough City Council,Adults,Independent Sector Placements,Social Services,01/08/2018,8000122227,1634.76,Revenue,Redacted Personal Data,Direct Payments
Peterborough City Council,Adults,Independent Sector Placements,Social Services,01/08/2018,8000122228,3089.98,Revenue,Redacted Personal Data,Direct Payments
Peterborough City Council,Adults,Independent Sector Placements,Social Services,01/08/2018,8000122229,3307.84,Revenue,Redacted Personal Data,Direct Payments
Peterborough City Council,Adults,Independent Sector Placements,Social Services,01/08/2018,8000122230,3049.68,Revenue,Redacted Personal Data,Direct Payments
Peterborough City Council,Adults,Independent Sector Placements,Social Services,01/08/2018,8000122231,807.88,Revenue,Redacted Personal Data,Direct Payments
Peterborough City Council,Adults,Independent Sector Placements,Social Services,01/08/2018,8000122233,540.00,Revenue,Redacted Personal Data,Direct Payments
Peterborough City Council,Adults,Independent Sector Placements,Social Services,01/08/2018,8000122234,1517.68,Revenue,Redacted Personal Data,Direct Payments
Peterborough City Council,Adults,Independent Sector Placements,Social Services,01/08/2018,8000122236,822.72,Revenue,Redacted Personal Data,Direct Payments
Peterborough City Council,Adults,Independent Sector Placements,Social Services,01/08/2018,8000122237,2847.36,Revenue,Redacted Personal Data,Direct Payments
Peterborough City Council,Adults,Independent Sector Placements,Social Services,01/08/2018,8000122238,582.24,Revenue,Redacted Personal Data,Direct Payments
Peterborough City Council,Adults,Independent Sector Placements,Social Services,01/08/2018,8000122239,798.48,Revenue,Redacted Personal Data,Direct Payments
Peterborough City Council,Adults,Independent Sector Placements,Social Services,01/08/2018,8000122243,1078.92,Revenue,Redacted Personal Data,Direct Payments
Peterborough City Council,Adults,Independent Sector Placements,Social Services,01/08/2018,8000122244,805.48,Revenue,Redacted Personal Data,Direct Payments
Peterborough City Council,Adults,Independent Sector Placements,Social Services,01/08/2018,8000122245,570.48,Revenue,Redacted Personal Data,Direct Payments
Peterborough City Council,Adults,Independent Sector Placements,Social Services,01/08/2018,8000122246,10066.88,Revenue,Redacted Personal Data,Direct Payments
Peterborough City Council,Adults,Independent Sector Placements,Social Services,01/08/2018,8000122247,1244.40,Revenue,Redacted Personal Data,Direct Payments
Peterborough City Council,Adults,Independent Sector Placements,Social Services,01/08/2018,8000122248,1565.68,Revenue,Redacted Personal Data,Direct Payments
Peterborough City Council,Adults,Independent Sector Placements,Social Services,01/08/2018,8000122249,864.28,Revenue,Redacted Personal Data,Direct Payments
Peterborough City Council,Adults,Independent Sector Placements,Social Services,01/08/2018,8000122251,1401.88,Revenue,Redacted Personal Data,Direct Payments
Peterborough City Council,Adults,Independent Sector Placements,Social Services,01/08/2018,8000122252,1295.16,Revenue,Redacted Personal Data,Direct Payments
Peterborough City Council,Adults,Independent Sector Placements,Social Services,01/08/2018,8000122255,2235.60,Revenue,Redacted Personal Data,Direct Payments
Peterborough City Council,Adults,Independent Sector Placements,Social Services,01/08/2018,8000122257,2481.56,Revenue,Redacted Personal Data,Direct Payments
Peterborough City Council,Adults,Independent Sector Placements,Social Services,01/08/2018,8000122258,888.40,Revenue,Redacted Personal Data,Direct Payments
Peterborough City Council,Adults,Independent Sector Placements,Social Services,01/08/2018,8000122259,2060.88,Revenue,Redacted Personal Data,Direct Payments
Peterborough City Council,Adults,Independent Sector Placements,Social Services,01/08/2018,8000122260,2644.72,Revenue,Redacted Personal Data,Direct Payments
Peterborough City Council,Adults,Independent Sector Placements,Social Services,01/08/2018,8000122261,921.40,Revenue,Redacted Personal Data,Direct Payments
Peterborough City Council,Adults,Independent Sector Placements,Social Services,01/08/2018,8000122262,1394.20,Revenue,Redacted Personal Data,Direct Payments
Peterborough City Council,Adults,Independent Sector Placements,Social Services,01/08/2018,8000122264,2475.80,Revenue,Redacted Personal Data,Direct Payments
Peterborough City Council,Adults,Independent Sector Placements,Social Services,01/08/2018,8000122267,1352.96,Revenue,Redacted Personal Data,Direct Payments
Peterborough City Council,Adults,Independent Sector Placements,Social Services,01/08/2018,8000122268,1208.64,Revenue,Redacted Personal Data,Direct Payments
Peterborough City Council,Adults,Independent Sector Placements,Social Services,01/08/2018,8000122270,1435.56,Revenue,Redacted Personal Data,Direct Payments
Peterborough City Council,Adults,Independent Sector Placements,Social Services,01/08/2018,8000122271,1208.64,Revenue,Redacted Personal Data,Direct Payments
Peterborough City Council,Adults,Independent Sector Placements,Social Services,01/08/2018,8000122274,3834.48,Revenue,Redacted Personal Data,Direct Payments
Peterborough City Council,Adults,Independent Sector Placements,Social Services,01/08/2018,8000122275,1208.64,Revenue,Redacted Personal Data,Direct Payments
Peterborough City Council,Adults,Independent Sector Placements,Social Services,01/08/2018,8000122276,744.00,Revenue,Redacted Personal Data,Direct Payments
Peterborough City Council,Adults,Independent Sector Placements,Social Services,01/08/2018,8000122277,2280.00,Revenue,Redacted Personal Data,Direct Payments
Peterborough City Council,Adults,Independent Sector Placements,Social Services,01/08/2018,8000122278,1826.88,Revenue,Redacted Personal Data,Direct Payments
Peterborough City Council,Adults,Independent Sector Placements,Social Services,01/08/2018,8000122280,522.48,Revenue,Redacted Personal Data,Direct Payments
Peterborough City Council,Adults,Independent Sector Placements,Social Services,01/08/2018,8000122281,985.68,Revenue,Redacted Personal Data,Direct Payments
Peterborough City Council,Adults,Independent Sector Placements,Social Services,01/08/2018,8000122282,1448.92,Revenue,Redacted Personal Data,Direct Payments
Peterborough City Council,Adults,Independent Sector Placements,Social Services,01/08/2018,8000122283,3384.24,Revenue,Redacted Personal Data,Direct Payments
Peterborough City Council,Adults,Independent Sector Placements,Social Services,01/08/2018,8000122284,3384.24,Revenue,Redacted Personal Data,Direct Payments
Peterborough City Council,Adults,Independent Sector Placements,Social Services,01/08/2018,8000122285,4525.40,Revenue,Redacted Personal Data,Direct Payments
Peterborough City Council,Adults,Independent Sector Placements,Social Services,01/08/2018,8000122286,570.88,Revenue,Redacted Personal Data,Direct Payments
Peterborough City Council,Adults,Independent Sector Placements,Social Services,01/08/2018,8000122288,854.04,Revenue,Redacted Personal Data,Direct Payments
Peterborough City Council,Adults,Independent Sector Placements,Social Services,01/08/2018,8000122289,540.48,Revenue,Redacted Personal Data,Direct Payments
Peterborough City Council,Adults,Independent Sector Placements,Social Services,01/08/2018,8000122290,1135.00,Revenue,Redacted Personal Data,Direct Payments
Peterborough City Council,Adults,Independent Sector Placements,Social Services,01/08/2018,8000122291,1216.96,Revenue,Redacted Personal Data,Direct Payments
Peterborough City Council,Adults,Independent Sector Placements,Social Services,01/08/2018,8000122298,3864.56,Revenue,Redacted Personal Data,Direct Payments
Peterborough City Council,Adults,Independent Sector Placements,Social Services,01/08/2018,8000122300,895.12,Revenue,Redacted Personal Data,Direct Payments
Peterborough City Council,Adults,Independent Sector Placements,Social Services,01/08/2018,8000122303,3766.00,Revenue,Redacted Personal Data,Direct Payments
Peterborough City Council,Adults,Independent Sector Placements,Social Services,01/08/2018,8000122306,5414.68,Revenue,Redacted Personal Data,Direct Payments
Peterborough City Council,Adults,Independent Sector Placements,Social Services,01/08/2018,8000122307,580.80,Revenue,Redacted Personal Data,Direct Payments
Peterborough City Council,Adults,Independent Sector Placements,Social Services,01/08/2018,8000122309,720.80,Revenue,Redacted Personal Data,Direct Payments
Peterborough City Council,Adults,Independent Sector Placements,Social Services,01/08/2018,8000122310,1534.76,Revenue,Redacted Personal Data,Direct Payments
Peterborough City Council,Adults,Independent Sector Placements,Social Services,01/08/2018,8000122311,1450.72,Revenue,Redacted Personal Data,Direct Payments
Peterborough City Council,Adults,Independent Sector Placements,Social Services,01/08/2018,8000122312,2703.36,Revenue,Redacted Personal Data,Direct Payments
Peterborough City Council,Adults,Independent Sector Placements,Social Services,01/08/2018,8000122313,790.32,Revenue,Redacted Personal Data,Direct Payments
Peterborough City Council,Adults,Independent Sector Placements,Social Services,01/08/2018,8000122314,14441.76,Revenue,Redacted Personal Data,Direct Payments
Peterborough City Council,Adults,Independent Sector Placements,Social Services,01/08/2018,8000122315,1574.00,Revenue,Redacted Personal Data,Direct Payments
Peterborough City Council,Education,HTS & CSC Transport,Contract Hire and Operating Leases,01/08/2018,8000122349,1168.00,Revenue,A2B Euro Cars,Hired Transport
Peterborough City Council,Education,HTS & CSC Transport,Contract Hire and Operating Leases,01/08/2018,8000122350,1360.00,Revenue,A2B Euro Cars,Hired Transport
Peterborough City Council,Education,HTS & CSC Transport,Contract Hire and Operating Leases,01/08/2018,8000122351,1440.00,Revenue,A2B Euro Cars,Hired Transport
Peterborough City Council,Education,HTS & CSC Transport,Contract Hire and Operating Leases,01/08/2018,8000122352,1472.00,Revenue,A2B Euro Cars,Hired Transport
Peterborough City Council,Education,HTS & CSC Transport,Contract Hire and Operating Leases,01/08/2018,8000122353,640.00,Revenue,A2B Euro Cars,Hired Transport
Peterborough City Council,Education,HTS & CSC Transport,Contract Hire and Operating Leases,01/08/2018,8000122354,648.80,Revenue,A2B Euro Cars,Hired Transport
Peterborough City Council,Education,HTS & CSC Transport,Contract Hire and Operating Leases,01/08/2018,8000122355,1195.20,Revenue,A2B Euro Cars,Hired Transport
Peterborough City Council,Education,HTS & CSC Transport,Contract Hire and Operating Leases,01/08/2018,8000122356,560.00,Revenue,A2B Euro Cars,Hired Transport
Peterborough City Council,Education,HTS & CSC Transport,Contract Hire and Operating Leases,01/08/2018,8000122357,720.00,Revenue,A2B Euro Cars,Hired Transport
Peterborough City Council,Education,HTS & CSC Transport,Contract Hire and Operating Leases,01/08/2018,8000122358,866.00,Revenue,A2B Euro Cars,Hired Transport
Peterborough City Council,Education,HTS & CSC Transport,Contract Hire and Operating Leases,01/08/2018,8000122359,1570.00,Revenue,A2B Euro Cars,Hired Transport
Peterborough City Council,Education,HTS & CSC Transport,Contract Hire and Operating Leases,01/08/2018,8000122360,1899.59,Revenue,Peterborough Cars,Hired Transport
Peterborough City Council,Education,HTS & CSC Transport,Contract Hire and Operating Leases,01/08/2018,8000122361,1576.00,Revenue,Peterborough Cars,Hired Transport
Peterborough City Council,Education,HTS & CSC Transport,Contract Hire and Operating Leases,01/08/2018,8000122362,1477.60,Revenue,Peterborough Cars,Hired Transport
Peterborough City Council,Education,HTS & CSC Transport,Contract Hire and Operating Leases,01/08/2018,8000122363,1886.00,Revenue,Peterborough Cars,Hired Transport
Peterborough City Council,Education,HTS & CSC Transport,Contract Hire and Operating Leases,01/08/2018,8000122364,1321.40,Revenue,Peterborough Cars,Hired Transport
Peterborough City Council,Education,HTS & CSC Transport,Contract Hire and Operating Leases,01/08/2018,8000122365,1196.00,Revenue,Peterborough Cars,Hired Transport
Peterborough City Council,Education,HTS & CSC Transport,Contract Hire and Operating Leases,01/08/2018,8000122366,1996.80,Revenue,Peterborough Cars,Hired Transport
Peterborough City Council,Education,HTS & CSC Transport,Contract Hire and Operating Leases,01/08/2018,8000122367,1039.20,Revenue,Peterborough Cars,Hired Transport
Peterborough City Council,Education,HTS & CSC Transport,Contract Hire and Operating Leases,01/08/2018,8000122368,1197.60,Revenue,Peterborough Cars,Hired Transport
Peterborough City Council,Education,HTS & CSC Transport,Contract Hire and Operating Leases,01/08/2018,8000122369,1346.40,Revenue,Peterborough Cars,Hired Transport
Peterborough City Council,Education,HTS & CSC Transport,Contract Hire and Operating Leases,01/08/2018,8000122370,1479.20,Revenue,Peterborough Cars,Hired Transport
Peterborough City Council,Education,HTS & CSC Transport,Contract Hire and Operating Leases,01/08/2018,8000122371,1175.72,Revenue,Peterborough Cars,Hired Transport
Peterborough City Council,Education,HTS & CSC Transport,Contract Hire and Operating Leases,01/08/2018,8000122373,1986.10,Revenue,Marks Passenger Services Ltd,Hired Transport
Peterborough City Council,Education,HTS & CSC Transport,Contract Hire and Operating Leases,01/08/2018,8000122374,3649.60,Revenue,Marks Passenger Services Ltd,Hired Transport
Peterborough City Council,Adults,Independent Sector Placements,Social Services,01/08/2018,8000122580,2934.03,Revenue,Redacted Personal Data,Direct Payments
Peterborough City Council,Corporate,Corporate,Non Revenue,01/08/2018,8000124306,208763.40,Capital,Weightmans LLP,Land & Building Acquisition
Peterborough City Council,Children's & Safeguarding,Commissioning - CSC,Third Party Payments,01/08/2018,8000124306,531035.67,Revenue,IAS TACT,Third Party Payments - Contract
Peterborough City Council,Corporate Property,Office Accomodation,Third Party Payments,02/08/2018,8000124306,599519.00,Revenue,HMRC,Taxes
Peterborough City Council,Corporate,Corporate,Non Revenue,02/08/2018,8000124306,920.00,Capital,Weightmans LLP,Land & Building Acquisition
Peterborough City Council,Adults,Block Contracts,Third Party Payments,03/08/2018,30179633,7140.00,Revenue,Hales Group Ltd,Third Party Payments - Contract
Peterborough City Council,Adults,Block Contracts,Third Party Payments,03/08/2018,30182726,7140.00,Revenue,Hales Group Ltd,Third Party Payments - Contract
Peterborough City Council,ICT,ICT,Services,03/08/2018,30186012,4825.00,Revenue,Idox Software Ltd,Computer Software
Peterborough City Council,Adults,Block Contracts,Third Party Payments,03/08/2018,30186124,5664.40,Revenue,Axiom Housing Association Ltd,Third Party Payments - Contract
Peterborough City Council,Adults,Block Contracts,Third Party Payments,03/08/2018,30186126,1999.20,Revenue,Axiom Housing Association Ltd,Third Party Payments - Contract
Peterborough City Council,Adults,Block Contracts,Third Party Payments,03/08/2018,30186127,5664.40,Revenue,Axiom Housing Association Ltd,Third Party Payments - Contract
Peterborough City Council,Adults,Block Contracts,Third Party Payments,03/08/2018,30186128,1999.20,Revenue,Axiom Housing Association Ltd,Third Party Payments - Contract
Peterborough City Council,Adults,Block Contracts,Third Party Payments,03/08/2018,30186129,5664.40,Revenue,Axiom Housing Association Ltd,Third Party Payments - Contract
Peterborough City Council,Adults,Block Contracts,Third Party Payments,03/08/2018,30186130,1999.20,Revenue,Axiom Housing Association Ltd,Third Party Payments - Contract
Peterborough City Council,Marketing & Communications,Marketing & Communications,Services,03/08/2018,30186185,1050.00,Revenue,Fastsigns (Peterborough) Ltd,Advertising
Peterborough City Council,Education,School Standards & Effectiveness,Services,03/08/2018,30186193,1250.00,Revenue,Peterborough Learning and Teaching Associates,Consultants Fees
Peterborough City Council,Adults,Strategic Commissioning - Management,Agency Staff,03/08/2018,30186197,13650.00,Revenue,Badenoch & Clark Ltd,External Temporary Staff
Peterborough City Council,Adults,Independent Sector Placements,Services,03/08/2018,30186217,920.44,Revenue,Craegmoor Priory Group,Residential Care
Peterborough City Council,Adults,Independent Sector Placements,Services,03/08/2018,30186218,3121.20,Revenue,Craegmoor Priory Group,Residential Care
Peterborough City Council,Adults,Independent Sector Placements,Services,03/08/2018,30186220,5634.36,Revenue,Craegmoor Priory Group,Residential Care
Peterborough City Council,Adults,Independent Sector Placements,Services,03/08/2018,30186222,4756.00,Revenue,Craegmoor Priory Group,Residential Care
Peterborough City Council,Children's & Safeguarding,Children's Social Care,Agency Staff,03/08/2018,30186236,1406.00,Revenue,NonStop Recruitment Ltd,External Temporary Staff
Peterborough City Council,Adults,Independent Sector Placements,Services,03/08/2018,30186247,4531.40,Revenue,Craegmoor Priory Group,Residential Care
Peterborough City Council,Adults,Independent Sector Placements,Services,03/08/2018,30186249,4454.84,Revenue,Craegmoor Priory Group,Residential Care
Peterborough City Council,HR,HR,Services,03/08/2018,30186264,877.90,Revenue,Heales Health Services Ltd,Consultants Fees
Peterborough City Council,Corporate,Corporate,Non Revenue,03/08/2018,30186455,42120.00,Balance Sheet,Lidl UK GmbH,Refunds
Peterborough City Council,Adults,Independent Sector Placements,Services,03/08/2018,30186534,1701.72,Revenue,GCH (North London) Ltd - Tudors,Residential Care
Peterborough City Council,Adults,Independent Sector Placements,Services,03/08/2018,30186535,1269.48,Revenue,GCH (North London) Ltd - Tudors,Residential Care
Peterborough City Council,Adults,Independent Sector Placements,Services,03/08/2018,30186536,1379.20,Revenue,GCH (North London) Ltd - Tudors,Residential Care
Peterborough City Council,Adults,Independent Sector Placements,Services,03/08/2018,30186540,1114.68,Revenue,GCH (North London) Ltd - Tudors,Residential Care
Peterborough City Council,Adults,Independent Sector Placements,Services,03/08/2018,30186542,1273.48,Revenue,GCH (North London) Ltd - Tudors,Residential Care
Peterborough City Council,Adults,Independent Sector Placements,Services,03/08/2018,30186550,896.00,Revenue,Sahara Community Care Services Limited,Home Care
Peterborough City Council,Adults,Independent Sector Placements,Services,03/08/2018,30186578,980.00,Revenue,Sahara Community Care Services Limited,Home Care
Peterborough City Council,Adults,Independent Sector Placements,Services,03/08/2018,30186584,2352.00,Revenue,Sahara Community Care Services Limited,Home Care
Peterborough City Council,Adults,Independent Sector Placements,Services,03/08/2018,30186586,2744.00,Revenue,Sahara Community Care Services Limited,Home Care
Peterborough City Council,Adults,Independent Sector Placements,Services,03/08/2018,30186587,738.50,Revenue,Sahara Community Care Services Limited,Home Care
Peterborough City Council,Adults,Independent Sector Placements,Services,03/08/2018,30186593,686.00,Revenue,Sahara Community Care Services Limited,Home Care
Peterborough City Council,Adults,Independent Sector Placements,Services,03/08/2018,30186603,1176.00,Revenue,Sahara Community Care Services Limited,Home Care
Peterborough City Council,Adults,Independent Sector Placements,Services,03/08/2018,30186604,602.00,Revenue,Sahara Community Care Services Limited,Home Care
Peterborough City Council,Adults,Independent Sector Placements,Services,03/08/2018,30186608,525.00,Revenue,Sahara Community Care Services Limited,Home Care
Peterborough City Council,Adults,Independent Sector Placements,Services,03/08/2018,30186610,1078.00,Revenue,Sahara Community Care Services Limited,Home Care
Peterborough City Council,Adults,Independent Sector Placements,Services,03/08/2018,30186611,896.00,Revenue,Sahara Community Care Services Limited,Home Care
Peterborough City Council,Adults,Independent Sector Placements,Services,03/08/2018,30186614,532.00,Revenue,Sahara Community Care Services Limited,Home Care
Peterborough City Council,Adults,Independent Sector Placements,Services,03/08/2018,30186615,1176.00,Revenue,Sahara Community Care Services Limited,Home Care
Peterborough City Council,Commissioning and Commercial Operations,Clare Lodge,Agency Staff,03/08/2018,30186650,848.00,Revenue,Wrixon Care Services,External Temporary Staff
Peterborough City Council,Commissioning and Commercial Operations,Clare Lodge,Agency Staff,03/08/2018,30186661,1448.00,Revenue,Wrixon Care Services,External Temporary Staff
Peterborough City Council,Adults,Independent Sector Placements,Services,03/08/2018,30186678,1806.21,Revenue,Hales Group Ltd,Home Care
Peterborough City Council,Adults,Independent Sector Placements,Services,03/08/2018,30186679,952.00,Revenue,Sahara Community Care Services Limited,Home Care
Peterborough City Council,Commissioning and Commercial Operations,Clare Lodge,Agency Staff,03/08/2018,30186732,1312.00,Revenue,Wrixon Care Services,External Temporary Staff
Peterborough City Council,Commissioning and Commercial Operations,Clare Lodge,Agency Staff,03/08/2018,30186733,1304.00,Revenue,Wrixon Care Services,External Temporary Staff
Peterborough City Council,Adults,Independent Sector Placements,Services,03/08/2018,30186844,7966.75,Revenue,NEW BOUNDARIES COMMUNITY SERVICES LTD,Residential Care
Peterborough City Council,Adults,Block Contracts,Third Party Payments,03/08/2018,30186897,2152.08,Revenue,Hales Group Ltd,Third Party Payments - Contract
Peterborough City Council,Adults,Block Contracts,Third Party Payments,03/08/2018,30186983,6487.88,Revenue,Hales Group Ltd,Third Party Payments - Contract
Peterborough City Council,Adults,Block Contracts,Third Party Payments,03/08/2018,30187180,-7140.00,Revenue,Hales Group Ltd,Third Party Payments - Contract
Peterborough City Council,Adults,Block Contracts,Third Party Payments,03/08/2018,30187183,-2353.68,Revenue,Hales Group Ltd,Third Party Payments - Contract
Peterborough City Council,Adults,Block Contracts,Third Party Payments,03/08/2018,30187309,2152.08,Revenue,Hales Group Ltd,Third Party Payments - Contract
Peterborough City Council,ICT,ICT,Services,03/08/2018,30187428,7200.58,Revenue,Capita Business Services Ltd,Computer Software
Peterborough City Council,Peterborough Serco Strategic Partnership,PSSP Retained Services,Services,03/08/2018,30187616,1908.93,Revenue,Whistl UK Ltd,Postage
Peterborough City Council,Adults,Independent Sector Placements,Services,03/08/2018,30187670,4559.00,Revenue,Voyage,Home Care
Peterborough City Council,Westcombe Engineering,Westcombe Engineering,"Tools, Equipment, Furniture & Materials",03/08/2018,30187691,629.76,Revenue,Barron Clark Castings Ltd,Items For Resale
Peterborough City Council,Corporate,Corporate,Non Revenue,03/08/2018,30187692,1709.74,Capital,British Telecom PLC,Building And Site Works
Peterborough City Council,Westcombe Engineering,Westcombe Engineering,"Tools, Equipment, Furniture & Materials",03/08/2018,30187693,718.96,Revenue,Barron Clark Castings Ltd,Items For Resale
Peterborough City Council,Westcombe Engineering,Westcombe Engineering,"Tools, Equipment, Furniture & Materials",03/08/2018,30187694,914.80,Revenue,Barron Clark Castings Ltd,Items For Resale
Peterborough City Council,Westcombe Engineering,Westcombe Engineering,"Tools, Equipment, Furniture & Materials",03/08/2018,30187697,581.50,Revenue,Barron Clark Castings Ltd,Items For Resale
Peterborough City Council,Development and Construction,Planning Compliance,Agency Staff,03/08/2018,30187823,1060.68,Revenue,Reed Specialist Recruitment Limited,External Temporary Staff
Peterborough City Council,Development and Construction,Development Management,Agency Staff,03/08/2018,30187832,1000.21,Revenue,Reed Specialist Recruitment Limited,External Temporary Staff
Peterborough City Council,Adults,Block Contracts,Third Party Payments,03/08/2018,30187889,6487.88,Revenue,Hales Group Ltd,Third Party Payments - Contract
Peterborough City Council,Adults,Block Contracts,Third Party Payments,03/08/2018,30187912,2318.36,Revenue,Park Vista Care Home,Third Party Payments - Contract
Peterborough City Council,Adults,Block Contracts,Third Party Payments,03/08/2018,30188030,-7140.00,Revenue,Hales Group Ltd,Third Party Payments - Contract
Peterborough City Council,Adults,Independent Sector Placements,Services,03/08/2018,30188070,-8614.29,Revenue,Hales Group Ltd,Home Care
Peterborough City Council,Adults,Independent Sector Placements,Services,03/08/2018,30188071,-8604.72,Revenue,Hales Group Ltd,Home Care
Peterborough City Council,Commissioning and Commercial Operations,Commissioning,Services,03/08/2018,30188181,2856.00,Revenue,Deborah Briggs,Hired Services
Peterborough City Council,Adults,Block Contracts,Third Party Payments,03/08/2018,30188306,-6664.00,Revenue,Hales Group Ltd,Third Party Payments - Contract
Peterborough City Council,Corporate,Corporate,Non Revenue,03/08/2018,30188373,1570.52,Capital,Reed Specialist Recruitment Limited,Consultants Fees
Peterborough City Council,Adults,Independent Sector Placements,Services,03/08/2018,30188435,1169.28,Revenue,ABBEY COURT PRIORY,Residential Care
Peterborough City Council,Communities,Housing,Services,03/08/2018,30188444,650.00,Revenue,Property Line,Financial Assistance
Peterborough City Council,Communities,Housing,Services,03/08/2018,30188445,550.00,Revenue,Property Line,Financial Assistance
Peterborough City Council,Adults,Block Contracts,Third Party Payments,03/08/2018,30188500,4836.07,Revenue,ABOUT ME CARE AND SUPPORT LTD,Third Party Payments - Contract
Peterborough City Council,Corporate,Corporate,Non Revenue,03/08/2018,30188675,1188.00,Capital,Freeths LLP,Legal Fees
Peterborough City Council,"Waste, Cleansing and Open Spaces",Waste & Operational Svs Mgmt,Third Party Payments,03/08/2018,30188680,218471.42,Revenue,Enterprise Managed Services Limited,Third Party Payments - Contract
Peterborough City Council,Corporate Property,Office Accomodation,Agency Staff,03/08/2018,30188719,4730.04,Revenue,Reed Specialist Recruitment Limited,External Temporary Staff
Peterborough City Council,Adults,Independent Sector Placements,Services,03/08/2018,30188760,714.45,Revenue,Hales Group Ltd,Home Care
Peterborough City Council,Adults,Independent Sector Placements,Services,03/08/2018,30188763,557.70,Revenue,Hales Group Ltd,Home Care
Peterborough City Council,Adults,Independent Sector Placements,Services,03/08/2018,30188767,1088.10,Revenue,Hales Group Ltd,Home Care
Peterborough City Council,Communities,Housing,Services,03/08/2018,30188777,2400.00,Revenue,Dunham Property Agents,Financial Assistance
Peterborough City Council,Adults,Independent Sector Placements,Services,03/08/2018,30188821,6477.48,Revenue,Manchester House (Dovehaven Care Homes),Residential Care
Peterborough City Council,Communities,Housing,Services,03/08/2018,30188826,500.00,Revenue,English Estates Property Agents,Financial Assistance
Peterborough City Council,Communities,Housing,Services,03/08/2018,30188827,1500.00,Revenue,English Estates Property Agents,Financial Assistance
Peterborough City Council,Programme Management Office,Programme Management Office,Services,03/08/2018,30188842,11682.00,Revenue,4OC Ltd,Consultants Fees
Peterborough City Council,Energy,Environment Capital,Services,03/08/2018,30188848,2050.00,Revenue,APSE,Subscriptions
Peterborough City Council,Adults,Independent Sector Placements,Services,03/08/2018,30188958,650.40,Revenue,THE CLAIR FRANCIS RETIREMENT HOME,Residential Care
Peterborough City Council,Adults,Independent Sector Placements,Services,03/08/2018,30188965,1821.88,Revenue,THE CLAIR FRANCIS RETIREMENT HOME,Residential Care
Peterborough City Council,Adults,Independent Sector Placements,Services,03/08/2018,30188966,928.92,Revenue,THE CLAIR FRANCIS RETIREMENT HOME,Residential Care
Peterborough City Council,Adults,Independent Sector Placements,Services,03/08/2018,30188968,1269.48,Revenue,THE CLAIR FRANCIS RETIREMENT HOME,Residential Care
Peterborough City Council,Adults,Independent Sector Placements,Services,03/08/2018,30188969,1821.88,Revenue,THE CLAIR FRANCIS RETIREMENT HOME,Residential Care
Peterborough City Council,Communities,Housing,Services,03/08/2018,30188988,575.00,Revenue,Redacted Personal Data,Financial Assistance
Peterborough City Council,Communities,Housing,Services,03/08/2018,30188990,650.00,Revenue,Redacted Personal Data,Financial Assistance
Peterborough City Council,Communities,Housing,Services,03/08/2018,30188993,560.00,Revenue,Property Squires,Financial Assistance
Peterborough City Council,Communities,Housing,Services,03/08/2018,30188996,500.00,Revenue,English Estates Property Agents,Financial Assistance
Peterborough City Council,Communities,Housing,Services,03/08/2018,30188997,550.00,Revenue,Redacted Personal Data,Financial Assistance
Peterborough City Council,Corporate,Corporate,Non Revenue,03/08/2018,30189003,4744.73,Balance Sheet,The Prudential Assurance Company Ltd,Pensions
Peterborough City Council,Communities,Cohesion,Services,03/08/2018,30189005,575.00,Revenue,Record Property Solutions,Financial Assistance
Peterborough City Council,Communities,Cohesion,Services,03/08/2018,30189008,800.00,Revenue,Rightroom Lettings Ltd,Financial Assistance
Peterborough City Council,Corporate,Corporate,Non Revenue,03/08/2018,30189018,1210.21,Balance Sheet,The Prudential Assurance Company Ltd,Pensions
Peterborough City Council,Commissioning and Commercial Operations,Early Years & Quality Improvement,Services,03/08/2018,30189021,1500.00,Revenue,Stepping Stones Day Nursery,Grant Payment
Peterborough City Council,Adults,Independent Sector Placements,Services,03/08/2018,30189025,3167.70,Revenue,K2 CARE LTD,Home Care
Peterborough City Council,Communities,Housing,Services,03/08/2018,30189027,860.00,Revenue,Cecil Estate Family Trust,Financial Assistance
Peterborough City Council,Communities,Cohesion,Services,03/08/2018,30189029,625.00,Revenue,Rightroom Lettings Ltd,Financial Assistance
Peterborough City Council,Communities,Cohesion,Services,03/08/2018,30189030,625.00,Revenue,Record Property Solutions,Financial Assistance
Peterborough City Council,Communities,Cohesion,Services,03/08/2018,30189031,800.00,Revenue,Hope Into Action,Financial Assistance
Peterborough City Council,Communities,Cohesion,Services,03/08/2018,30189047,575.00,Revenue,Redacted Personal Data,Financial Assistance
Peterborough City Council,Communities,Cohesion,Services,03/08/2018,30189054,625.00,Revenue,Record Property Solutions,Financial Assistance
Peterborough City Council,Adults,Independent Sector Placements,Services,03/08/2018,30189079,2100.00,Revenue,GCH (North London) Ltd - Tudors,Residential Care
Peterborough City Council,Adults,Independent Sector Placements,Services,03/08/2018,30189081,1971.43,Revenue,GCH (North London) Ltd - Tudors,Residential Care
Peterborough City Council,Adults,Independent Sector Placements,Services,03/08/2018,30189082,888.16,Revenue,THE CLAIR FRANCIS RETIREMENT HOME,Residential Care
Peterborough City Council,Adults,Independent Sector Placements,Services,03/08/2018,30189083,1301.48,Revenue,THE CLAIR FRANCIS RETIREMENT HOME,Residential Care
Peterborough City Council,Adults,Independent Sector Placements,Services,03/08/2018,30189085,943.04,Revenue,THE CLAIR FRANCIS RETIREMENT HOME,Residential Care
Peterborough City Council,Children's & Safeguarding,Access to Resources & Specialist Commissioning,Agency Staff,03/08/2018,30189089,880.00,Revenue,HCL Social Care Ltd,External Temporary Staff
Peterborough City Council,Adults,Block Contracts,Third Party Payments,03/08/2018,30189090,1821.88,Revenue,Park Vista Care Home,Third Party Payments - Contract
Peterborough City Council,Adults,Block Contracts,Third Party Payments,03/08/2018,30189091,1821.88,Revenue,Park Vista Care Home,Third Party Payments - Contract
Peterborough City Council,Adults,Block Contracts,Third Party Payments,03/08/2018,30189092,1821.88,Revenue,Park Vista Care Home,Third Party Payments - Contract
Peterborough City Council,Adults,Block Contracts,Third Party Payments,03/08/2018,30189093,2460.00,Revenue,Park Vista Care Home,Third Party Payments - Contract
Peterborough City Council,Adults,Independent Sector Placements,Services,03/08/2018,30189114,4853.00,Revenue,Mencap,Residential Care
Peterborough City Council,Commissioning and Commercial Operations,Commissioning,Services,03/08/2018,30189170,784.34,Revenue,The Lime Academy Trust,Hired Services
Peterborough City Council,Commissioning and Commercial Operations,Commissioning,Services,03/08/2018,30189171,4305.65,Revenue,The Lime Academy Trust,Hired Services
Peterborough City Council,Commissioning and Commercial Operations,Commissioning,Services,03/08/2018,30189172,4266.29,Revenue,The Lime Academy Trust,Hired Services
Peterborough City Council,Adults,Independent Sector Placements,Services,03/08/2018,30189181,2006.36,Revenue,LAVENDER HOUSE RESIDENTIAL HOME,Residential Care
Peterborough City Council,Adults,Independent Sector Placements,Services,03/08/2018,30189182,1285.71,Revenue,Park Vista Care Home,Residential Care
Peterborough City Council,Adults,Independent Sector Placements,Services,03/08/2018,30189183,2006.36,Revenue,LAVENDER HOUSE RESIDENTIAL HOME,Residential Care
Peterborough City Council,Adults,Independent Sector Placements,Services,03/08/2018,30189184,2364.36,Revenue,Park Vista Care Home,Residential Care
Peterborough City Council,Adults,Independent Sector Placements,Services,03/08/2018,30189185,2006.36,Revenue,LAVENDER HOUSE RESIDENTIAL HOME,Residential Care
Peterborough City Council,Adults,Independent Sector Placements,Services,03/08/2018,30189211,1885.71,Revenue,Park Vista Care Home,Residential Care
Peterborough City Council,Adults,Independent Sector Placements,Services,03/08/2018,30189220,1010.31,Revenue,Park Vista Care Home,Residential Care
Peterborough City Council,"Cemeteries, Cremation & Registrars",Registration Service,Services,03/08/2018,30189227,2417.77,Revenue,Zipporah Limited,Computer Software
Peterborough City Council,Adults,Independent Sector Placements,Services,03/08/2018,30189233,1332.00,Revenue,Park Vista Care Home,Residential Care
Peterborough City Council,Adults,Independent Sector Placements,Services,03/08/2018,30189234,1332.00,Revenue,Park Vista Care Home,Residential Care
Peterborough City Council,Adults,Independent Sector Placements,Services,03/08/2018,30189235,1332.00,Revenue,Park Vista Care Home,Residential Care
Peterborough City Council,Regulatory Services,Regulatory Services,Direct Transport Costs,03/08/2018,30189236,895.93,Revenue,John R Ford & Sons(Shefford) Ltd,Vehicle Repairs
Peterborough City Council,Adults,Independent Sector Placements,Social Services,03/08/2018,8000120913,996.54,Revenue,Redacted Personal Data,Direct Payments
Peterborough City Council,Adults,Independent Sector Placements,Services,03/08/2018,8000120946,952.00,Revenue,Sahara Community Care Services Limited,Home Care
Peterborough City Council,Adults,Independent Sector Placements,Services,03/08/2018,8000121056,1121.90,Revenue,Hales Group Ltd,Home Care
Peterborough City Council,Adults,Independent Sector Placements,Services,03/08/2018,8000121057,1165.71,Revenue,Hales Group Ltd,Home Care
Peterborough City Council,Adults,Independent Sector Placements,Services,03/08/2018,8000121059,2171.30,Revenue,Hales Group Ltd,Home Care
Peterborough City Council,Adults,Independent Sector Placements,Services,03/08/2018,8000121060,717.36,Revenue,Hales Group Ltd,Home Care
Peterborough City Council,Adults,Independent Sector Placements,Services,03/08/2018,8000121063,2245.98,Revenue,Hales Group Ltd,Home Care
Peterborough City Council,Adults,Independent Sector Placements,Services,03/08/2018,8000121066,717.36,Revenue,Hales Group Ltd,Home Care
Peterborough City Council,Adults,Independent Sector Placements,Services,03/08/2018,8000121069,1202.99,Revenue,Hales Group Ltd,Home Care
Peterborough City Council,Adults,Independent Sector Placements,Services,03/08/2018,8000121112,14541.16,Revenue,Atlas Care Services Ltd,Home Care
Peterborough City Council,Adults,Independent Sector Placements,Services,03/08/2018,8000121114,779.58,Revenue,Atlas Care Services Ltd,Home Care
Peterborough City Council,Adults,Independent Sector Placements,Services,03/08/2018,8000121119,1554.90,Revenue,Atlas Care Services Ltd,Home Care
Peterborough City Council,Adults,Independent Sector Placements,Services,03/08/2018,8000121121,1538.57,Revenue,Atlas Care Services Ltd,Home Care
Peterborough City Council,Adults,Independent Sector Placements,Services,03/08/2018,8000121125,2309.63,Revenue,Atlas Care Services Ltd,Home Care
Peterborough City Council,Adults,Independent Sector Placements,Services,03/08/2018,8000121129,1061.45,Revenue,Atlas Care Services Ltd,Home Care
Peterborough City Council,Adults,Independent Sector Placements,Services,03/08/2018,8000121131,661.72,Revenue,Atlas Care Services Ltd,Home Care
Peterborough City Council,Adults,Independent Sector Placements,Services,03/08/2018,8000121133,1674.18,Revenue,Atlas Care Services Ltd,Home Care
Peterborough City Council,Adults,Independent Sector Placements,Services,03/08/2018,8000121134,855.55,Revenue,Atlas Care Services Ltd,Home Care
Peterborough City Council,Adults,Independent Sector Placements,Services,03/08/2018,8000121136,936.49,Revenue,Atlas Care Services Ltd,Home Care
Peterborough City Council,Adults,Independent Sector Placements,Services,03/08/2018,8000121137,590.72,Revenue,Atlas Care Services Ltd,Home Care
Peterborough City Council,Adults,Independent Sector Placements,Services,03/08/2018,8000121138,655.33,Revenue,Atlas Care Services Ltd,Home Care
Peterborough City Council,Adults,Independent Sector Placements,Services,03/08/2018,8000121140,2825.80,Revenue,Atlas Care Services Ltd,Home Care
Peterborough City Council,Adults,Independent Sector Placements,Services,03/08/2018,8000121142,1883.63,Revenue,Atlas Care Services Ltd,Home Care
Peterborough City Council,Adults,Independent Sector Placements,Services,03/08/2018,8000121143,619.12,Revenue,Atlas Care Services Ltd,Home Care
Peterborough City Council,Adults,Independent Sector Placements,Services,03/08/2018,8000121145,2054.74,Revenue,Atlas Care Services Ltd,Home Care
Peterborough City Council,Adults,Independent Sector Placements,Services,03/08/2018,8000121146,554.51,Revenue,Atlas Care Services Ltd,Home Care
Peterborough City Council,Adults,Independent Sector Placements,Services,03/08/2018,8000121147,565.87,Revenue,Atlas Care Services Ltd,Home Care
Peterborough City Council,Adults,Independent Sector Placements,Services,03/08/2018,8000121148,738.40,Revenue,Atlas Care Services Ltd,Home Care
Peterborough City Council,Adults,Independent Sector Placements,Services,03/08/2018,8000121151,764.67,Revenue,Atlas Care Services Ltd,Home Care
Peterborough City Council,Adults,Independent Sector Placements,Services,03/08/2018,8000121153,1960.31,Revenue,Atlas Care Services Ltd,Home Care
Peterborough City Council,Adults,Independent Sector Placements,Services,03/08/2018,8000121155,913.77,Revenue,Atlas Care Services Ltd,Home Care
Peterborough City Council,Adults,Independent Sector Placements,Services,03/08/2018,8000121158,1032.34,Revenue,Atlas Care Services Ltd,Home Care
Peterborough City Council,Adults,Independent Sector Placements,Services,03/08/2018,8000121159,771.06,Revenue,Atlas Care Services Ltd,Home Care
Peterborough City Council,Adults,Independent Sector Placements,Services,03/08/2018,8000121160,1221.91,Revenue,Atlas Care Services Ltd,Home Care
Peterborough City Council,Adults,Independent Sector Placements,Services,03/08/2018,8000121161,1383.79,Revenue,Atlas Care Services Ltd,Home Care
Peterborough City Council,Adults,Independent Sector Placements,Services,03/08/2018,8000121163,798.04,Revenue,Atlas Care Services Ltd,Home Care
Peterborough City Council,Adults,Independent Sector Placements,Services,03/08/2018,8000121173,825.02,Revenue,Atlas Care Services Ltd,Home Care
Peterborough City Council,Adults,Independent Sector Placements,Services,03/08/2018,8000121176,1539.99,Revenue,Atlas Care Services Ltd,Home Care
Peterborough City Council,Adults,Independent Sector Placements,Services,03/08/2018,8000121177,888.21,Revenue,Atlas Care Services Ltd,Home Care
Peterborough City Council,Adults,Independent Sector Placements,Services,03/08/2018,8000121184,1094.11,Revenue,Atlas Care Services Ltd,Home Care
Peterborough City Council,Adults,Independent Sector Placements,Services,03/08/2018,8000121344,1669.53,Revenue,Hales Group Ltd,Home Care
Peterborough City Council,Adults,Independent Sector Placements,Services,03/08/2018,8000121345,717.36,Revenue,Hales Group Ltd,Home Care
Peterborough City Council,Adults,Independent Sector Placements,Services,03/08/2018,8000121346,1434.72,Revenue,Hales Group Ltd,Home Care
Peterborough City Council,Adults,Independent Sector Placements,Services,03/08/2018,8000121347,2344.23,Revenue,Hales Group Ltd,Home Care
Peterborough City Council,Adults,Independent Sector Placements,Services,03/08/2018,8000121379,1190.31,Revenue,Hales Group Ltd,Home Care
Peterborough City Council,Adults,Independent Sector Placements,Services,03/08/2018,8000121380,851.99,Revenue,Hales Group Ltd,Home Care
Peterborough City Council,Adults,Independent Sector Placements,Services,03/08/2018,8000121382,736.58,Revenue,Hales Group Ltd,Home Care
Peterborough City Council,Adults,Independent Sector Placements,Services,03/08/2018,8000121383,1242.70,Revenue,Hales Group Ltd,Home Care
Peterborough City Council,Adults,Independent Sector Placements,Services,03/08/2018,8000121384,1270.37,Revenue,Hales Group Ltd,Home Care
Peterborough City Council,Adults,Independent Sector Placements,Services,03/08/2018,8000121385,787.82,Revenue,Hales Group Ltd,Home Care
Peterborough City Council,Adults,Independent Sector Placements,Services,03/08/2018,8000121386,627.69,Revenue,Hales Group Ltd,Home Care
Peterborough City Council,Adults,Independent Sector Placements,Services,03/08/2018,8000121388,528.41,Revenue,Hales Group Ltd,Home Care
Peterborough City Council,Adults,Independent Sector Placements,Services,03/08/2018,8000121390,827.27,Revenue,Hales Group Ltd,Home Care
Peterborough City Council,Adults,Independent Sector Placements,Services,03/08/2018,8000121393,900.93,Revenue,Hales Group Ltd,Home Care
Peterborough City Council,Adults,Independent Sector Placements,Services,03/08/2018,8000121394,691.74,Revenue,Hales Group Ltd,Home Care
Peterborough City Council,Adults,Independent Sector Placements,Services,03/08/2018,8000121395,988.55,Revenue,Hales Group Ltd,Home Care
Peterborough City Council,Adults,Independent Sector Placements,Services,03/08/2018,8000121397,627.69,Revenue,Hales Group Ltd,Home Care
Peterborough City Council,Adults,Independent Sector Placements,Services,03/08/2018,8000121399,816.64,Revenue,Hales Group Ltd,Home Care
Peterborough City Council,Adults,Independent Sector Placements,Services,03/08/2018,8000121400,528.41,Revenue,Hales Group Ltd,Home Care
Peterborough City Council,Adults,Independent Sector Placements,Services,03/08/2018,8000121401,903.11,Revenue,Hales Group Ltd,Home Care
Peterborough City Council,Adults,Independent Sector Placements,Services,03/08/2018,8000121403,1077.06,Revenue,Hales Group Ltd,Home Care
Peterborough City Council,Adults,Independent Sector Placements,Services,03/08/2018,8000121404,1095.26,Revenue,Hales Group Ltd,Home Care
Peterborough City Council,Adults,Independent Sector Placements,Services,03/08/2018,8000121533,840.00,Revenue,Cross Keys Homes,Home Care
Peterborough City Council,Adults,Independent Sector Placements,Services,03/08/2018,8000121537,930.00,Revenue,Cross Keys Homes,Home Care
Peterborough City Council,Adults,Independent Sector Placements,Services,03/08/2018,8000121538,547.50,Revenue,Cross Keys Homes,Home Care
Peterborough City Council,Adults,Independent Sector Placements,Services,03/08/2018,8000121539,817.50,Revenue,Cross Keys Homes,Home Care
Peterborough City Council,Adults,Independent Sector Placements,Services,03/08/2018,8000121540,506.25,Revenue,Cross Keys Homes,Home Care
Peterborough City Council,Adults,Independent Sector Placements,Services,03/08/2018,8000121542,570.00,Revenue,Cross Keys Homes,Home Care
Peterborough City Council,Adults,Independent Sector Placements,Services,03/08/2018,8000121543,555.00,Revenue,Cross Keys Homes,Home Care
Peterborough City Council,Adults,Independent Sector Placements,Services,03/08/2018,8000121544,2730.00,Revenue,Cross Keys Homes,Home Care
Peterborough City Council,Adults,Independent Sector Placements,Services,03/08/2018,8000121545,836.25,Revenue,Cross Keys Homes,Home Care
Peterborough City Council,Adults,Independent Sector Placements,Services,03/08/2018,8000121546,540.00,Revenue,Cross Keys Homes,Home Care
Peterborough City Council,Adults,Independent Sector Placements,Services,03/08/2018,8000121549,945.00,Revenue,Cross Keys Homes,Home Care
Peterborough City Council,Adults,Independent Sector Placements,Services,03/08/2018,8000121550,630.00,Revenue,Cross Keys Homes,Home Care
Peterborough City Council,Adults,Independent Sector Placements,Services,03/08/2018,8000121558,723.75,Revenue,Cross Keys Homes,Home Care
Peterborough City Council,Adults,Independent Sector Placements,Services,03/08/2018,8000121560,780.00,Revenue,Cross Keys Homes,Home Care
Peterborough City Council,Adults,Independent Sector Placements,Services,03/08/2018,8000121562,1020.00,Revenue,Cross Keys Homes,Home Care
Peterborough City Council,Adults,Independent Sector Placements,Services,03/08/2018,8000121566,847.50,Revenue,Cross Keys Homes,Home Care
Peterborough City Council,Adults,Independent Sector Placements,Services,03/08/2018,8000121606,1162.50,Revenue,Cross Keys Homes,Home Care
Peterborough City Council,Adults,Independent Sector Placements,Services,03/08/2018,8000121620,2063.55,Revenue,Hales Group Ltd,Home Care
Peterborough City Council,Adults,Independent Sector Placements,Services,03/08/2018,8000121622,730.20,Revenue,Hales Group Ltd,Home Care
Peterborough City Council,Adults,Independent Sector Placements,Services,03/08/2018,8000121625,711.60,Revenue,Hales Group Ltd,Home Care
Peterborough City Council,Adults,Independent Sector Placements,Services,03/08/2018,8000121626,826.05,Revenue,Hales Group Ltd,Home Care
Peterborough City Council,Adults,Independent Sector Placements,Services,03/08/2018,8000121629,880.95,Revenue,Hales Group Ltd,Home Care
Peterborough City Council,Adults,Independent Sector Placements,Services,03/08/2018,8000121630,3343.05,Revenue,Hales Group Ltd,Home Care
Peterborough City Council,Adults,Independent Sector Placements,Services,03/08/2018,8000121631,570.30,Revenue,Hales Group Ltd,Home Care
Peterborough City Council,Adults,Independent Sector Placements,Services,03/08/2018,8000121632,868.50,Revenue,Hales Group Ltd,Home Care
Peterborough City Council,Adults,Independent Sector Placements,Services,03/08/2018,8000121633,1014.60,Revenue,Hales Group Ltd,Home Care
Peterborough City Council,Adults,Independent Sector Placements,Services,03/08/2018,8000121634,1027.95,Revenue,Hales Group Ltd,Home Care
Peterborough City Council,Adults,Independent Sector Placements,Services,03/08/2018,8000121635,941.70,Revenue,Hales Group Ltd,Home Care
Peterborough City Council,Adults,Independent Sector Placements,Services,03/08/2018,8000121637,1912.50,Revenue,Hales Group Ltd,Home Care
Peterborough City Council,Adults,Independent Sector Placements,Services,03/08/2018,8000121638,948.00,Revenue,Hales Group Ltd,Home Care
Peterborough City Council,Adults,Independent Sector Placements,Services,03/08/2018,8000121639,569.40,Revenue,Hales Group Ltd,Home Care
Peterborough City Council,Adults,Independent Sector Placements,Services,03/08/2018,8000121640,558.75,Revenue,Hales Group Ltd,Home Care
Peterborough City Council,Adults,Independent Sector Placements,Services,03/08/2018,8000121646,695.70,Revenue,Hales Group Ltd,Home Care
Peterborough City Council,Adults,Independent Sector Placements,Services,03/08/2018,8000121648,950.25,Revenue,Hales Group Ltd,Home Care
Peterborough City Council,Adults,Independent Sector Placements,Services,03/08/2018,8000121649,622.95,Revenue,Hales Group Ltd,Home Care
Peterborough City Council,Adults,Independent Sector Placements,Services,03/08/2018,8000121650,882.45,Revenue,Hales Group Ltd,Home Care
Peterborough City Council,Adults,Independent Sector Placements,Services,03/08/2018,8000121652,797.85,Revenue,Hales Group Ltd,Home Care
Peterborough City Council,Adults,Independent Sector Placements,Services,03/08/2018,8000121653,1238.70,Revenue,Hales Group Ltd,Home Care
Peterborough City Council,Adults,Independent Sector Placements,Services,03/08/2018,8000121655,2710.35,Revenue,Hales Group Ltd,Home Care
Peterborough City Council,Adults,Independent Sector Placements,Services,03/08/2018,8000121656,616.35,Revenue,Hales Group Ltd,Home Care
Peterborough City Council,Adults,Independent Sector Placements,Services,03/08/2018,8000121657,697.50,Revenue,Hales Group Ltd,Home Care
Peterborough City Council,Adults,Independent Sector Placements,Services,03/08/2018,8000121658,1403.25,Revenue,Hales Group Ltd,Home Care
Peterborough City Council,Adults,Independent Sector Placements,Services,03/08/2018,8000121659,734.70,Revenue,Hales Group Ltd,Home Care
Peterborough City Council,Adults,Independent Sector Placements,Services,03/08/2018,8000121660,1220.55,Revenue,Hales Group Ltd,Home Care
Peterborough City Council,Adults,Independent Sector Placements,Services,03/08/2018,8000121662,546.75,Revenue,Hales Group Ltd,Home Care
Peterborough City Council,Adults,Independent Sector Placements,Services,03/08/2018,8000121663,838.05,Revenue,Hales Group Ltd,Home Care
Peterborough City Council,Adults,Independent Sector Placements,Services,03/08/2018,8000121666,1238.55,Revenue,Hales Group Ltd,Home Care
Peterborough City Council,Adults,Independent Sector Placements,Services,03/08/2018,8000121667,766.35,Revenue,Hales Group Ltd,Home Care
Peterborough City Council,Adults,Independent Sector Placements,Services,03/08/2018,8000121668,960.30,Revenue,Hales Group Ltd,Home Care
Peterborough City Council,Adults,Independent Sector Placements,Services,03/08/2018,8000121671,664.20,Revenue,Hales Group Ltd,Home Care
Peterborough City Council,Adults,Independent Sector Placements,Services,03/08/2018,8000121673,1283.10,Revenue,Hales Group Ltd,Home Care
Peterborough City Council,Adults,Independent Sector Placements,Services,03/08/2018,8000121674,820.50,Revenue,Hales Group Ltd,Home Care
Peterborough City Council,Adults,Independent Sector Placements,Services,03/08/2018,8000121675,1461.30,Revenue,Hales Group Ltd,Home Care
Peterborough City Council,Adults,Independent Sector Placements,Services,03/08/2018,8000121676,858.90,Revenue,Hales Group Ltd,Home Care
Peterborough City Council,Adults,Independent Sector Placements,Services,03/08/2018,8000121678,910.50,Revenue,Hales Group Ltd,Home Care
Peterborough City Council,Adults,Independent Sector Placements,Services,03/08/2018,8000121680,1283.40,Revenue,Hales Group Ltd,Home Care
Peterborough City Council,Adults,Independent Sector Placements,Services,03/08/2018,8000121681,571.65,Revenue,Hales Group Ltd,Home Care
Peterborough City Council,Adults,Independent Sector Placements,Services,03/08/2018,8000121682,823.05,Revenue,Hales Group Ltd,Home Care
Peterborough City Council,Adults,Independent Sector Placements,Services,03/08/2018,8000122457,2380.12,Revenue,Augusta Care Ltd,Home Care
Peterborough City Council,Adults,Independent Sector Placements,Services,03/08/2018,8000122459,681.60,Revenue,Augusta Care Ltd,Home Care
Peterborough City Council,Adults,Independent Sector Placements,Services,03/08/2018,8000122460,932.76,Revenue,Augusta Care Ltd,Home Care
Peterborough City Council,Adults,Independent Sector Placements,Services,03/08/2018,8000122461,6337.36,Revenue,Augusta Care Ltd,Home Care
Peterborough City Council,Adults,Independent Sector Placements,Services,03/08/2018,8000122478,573.60,Revenue,Hales Group Ltd,Home Care
Peterborough City Council,Adults,Independent Sector Placements,Services,03/08/2018,8000122479,1614.90,Revenue,Hales Group Ltd,Home Care
Peterborough City Council,Adults,Independent Sector Placements,Services,03/08/2018,8000122480,1134.50,Revenue,PRESTIGE NURSING LIMITED,Home Care
Peterborough City Council,Adults,Independent Sector Placements,Services,03/08/2018,8000122481,545.50,Revenue,PRESTIGE NURSING LIMITED,Home Care
Peterborough City Council,Adults,Independent Sector Placements,Services,03/08/2018,8000122482,956.00,Revenue,PRESTIGE NURSING LIMITED,Home Care
Peterborough City Council,Adults,Independent Sector Placements,Services,03/08/2018,8000122548,3170.37,Revenue,Hales Group Ltd,Home Care
Peterborough City Council,Adults,Independent Sector Placements,Services,03/08/2018,8000122549,3170.37,Revenue,Hales Group Ltd,Home Care
Peterborough City Council,Adults,Independent Sector Placements,Services,03/08/2018,8000122550,3170.37,Revenue,Hales Group Ltd,Home Care
Peterborough City Council,Adults,Independent Sector Placements,Services,03/08/2018,8000122553,10816.00,Revenue,PRESTIGE NURSING LIMITED,Home Care
Peterborough City Council,Adults,Independent Sector Placements,Services,03/08/2018,8000122554,851.25,Revenue,PRESTIGE NURSING LIMITED,Home Care
Peterborough City Council,Children's & Safeguarding,External Education Placements,Services,06/08/2018,30186161,25451.07,Revenue,Park House School,Boarding Out Allowances
Peterborough City Council,Children's & Safeguarding,External Education Placements,Services,06/08/2018,30186162,19265.67,Revenue,Park House School,Boarding Out Allowances
Peterborough City Council,Children's & Safeguarding,External Education Placements,Services,06/08/2018,30186164,28114.52,Revenue,Park House School,Boarding Out Allowances
Peterborough City Council,Children's & Safeguarding,External Education Placements,Services,06/08/2018,30186165,28146.59,Revenue,Park House School,Boarding Out Allowances
Peterborough City Council,Children's & Safeguarding,External Education Placements,Services,06/08/2018,30186168,20317.60,Revenue,Park House School,Boarding Out Allowances
Peterborough City Council,Children's & Safeguarding,External Education Placements,Services,06/08/2018,30186170,19265.78,Revenue,Park House School,Boarding Out Allowances
Peterborough City Council,Children's & Safeguarding,External Education Placements,Services,06/08/2018,30186171,19766.69,Revenue,Park House School,Boarding Out Allowances
Peterborough City Council,Children's & Safeguarding,External Education Placements,Services,06/08/2018,30186172,19265.78,Revenue,Park House School,Boarding Out Allowances
Peterborough City Council,Adults,Block Contracts,Services,06/08/2018,30186187,131695.94,Revenue,Augusta Care Ltd,Home Care
Peterborough City Council,Education,Special Educational Needs / Inclusion,Services,06/08/2018,30186202,4237.20,Revenue,Becky Frewin Ltd,Hired Services
Peterborough City Council,Adults,Home Services Delivery Model,Third Party Payments,06/08/2018,30186239,2933.36,Revenue,NACRO,Grant-Third Party
Peterborough City Council,Corporate Property,Commercial Propety,Third Party Payments,06/08/2018,30186280,185273.32,Revenue,NPS Peterborough Ltd,Third Party Payments - Contract
Peterborough City Council,Education,Special Educational Needs / Inclusion,Services,06/08/2018,30186595,1350.00,Revenue,"Hattee, Mrs Caroline",Occupational Health
Peterborough City Council,"Waste, Cleansing and Open Spaces",Waste Management,Services,06/08/2018,30186623,671.81,Revenue,FCC Recycling (UK) Limited,Waste Disposal
Peterborough City Council,Children's & Safeguarding,Children's Social Care,Agency Staff,06/08/2018,30186697,1406.00,Revenue,NonStop Recruitment Ltd,External Temporary Staff
Peterborough City Council,"Waste, Cleansing and Open Spaces",Waste Management,Services,06/08/2018,30186712,440116.30,Revenue,Viridor Peterborough Ltd,Waste Disposal
Peterborough City Council,Adults,Independent Sector Placements,Services,06/08/2018,30186751,1647.06,Revenue,Barchester Healthcare (Werrington Lodge),Residential Care
Peterborough City Council,Adults,Independent Sector Placements,Services,06/08/2018,30187409,1535.56,Revenue,FIELD HOUSE (EYE) LTD,Residential Care
Peterborough City Council,Adults,Independent Sector Placements,Services,06/08/2018,30187410,1269.48,Revenue,FIELD HOUSE (EYE) LTD,Residential Care
Peterborough City Council,Adults,Independent Sector Placements,Services,06/08/2018,30187411,1110.44,Revenue,FIELD HOUSE (EYE) LTD,Residential Care
Peterborough City Council,Adults,Independent Sector Placements,Services,06/08/2018,30187412,952.84,Revenue,FIELD HOUSE (EYE) LTD,Residential Care
Peterborough City Council,Adults,Independent Sector Placements,Services,06/08/2018,30187454,824.11,Revenue,FIELD HOUSE (EYE) LTD,Residential Care
Peterborough City Council,Communities,Housing,Services,06/08/2018,30188343,12939.29,Revenue,DA Rosalia Hotel,Temporary Accommodation
Peterborough City Council,Legal Services,Legal Services,Agency Staff,06/08/2018,30188625,1753.38,Revenue,Giant Professional Limited,External Temporary Staff
Peterborough City Council,Adults,Independent Sector Placements,Services,06/08/2018,30189298,1506.60,Revenue,Park Vista Care Home,Residential Care
Peterborough City Council,Adults,Independent Sector Placements,Services,06/08/2018,30189307,988.89,Revenue,Park Vista Care Home,Residential Care
Peterborough City Council,Children's & Safeguarding,CSC Quality Assurance,Contract Hire and Operating Leases,06/08/2018,30189393,4337.91,Revenue,Northumbria Healthcare NHS Foundation Trust,Leasing Charges
Peterborough City Council,Corporate,Corporate,Non Revenue,06/08/2018,30189439,4451.76,Capital,Frederick F Smith (Builders) Ltd,Building And Site Works
Peterborough City Council,Corporate Items,Corporate Services,Agency Staff,06/08/2018,30189481,10833.33,Revenue,Skanska Construction UK Ltd,External Temporary Staff
Peterborough City Council,Adults,Independent Sector Placements,Social Services,06/08/2018,8000122564,14112.00,Revenue,Redacted Personal Data,Direct Payments
Peterborough City Council,Adults,Independent Sector Placements,Social Services,06/08/2018,8000122565,1927.80,Revenue,Redacted Personal Data,Direct Payments
Peterborough City Council,Adults,Independent Sector Placements,Social Services,06/08/2018,8000122567,2282.18,Revenue,Redacted Personal Data,Direct Payments
Peterborough City Council,Adults,Independent Sector Placements,Social Services,06/08/2018,8000122569,1000.00,Revenue,Redacted Personal Data,Direct Payments
Peterborough City Council,Adults,Independent Sector Placements,Social Services,06/08/2018,8000122571,1460.35,Revenue,Redacted Personal Data,Direct Payments
Peterborough City Council,Adults,Independent Sector Placements,Social Services,06/08/2018,8000122574,914.48,Revenue,Redacted Personal Data,Direct Payments
Peterborough City Council,Adults,Independent Sector Placements,Social Services,06/08/2018,8000122575,3180.06,Revenue,Redacted Personal Data,Direct Payments
Peterborough City Council,Adults,Independent Sector Placements,Social Services,06/08/2018,8000122576,1649.70,Revenue,Redacted Personal Data,Direct Payments
Peterborough City Council,Adults,Independent Sector Placements,Social Services,06/08/2018,8000122577,755.12,Revenue,Redacted Personal Data,Direct Payments
Peterborough City Council,Adults,Independent Sector Placements,Social Services,06/08/2018,8000122578,1725.43,Revenue,Redacted Personal Data,Direct Payments
Peterborough City Council,Adults,Independent Sector Placements,Social Services,06/08/2018,8000122579,18729.00,Revenue,Redacted Personal Data,Direct Payments
Peterborough City Council,Legal Services,Legal Services,Services,08/08/2018,30186568,1100.00,Revenue,"Pilkington, Ms Abigail",Legal Costs
Peterborough City Council,Legal Services,Legal Services,Services,08/08/2018,30186569,1000.00,Revenue,"Pilkington, Ms Abigail",Legal Costs
Peterborough City Council,Legal Services,Legal Services,Services,08/08/2018,30186570,650.00,Revenue,"Pilkington, Ms Abigail",Legal Costs
Peterborough City Council,Resilience & Health & Safety,Resilience & Health & Safety,Services,08/08/2018,30186617,675.00,Revenue,Prior Associates (Soham) Ltd,Consultants Fees
Peterborough City Council,ICT,ICT,Agency Staff,08/08/2018,30186628,2000.00,Revenue,Cranford Solutions Ltd,External Temporary Staff
Peterborough City Council,ICT,ICT,"Tools, Equipment, Furniture & Materials",08/08/2018,30186698,557.57,Revenue,Serco Ltd,Computer Hardware
Peterborough City Council,ICT,ICT,Services,08/08/2018,30186703,8435.20,Revenue,Serco Ltd,Computer Software
Peterborough City Council,ICT,ICT,Services,08/08/2018,30186705,75745.00,Revenue,Serco Ltd,Computer Software
Peterborough City Council,Adults,Independent Sector Placements,Services,08/08/2018,30186820,1596.43,Revenue,Athena (Ashlynn Grange),Residential Care
Peterborough City Council,Director of Governance,Gov HOS,Advertising,08/08/2018,30186838,650.00,Revenue,HB Editorial Services Ltd,Recruitment Advertising
Peterborough City Council,Adults,Independent Sector Placements,Services,08/08/2018,30186846,1797.80,Revenue,THE LODGE TRUST,Residential Care
Peterborough City Council,Legal Services,Legal Services,Agency Staff,08/08/2018,30186977,2062.50,Revenue,Venn Group Ltd,External Temporary Staff
Peterborough City Council,Legal Services,Legal Services,Agency Staff,08/08/2018,30186978,550.00,Revenue,Venn Group Ltd,External Temporary Staff
Peterborough City Council,Development and Construction,Planning Compliance,Agency Staff,08/08/2018,30187000,3739.50,Revenue,Park Avenue Recruitment Limited,External Temporary Staff
Peterborough City Council,Peterborough Highway Services,Network and Traffic Management,Services,08/08/2018,30187016,517.27,Revenue,Johnston Press Midlands Division,Advertising
Peterborough City Council,Peterborough Highway Services,Network and Traffic Management,Services,08/08/2018,30187017,689.76,Revenue,Johnston Press Midlands Division,Advertising
Peterborough City Council,Peterborough Highway Services,Network and Traffic Management,Services,08/08/2018,30187018,660.95,Revenue,Johnston Press Midlands Division,Advertising
Peterborough City Council,Peterborough Highway Services,Network and Traffic Management,Services,08/08/2018,30187019,546.00,Revenue,Johnston Press Midlands Division,Advertising
Peterborough City Council,Commissioning and Commercial Operations,Commissioning,Services,08/08/2018,30187021,2413.95,Revenue,BDP Social Care Ltd,Hired Services
Peterborough City Council,Adults,Day opportunities - Older People,Agency Staff,08/08/2018,30187022,1221.00,Revenue,Medicare First Ltd,External Temporary Staff
Peterborough City Council,Corporate Property,Commercial Propety,Services,08/08/2018,30187028,850.00,Revenue,Barker Storey Matthews,Valuations
Peterborough City Council,Adults,Finance,Third Party Payments,08/08/2018,30187029,9000.00,Revenue,Lincolnshire Care Association Ltd,Third Party Payments - Contract
Peterborough City Council,Westcombe Engineering,Westcombe Engineering,"Tools, Equipment, Furniture & Materials",08/08/2018,30187035,749.70,Revenue,AALCO,Items For Resale
Peterborough City Council,Westcombe Engineering,Westcombe Engineering,"Tools, Equipment, Furniture & Materials",08/08/2018,30187037,553.80,Revenue,AALCO,Items For Resale
Peterborough City Council,Education,School Standards & Effectiveness,Services,08/08/2018,30187041,1500.00,Revenue,Hair@theAcademy(Devon) Ltd,Grant Payment
Peterborough City Council,Children's & Safeguarding,Children's Social Care,Agency Staff,08/08/2018,30187060,1124.80,Revenue,NonStop Recruitment Ltd,External Temporary Staff
Peterborough City Council,Adults,Independent Sector Placements,Services,08/08/2018,30187347,1920.76,Revenue,GARDEN LODGE,Residential Care
Peterborough City Council,Adults,Independent Sector Placements,Services,08/08/2018,30187350,1924.37,Revenue,GARDEN LODGE,Residential Care
Peterborough City Council,Adults,Independent Sector Placements,Services,08/08/2018,30187352,1920.76,Revenue,GARDEN LODGE,Residential Care
Peterborough City Council,Adults,Independent Sector Placements,Services,08/08/2018,30187353,5149.76,Revenue,LEONARD CHESHIRE DISABILITY,Residential Care
Peterborough City Council,Adults,Independent Sector Placements,Services,08/08/2018,30187354,1920.76,Revenue,GARDEN LODGE,Residential Care
Peterborough City Council,Adults,Independent Sector Placements,Services,08/08/2018,30187356,1920.76,Revenue,GARDEN LODGE,Residential Care
Peterborough City Council,"Waste, Cleansing and Open Spaces",Waste Management,Services,08/08/2018,30187372,20183.61,Revenue,AmeyCespa (East) Ltd,Recycling
Peterborough City Council,Adults,Independent Sector Placements,Services,08/08/2018,30187387,1687.60,Revenue,FIELD HOUSE (EYE) LTD,Residential Care
Peterborough City Council,Peterborough Highway Services,Highway Mtce & Scheme Commissioning,Services,08/08/2018,30187389,4066.11,Revenue,Cambridgeshire County Council,Computer Software
Peterborough City Council,Education,Special Educational Needs / Inclusion,Services,08/08/2018,30187390,1938.00,Revenue,Sonova UK Ltd,Education Expenses
Peterborough City Council,Regulatory Services,Regulatory Services,Services,08/08/2018,30187394,650.00,Revenue,"Snelling, Mr Charles",Legal Costs
Peterborough City Council,Legal Services,Legal Services,Services,08/08/2018,30187405,680.00,Revenue,Miss Jodie Drummond,Legal Costs
Peterborough City Council,Adults,Independent Sector Placements,Services,08/08/2018,30187446,1269.48,Revenue,FIELD HOUSE (EYE) LTD,Residential Care
Peterborough City Council,Children's & Safeguarding,Children's Social Care,Agency Staff,08/08/2018,30187473,2339.58,Revenue,HCL Social Care Ltd,External Temporary Staff
Peterborough City Council,Adults,Mental Capacity Act & DoLs,Services,08/08/2018,30187491,1528.00,Revenue,Raj Medical Consultancy Limited,Hired Services
Peterborough City Council,Adults,Therapy/Reablement/Community Equipment,"Tools, Equipment, Furniture & Materials",08/08/2018,30187497,810.41,Revenue,Action on Hearing Loss,Occupational Therapy Equipment
Peterborough City Council,Commissioning and Commercial Operations,Clare Lodge,Agency Staff,08/08/2018,30187523,1648.00,Revenue,Wrixon Care Services,External Temporary Staff
Peterborough City Council,Commissioning and Commercial Operations,Clare Lodge,Agency Staff,08/08/2018,30187524,1296.00,Revenue,Wrixon Care Services,External Temporary Staff
Peterborough City Council,Commissioning and Commercial Operations,Clare Lodge,Agency Staff,08/08/2018,30187526,1280.00,Revenue,Wrixon Care Services,External Temporary Staff
Peterborough City Council,Commissioning and Commercial Operations,Clare Lodge,Agency Staff,08/08/2018,30187527,912.00,Revenue,Wrixon Care Services,External Temporary Staff
Peterborough City Council,Commissioning and Commercial Operations,Clare Lodge,Agency Staff,08/08/2018,30187528,1790.25,Revenue,Wrixon Care Services,External Temporary Staff
Peterborough City Council,Adults,Independent Sector Placements,Services,08/08/2018,30187607,1741.64,Revenue,FIELD HOUSE (EYE) LTD,Residential Care
Peterborough City Council,Adults,Independent Sector Placements,Services,08/08/2018,30187608,1747.60,Revenue,FIELD HOUSE (EYE) LTD,Residential Care
Peterborough City Council,Adults,Independent Sector Placements,Services,08/08/2018,30187610,2320.00,Revenue,FIELD HOUSE (EYE) LTD,Residential Care
Peterborough City Council,Adults,Independent Sector Placements,Services,08/08/2018,30187611,1241.84,Revenue,FIELD HOUSE (EYE) LTD,Residential Care
Peterborough City Council,Adults,Independent Sector Placements,Services,08/08/2018,30187613,1989.84,Revenue,FIELD HOUSE (EYE) LTD,Residential Care
Peterborough City Council,Adults,Independent Sector Placements,Services,08/08/2018,30187614,1365.28,Revenue,FIELD HOUSE (EYE) LTD,Residential Care
Peterborough City Council,Adults,Independent Sector Placements,Services,08/08/2018,30187615,2300.00,Revenue,FIELD HOUSE (EYE) LTD,Residential Care
Peterborough City Council,Adults,Independent Sector Placements,Services,08/08/2018,30187617,1855.60,Revenue,FIELD HOUSE (EYE) LTD,Residential Care
Peterborough City Council,"Cemeteries, Cremation & Registrars",Bereavement Service,Repair & Maintenance of Buildings,08/08/2018,30187685,4270.00,Revenue,A M Strickland Builders,Premises Maintenance
Peterborough City Council,Commissioning and Commercial Operations,Clare Lodge,Catering,08/08/2018,30187725,537.69,Revenue,King Bros Lady Lodge Ltd,Catering Provisions
Peterborough City Council,Westcombe Engineering,Westcombe Engineering,"Tools, Equipment, Furniture & Materials",08/08/2018,30187752,814.10,Revenue,Barron Clark Castings Ltd,Items For Resale
Peterborough City Council,Corporate,Corporate,Non Revenue,08/08/2018,30187767,1956.00,Capital,Nadeem Construction Ltd,Grant Payment
Peterborough City Council,Legal Services,Legal Services,Services,08/08/2018,30187777,1200.00,Revenue,"Messenger, Mr Daniel",Legal Costs
Peterborough City Council,Adults,Block Contracts,Third Party Payments,08/08/2018,30187906,2318.36,Revenue,Park Vista Care Home,Third Party Payments - Contract
Peterborough City Council,Adults,Block Contracts,Third Party Payments,08/08/2018,30187909,2340.57,Revenue,Park Vista Care Home,Third Party Payments - Contract
Peterborough City Council,Regulatory Services,Regulatory Services,Services,08/08/2018,30187921,2696.00,Revenue,Campbell Associates Ltd,Licences
Peterborough City Council,Adults,Therapy/Reablement/Community Equipment,Agency Staff,08/08/2018,30187936,2438.15,Revenue,HCL Social Care Ltd,External Temporary Staff
Peterborough City Council,Adults,Independent Sector Placements,Services,08/08/2018,30187960,734.58,Revenue,Sagecare,Home Care
Peterborough City Council,Westcombe Engineering,Westcombe Engineering,"Tools, Equipment, Furniture & Materials",08/08/2018,30188219,866.19,Revenue,Parkside Steel (Stockholders) Ltd,Items For Resale
Peterborough City Council,Commissioning and Commercial Operations,Commissioning Team,Services,08/08/2018,30188235,1868.83,Revenue,Weightmans LLP,Legal Costs
Peterborough City Council,Corporate,Corporate,Non Revenue,08/08/2018,30188278,1015.80,Capital,Rawheat Heating & Plumbing Eng.,Grant Payment
Peterborough City Council,Corporate,Corporate,Non Revenue,08/08/2018,30188279,3591.60,Capital,Rawheat Heating & Plumbing Eng.,Grant Payment
Peterborough City Council,Sustainable Growth Strategy,Housing & Strategic Planning,Agency Staff,08/08/2018,30188330,12457.85,Revenue,North Kesteven District Council,External Temporary Staff
Peterborough City Council,ICT,ICT,Services,08/08/2018,30188348,27454.00,Revenue,Civica UK Limited,Computer Software
Peterborough City Council,Education,Special Educational Needs / Inclusion,Agency Staff,08/08/2018,30188529,7700.00,Revenue,Permanent Futures Ltd,External Temporary Staff
Peterborough City Council,Peterborough Highway Services,Transport & Infrastructure Commissioning,Services,08/08/2018,30188595,1153.85,Revenue,Stagecoach in Peterborough,Contractors
Peterborough City Council,Communities,Housing,Services,08/08/2018,30188698,1020.00,Revenue,OpenArch Properties Ltd,Financial Assistance
Peterborough City Council,Corporate Property,Office Accomodation,Agency Staff,08/08/2018,30188720,4730.04,Revenue,Reed Specialist Recruitment Limited,External Temporary Staff
Peterborough City Council,Adults,Independent Sector Placements,Services,08/08/2018,30188786,5223.30,Revenue,Redacted Personal Data,Refunds
Peterborough City Council,Adults,Independent Sector Placements,Services,08/08/2018,30188796,3784.00,Revenue,Community Care Solutions Ltd,Residential Care
Peterborough City Council,Adults,Independent Sector Placements,Services,08/08/2018,30188800,3767.20,Revenue,Community Care Solutions Ltd,Residential Care
Peterborough City Council,Adults,Independent Sector Placements,Services,08/08/2018,30188801,3767.20,Revenue,Community Care Solutions Ltd,Residential Care
Peterborough City Council,Adults,Independent Sector Placements,Services,08/08/2018,30188802,3767.20,Revenue,Community Care Solutions Ltd,Residential Care
Peterborough City Council,Adults,Independent Sector Placements,Services,08/08/2018,30188804,3767.20,Revenue,Community Care Solutions Ltd,Residential Care
Peterborough City Council,Communities,Housing,Services,08/08/2018,30188992,650.00,Revenue,Redacted Personal Data,Financial Assistance
Peterborough City Council,Adults,Independent Sector Placements,Services,08/08/2018,30189078,1821.88,Revenue,Maxey House Res Home,Residential Care
Peterborough City Council,Adults,Independent Sector Placements,Services,08/08/2018,30189080,1821.88,Revenue,Maxey House Res Home,Residential Care
Peterborough City Council,Corporate,Corporate,Non Revenue,08/08/2018,30189096,2268.60,Capital,Reed Specialist Recruitment Limited,Consultants Fees
Peterborough City Council,Commissioning and Commercial Operations,Commissioning Team,Agency Staff,08/08/2018,30189173,715.58,Revenue,Reed Specialist Recruitment Limited,External Temporary Staff
Peterborough City Council,Corporate Property,Office Accomodation,Agency Staff,08/08/2018,30189174,4730.04,Revenue,Reed Specialist Recruitment Limited,External Temporary Staff
Peterborough City Council,Communities,Housing,Services,08/08/2018,30189222,1200.00,Revenue,Redacted Personal Data,Financial Assistance
Peterborough City Council,Adults,Independent Sector Placements,Services,08/08/2018,30189295,797.40,Revenue,Red Rock Partnership Ltd,Day Care
Peterborough City Council,Adults,Independent Sector Placements,Services,08/08/2018,30189300,1100.64,Revenue,Sanctuary Care Limited,Residential Care
Peterborough City Council,Adults,Independent Sector Placements,Services,08/08/2018,30189422,6185.64,Revenue,Fins Care Ltd t/a St Margarets Rest Home,Residential Care
Peterborough City Council,Adults,Independent Sector Placements,Services,08/08/2018,30189424,2518.34,Revenue,Fins Care Ltd t/a St Margarets Rest Home,Residential Care
Peterborough City Council,Adults,Independent Sector Placements,Services,08/08/2018,30189425,5945.64,Revenue,Fins Care Ltd t/a St Margarets Rest Home,Residential Care
Peterborough City Council,Adults,Independent Sector Placements,Services,08/08/2018,30189426,3744.36,Revenue,Fins Care Ltd t/a St Margarets Rest Home,Residential Care
Peterborough City Council,Adults,Independent Sector Placements,Services,08/08/2018,30189427,3583.08,Revenue,Fins Care Ltd t/a St Margarets Rest Home,Residential Care
Peterborough City Council,Adults,Strategic Commissioning - Management,Agency Staff,08/08/2018,30189430,689.29,Revenue,Reed Specialist Recruitment Limited,External Temporary Staff
Peterborough City Council,Adults,Strategic Commissioning - Management,Agency Staff,08/08/2018,30189438,2953.60,Revenue,Reed Specialist Recruitment Limited,External Temporary Staff
Peterborough City Council,Corporate Property,Office Accomodation,Agency Staff,08/08/2018,30189440,6155.78,Revenue,Reed Specialist Recruitment Limited,External Temporary Staff
Peterborough City Council,Adults,Home Services Delivery Model,Services,08/08/2018,30189441,1606.50,Revenue,Fletton Electrics Ltd,Contractors
Peterborough City Council,Commissioning and Commercial Operations,Clare Lodge,Agency Staff,08/08/2018,30189442,531.98,Revenue,Reed Specialist Recruitment Limited,External Temporary Staff
Peterborough City Council,Adults,Strategic Commissioning - Management,Agency Staff,08/08/2018,30189444,607.90,Revenue,Reed Specialist Recruitment Limited,External Temporary Staff
Peterborough City Council,Adults,Strategic Commissioning - Management,Agency Staff,08/08/2018,30189452,661.80,Revenue,Reed Specialist Recruitment Limited,External Temporary Staff
Peterborough City Council,Legal Services,Legal Services,Agency Staff,08/08/2018,30189456,1532.48,Revenue,Reed Specialist Recruitment Limited,External Temporary Staff
Peterborough City Council,Peterborough Highway Services,Highway & Drainage Control,Agency Staff,08/08/2018,30189461,1285.91,Revenue,Reed Specialist Recruitment Limited,External Temporary Staff
Peterborough City Council,Financial Services,Finance,Agency Staff,08/08/2018,30189462,533.40,Revenue,Reed Specialist Recruitment Limited,External Temporary Staff
Peterborough City Council,Adults,Strategic Commissioning - Management,Agency Staff,08/08/2018,30189465,819.46,Revenue,Reed Specialist Recruitment Limited,External Temporary Staff
Peterborough City Council,Peterborough Highway Services,Highway & Drainage Control,Agency Staff,08/08/2018,30189470,1440.01,Revenue,Reed Specialist Recruitment Limited,External Temporary Staff
Peterborough City Council,Adults,Finance,Agency Staff,08/08/2018,30189479,2433.60,Revenue,Reed Specialist Recruitment Limited,External Temporary Staff
Peterborough City Council,Adults,Strategic Commissioning - Management,Agency Staff,08/08/2018,30189490,642.46,Revenue,Reed Specialist Recruitment Limited,External Temporary Staff
Peterborough City Council,Financial Services,Finance,Agency Staff,08/08/2018,30189491,774.97,Revenue,Reed Specialist Recruitment Limited,External Temporary Staff
Peterborough City Council,Commissioning and Commercial Operations,Clare Lodge,Agency Staff,08/08/2018,30189495,680.54,Revenue,Reed Specialist Recruitment Limited,External Temporary Staff
Peterborough City Council,Commissioning and Commercial Operations,Clare Lodge,Agency Staff,08/08/2018,30189496,879.61,Revenue,Reed Specialist Recruitment Limited,External Temporary Staff
Peterborough City Council,Commissioning and Commercial Operations,Commissioning Team,Agency Staff,08/08/2018,30189497,2243.60,Revenue,Reed Specialist Recruitment Limited,External Temporary Staff
Peterborough City Council,Commissioning and Commercial Operations,Clare Lodge,Agency Staff,08/08/2018,30189500,613.44,Revenue,Reed Specialist Recruitment Limited,External Temporary Staff
Peterborough City Council,"Waste, Cleansing and Open Spaces",Waste Management,Services,08/08/2018,30189515,4350.80,Revenue,Bevan Brittan LLP,Legal Costs
Peterborough City Council,City Centre Management,"Markets, Tourism & Events","Tools, Equipment, Furniture & Materials",08/08/2018,30189519,1895.49,Revenue,Environment Agency,Items For Resale
Peterborough City Council,Corporate Property,Commercial Propety,Repair & Maintenance of Buildings,08/08/2018,30189524,1000.00,Revenue,Stanground Community Space CIC,Service Charges - Premises
Peterborough City Council,Adults,Block Contracts,Third Party Payments,08/08/2018,30189533,1821.88,Revenue,Park Vista Care Home,Third Party Payments - Contract
Peterborough City Council,Adults,Block Contracts,Third Party Payments,08/08/2018,30189536,2460.00,Revenue,Park Vista Care Home,Third Party Payments - Contract
Peterborough City Council,Development and Construction,Planning Compliance,Agency Staff,08/08/2018,30189541,950.96,Revenue,Reed Specialist Recruitment Limited,External Temporary Staff
Peterborough City Council,Education,HTS & CSC Transport,Contract Hire and Operating Leases,08/08/2018,30189545,873.00,Revenue,Positive Steps (Care Services) Ltd,Hired Transport
Peterborough City Council,Adults,Home Services Delivery Model,Third Party Payments,08/08/2018,30189548,5017.14,Revenue,Peterborough Womens Aid,Grant-Third Party
Peterborough City Council,Corporate,Corporate,Non Revenue,08/08/2018,30189560,2583.60,Capital,Reed Specialist Recruitment Limited,Consultants Fees
Peterborough City Council,Communities,Cohesion,Services,08/08/2018,30189563,14074.45,Revenue,PARCA,Hired Services
Peterborough City Council,Communities,Cohesion,Services,08/08/2018,30189564,618.00,Revenue,PARCA,Childcare
Peterborough City Council,Communities,Cohesion,Services,08/08/2018,30189565,510.00,Revenue,PARCA,Childcare
Peterborough City Council,Adults,Therapy/Reablement/Community Equipment,"Tools, Equipment, Furniture & Materials",08/08/2018,30189578,2937.00,Revenue,P F S Builders & Contractors,Occupational Therapy Equipment
Peterborough City Council,Peterborough Serco Strategic Partnership,Peterborough Serco Strategic Partnership,Services,08/08/2018,30189579,31999.00,Revenue,Inform CPI Ltd,Consultants Fees
Peterborough City Council,Adults,Therapy/Reablement/Community Equipment,"Tools, Equipment, Furniture & Materials",08/08/2018,30189584,2976.00,Revenue,P F S Builders & Contractors,Occupational Therapy Equipment
Peterborough City Council,Adults,Home Services Delivery Model,Services,08/08/2018,30189587,1224.00,Revenue,Rawheat Heating & Plumbing Eng.,Contractors
Peterborough City Council,Adults,Home Services Delivery Model,Services,08/08/2018,30189591,676.00,Revenue,Rawheat Heating & Plumbing Eng.,Contractors
Peterborough City Council,Adults,Home Services Delivery Model,Services,08/08/2018,30189604,1241.00,Revenue,Rawheat Heating & Plumbing Eng.,Contractors
Peterborough City Council,Commissioning and Commercial Operations,Early Years & Quality Improvement,Services,08/08/2018,30189641,10028.34,Revenue,Family Action,Grant Payment
Peterborough City Council,Commissioning and Commercial Operations,Early Years & Quality Improvement,Services,08/08/2018,30189644,663.94,Revenue,Redacted Personal Data,Grant Payment
Peterborough City Council,Commissioning and Commercial Operations,Early Years & Quality Improvement,Services,08/08/2018,30189646,576.71,Revenue,Redacted Personal Data,Grant Payment
Peterborough City Council,Commissioning and Commercial Operations,Early Years & Quality Improvement,Services,08/08/2018,30189648,2011.46,Revenue,Redacted Personal Data,Grant Payment
Peterborough City Council,Commissioning and Commercial Operations,Early Years & Quality Improvement,Services,08/08/2018,30189650,2525.23,Revenue,Redacted Personal Data,Grant Payment
Peterborough City Council,Commissioning and Commercial Operations,Early Years & Quality Improvement,Services,08/08/2018,30189651,1867.32,Revenue,Redacted Personal Data,Grant Payment
Peterborough City Council,Commissioning and Commercial Operations,Early Years & Quality Improvement,Services,08/08/2018,30189657,2278.09,Revenue,Redacted Personal Data,Grant Payment
Peterborough City Council,Commissioning and Commercial Operations,Early Years & Quality Improvement,Services,08/08/2018,30189658,1808.10,Revenue,Redacted Personal Data,Grant Payment
Peterborough City Council,Commissioning and Commercial Operations,Early Years & Quality Improvement,Services,08/08/2018,30189660,1244.88,Revenue,Redacted Personal Data,Grant Payment
Peterborough City Council,Commissioning and Commercial Operations,Early Years & Quality Improvement,Services,08/08/2018,30189661,1369.37,Revenue,Redacted Personal Data,Grant Payment
Peterborough City Council,Commissioning and Commercial Operations,Early Years & Quality Improvement,Services,08/08/2018,30189662,5711.64,Revenue,Redacted Personal Data,Grant Payment
Peterborough City Council,Commissioning and Commercial Operations,Early Years & Quality Improvement,Services,08/08/2018,30189663,580.23,Revenue,Redacted Personal Data,Grant Payment
Peterborough City Council,Commissioning and Commercial Operations,Early Years & Quality Improvement,Services,08/08/2018,30189665,1108.54,Revenue,Redacted Personal Data,Grant Payment
Peterborough City Council,Commissioning and Commercial Operations,Early Years & Quality Improvement,Services,08/08/2018,30189667,17491.95,Revenue,Winyates Pre School,Grant Payment
Peterborough City Council,Commissioning and Commercial Operations,Early Years & Quality Improvement,Services,08/08/2018,30189668,74058.58,Revenue,ZigZag Day Nursery Ltd,Grant Payment
Peterborough City Council,Commissioning and Commercial Operations,Early Years & Quality Improvement,Services,08/08/2018,30189669,1244.88,Revenue,Redacted Personal Data,Grant Payment
Peterborough City Council,Commissioning and Commercial Operations,Early Years & Quality Improvement,Services,08/08/2018,30189670,647.64,Revenue,Redacted Personal Data,Grant Payment
Peterborough City Council,Commissioning and Commercial Operations,Early Years & Quality Improvement,Services,08/08/2018,30189672,1108.54,Revenue,Redacted Personal Data,Grant Payment
Peterborough City Council,Commissioning and Commercial Operations,Early Years & Quality Improvement,Services,08/08/2018,30189674,647.64,Revenue,Redacted Personal Data,Grant Payment
Peterborough City Council,Commissioning and Commercial Operations,Early Years & Quality Improvement,Services,08/08/2018,30189676,554.27,Revenue,Redacted Personal Data,Grant Payment
Peterborough City Council,Commissioning and Commercial Operations,Early Years & Quality Improvement,Services,08/08/2018,30189677,3239.33,Revenue,Redacted Personal Data,Grant Payment
Peterborough City Council,Commissioning and Commercial Operations,Early Years & Quality Improvement,Services,08/08/2018,30189680,3411.56,Revenue,Redacted Personal Data,Grant Payment
Peterborough City Council,Commissioning and Commercial Operations,Early Years & Quality Improvement,Services,08/08/2018,30189682,1244.88,Revenue,Redacted Personal Data,Grant Payment
Peterborough City Council,Commissioning and Commercial Operations,Early Years & Quality Improvement,Services,08/08/2018,30189686,3384.71,Revenue,Redacted Personal Data,Grant Payment
Peterborough City Council,Commissioning and Commercial Operations,Early Years & Quality Improvement,Services,08/08/2018,30189700,16695.00,Revenue,Shooting Stars Pre-School,Grant Payment
Peterborough City Council,Commissioning and Commercial Operations,Early Years & Quality Improvement,Services,08/08/2018,30189701,3180.21,Revenue,Redacted Personal Data,Grant Payment
Peterborough City Council,Commissioning and Commercial Operations,Early Years & Quality Improvement,Services,08/08/2018,30189702,1160.46,Revenue,Redacted Personal Data,Grant Payment
Peterborough City Council,Commissioning and Commercial Operations,Early Years & Quality Improvement,Services,08/08/2018,30189703,35857.08,Revenue,St Josephs Day Nursery,Grant Payment
Peterborough City Council,Commissioning and Commercial Operations,Early Years & Quality Improvement,Services,08/08/2018,30189704,28152.36,Revenue,Apricot Childcare,Grant Payment
Peterborough City Council,Commissioning and Commercial Operations,Early Years & Quality Improvement,Services,08/08/2018,30189705,17145.45,Revenue,South Bretton Pre School,Grant Payment
Peterborough City Council,Commissioning and Commercial Operations,Early Years & Quality Improvement,Services,08/08/2018,30189706,20793.78,Revenue,Beeches Pre-School,Grant Payment
Peterborough City Council,Commissioning and Commercial Operations,Early Years & Quality Improvement,Services,08/08/2018,30189707,20117.16,Revenue,Stanground St Johns Pre-School,Grant Payment
Peterborough City Council,Commissioning and Commercial Operations,Early Years & Quality Improvement,Services,08/08/2018,30189708,19283.32,Revenue,SDN Ltd t/a Stars Day Nursery Bushfield,Grant Payment
Peterborough City Council,Commissioning and Commercial Operations,Early Years & Quality Improvement,Services,08/08/2018,30189709,22030.60,Revenue,St Michaels Playgroup,Grant Payment
Peterborough City Council,Commissioning and Commercial Operations,Early Years & Quality Improvement,Services,08/08/2018,30189710,32288.13,Revenue,Stars Pre-School Dogsthorpe,Grant Payment
Peterborough City Council,Commissioning and Commercial Operations,Early Years & Quality Improvement,Services,08/08/2018,30189711,43704.36,Revenue,St Thomas More Catholic Nursery,Grant Payment
Peterborough City Council,Commissioning and Commercial Operations,Early Years & Quality Improvement,Services,08/08/2018,30189712,44352.00,Revenue,Stars Pre-School Welland,Grant Payment
Peterborough City Council,Commissioning and Commercial Operations,Early Years & Quality Improvement,Services,08/08/2018,30189713,12078.02,Revenue,The Village Playgroup,Grant Payment
Peterborough City Council,Commissioning and Commercial Operations,Early Years & Quality Improvement,Services,08/08/2018,30189714,16660.14,Revenue,Young Generation Playgroup,Grant Payment
Peterborough City Council,Commissioning and Commercial Operations,Early Years & Quality Improvement,Services,08/08/2018,30189715,39805.08,Revenue,Peterborough Regional College,Grant Payment
Peterborough City Council,Commissioning and Commercial Operations,Early Years & Quality Improvement,Services,08/08/2018,30189717,26221.45,Revenue,The Learning Tree Kindergarten,Grant Payment
Peterborough City Council,Commissioning and Commercial Operations,Early Years & Quality Improvement,Services,08/08/2018,30189718,20590.92,Revenue,Peterborough High School Nursery,Grant Payment
Peterborough City Council,Commissioning and Commercial Operations,Early Years & Quality Improvement,Services,08/08/2018,30189724,19968.49,Revenue,The Teddy Bears inn Day Nursery Ltd,Grant Payment
Peterborough City Council,Commissioning and Commercial Operations,Early Years & Quality Improvement,Services,08/08/2018,30189725,43729.56,Revenue,Stars Pre-School Parnwell,Grant Payment
Peterborough City Council,Commissioning and Commercial Operations,Early Years & Quality Improvement,Services,08/08/2018,30189727,12519.99,Revenue,Vale Community Pre-School,Grant Payment
Peterborough City Council,Adults,Therapy/Reablement/Community Equipment,Agency Staff,08/08/2018,30189733,6494.12,Revenue,Liquid Personnel,External Temporary Staff
Peterborough City Council,Adults,Day opportunities - Older People,Agency Staff,08/08/2018,30189734,5583.32,Revenue,Eden Brown Ltd,External Temporary Staff
Peterborough City Council,Adults,Therapy/Reablement/Community Equipment,Agency Staff,08/08/2018,30189742,1184.00,Revenue,Swim Recruitment,External Temporary Staff
Peterborough City Council,Children's & Safeguarding,Access to Resources & Specialist Commissioning,Agency Staff,08/08/2018,30189746,880.00,Revenue,HCL Social Care Ltd,External Temporary Staff
Peterborough City Council,Commissioning and Commercial Operations,Early Years & Quality Improvement,Services,08/08/2018,30189754,580.23,Revenue,Redacted Personal Data,Grant Payment
Peterborough City Council,Commissioning and Commercial Operations,Early Years & Quality Improvement,Services,08/08/2018,30189755,34511.40,Revenue,Anna-Ca-Soo Day Nursery,Grant Payment
Peterborough City Council,Commissioning and Commercial Operations,Early Years & Quality Improvement,Services,08/08/2018,30189756,53605.69,Revenue,Family Action,Grant Payment
Peterborough City Council,Commissioning and Commercial Operations,Early Years & Quality Improvement,Services,08/08/2018,30189757,1160.46,Revenue,Redacted Personal Data,Grant Payment
Peterborough City Council,Commissioning and Commercial Operations,Early Years & Quality Improvement,Services,08/08/2018,30189758,86922.36,Revenue,Alpha Big Sky Ltd,Grant Payment
Peterborough City Council,Commissioning and Commercial Operations,Early Years & Quality Improvement,Services,08/08/2018,30189759,8898.75,Revenue,Brookside Playgroup,Grant Payment
Peterborough City Council,Commissioning and Commercial Operations,Early Years & Quality Improvement,Services,08/08/2018,30189760,12132.48,Revenue,Helpston Playhouse & Under Fives,Grant Payment
Peterborough City Council,Commissioning and Commercial Operations,Early Years & Quality Improvement,Services,08/08/2018,30189761,10484.08,Revenue,"Family Action ,  Birchtree Pre- School",Grant Payment
Peterborough City Council,Director,Director,Agency Staff,08/08/2018,30189796,730.08,Revenue,Reed Specialist Recruitment Limited,External Temporary Staff
Peterborough City Council,Commissioning and Commercial Operations,Commissioning Team,Agency Staff,08/08/2018,30189798,1638.02,Revenue,Reed Specialist Recruitment Limited,External Temporary Staff
Peterborough City Council,Adults,Therapy/Reablement/Community Equipment,Agency Staff,08/08/2018,30189817,6068.00,Revenue,Swim Recruitment,External Temporary Staff
Peterborough City Council,Adults,Independent Sector Placements,Services,08/08/2018,8000120963,676.20,Revenue,Merit Home Care Ltd,Home Care
Peterborough City Council,Adults,Independent Sector Placements,Services,08/08/2018,8000120965,569.25,Revenue,Merit Home Care Ltd,Home Care
Peterborough City Council,Adults,Independent Sector Placements,Services,08/08/2018,8000120967,669.30,Revenue,Merit Home Care Ltd,Home Care
Peterborough City Council,Adults,Independent Sector Placements,Services,08/08/2018,8000120971,924.60,Revenue,Merit Home Care Ltd,Home Care
Peterborough City Council,Adults,Independent Sector Placements,Services,08/08/2018,8000120972,938.40,Revenue,Merit Home Care Ltd,Home Care
Peterborough City Council,Adults,Independent Sector Placements,Services,08/08/2018,8000120973,986.70,Revenue,Merit Home Care Ltd,Home Care
Peterborough City Council,Adults,Independent Sector Placements,Services,08/08/2018,8000120977,558.90,Revenue,Merit Home Care Ltd,Home Care
Peterborough City Council,Adults,Independent Sector Placements,Services,08/08/2018,8000120980,1869.90,Revenue,Merit Home Care Ltd,Home Care
Peterborough City Council,Adults,Independent Sector Placements,Services,08/08/2018,8000120982,709.55,Revenue,Merit Home Care Ltd,Home Care
Peterborough City Council,Adults,Independent Sector Placements,Services,08/08/2018,8000120985,586.50,Revenue,Merit Home Care Ltd,Home Care
Peterborough City Council,Adults,Independent Sector Placements,Services,08/08/2018,8000120987,1352.40,Revenue,Merit Home Care Ltd,Home Care
Peterborough City Council,Adults,Independent Sector Placements,Services,08/08/2018,8000120992,1545.60,Revenue,Merit Home Care Ltd,Home Care
Peterborough City Council,Adults,Independent Sector Placements,Services,08/08/2018,8000120993,552.00,Revenue,Merit Home Care Ltd,Home Care
Peterborough City Council,Adults,Independent Sector Placements,Services,08/08/2018,8000121001,898.15,Revenue,Merit Home Care Ltd,Home Care
Peterborough City Council,Adults,Independent Sector Placements,Services,08/08/2018,8000121002,800.40,Revenue,Merit Home Care Ltd,Home Care
Peterborough City Council,Adults,Independent Sector Placements,Services,08/08/2018,8000121003,907.35,Revenue,Merit Home Care Ltd,Home Care
Peterborough City Council,Adults,Independent Sector Placements,Services,08/08/2018,8000121004,579.60,Revenue,Merit Home Care Ltd,Home Care
Peterborough City Council,Adults,Independent Sector Placements,Services,08/08/2018,8000121006,869.40,Revenue,Merit Home Care Ltd,Home Care
Peterborough City Council,Adults,Independent Sector Placements,Services,08/08/2018,8000121007,627.90,Revenue,Merit Home Care Ltd,Home Care
Peterborough City Council,Adults,Independent Sector Placements,Services,08/08/2018,8000121013,703.80,Revenue,Merit Home Care Ltd,Home Care
Peterborough City Council,Adults,Independent Sector Placements,Services,08/08/2018,8000121017,993.60,Revenue,Merit Home Care Ltd,Home Care
Peterborough City Council,Adults,Independent Sector Placements,Services,08/08/2018,8000121018,1131.60,Revenue,Merit Home Care Ltd,Home Care
Peterborough City Council,Adults,Independent Sector Placements,Services,08/08/2018,8000121020,762.45,Revenue,Merit Home Care Ltd,Home Care
Peterborough City Council,Adults,Independent Sector Placements,Services,08/08/2018,8000121021,1545.60,Revenue,Merit Home Care Ltd,Home Care
Peterborough City Council,Adults,Independent Sector Placements,Services,08/08/2018,8000121022,1738.80,Revenue,Merit Home Care Ltd,Home Care
Peterborough City Council,Adults,Independent Sector Placements,Services,08/08/2018,8000121023,679.65,Revenue,Merit Home Care Ltd,Home Care
Peterborough City Council,Adults,Independent Sector Placements,Services,08/08/2018,8000121024,924.60,Revenue,Merit Home Care Ltd,Home Care
Peterborough City Council,Adults,Independent Sector Placements,Services,08/08/2018,8000121028,531.30,Revenue,Merit Home Care Ltd,Home Care
Peterborough City Council,Adults,Independent Sector Placements,Services,08/08/2018,8000121030,524.40,Revenue,Merit Home Care Ltd,Home Care
Peterborough City Council,Adults,Independent Sector Placements,Services,08/08/2018,8000121034,565.80,Revenue,Merit Home Care Ltd,Home Care
Peterborough City Council,Adults,Independent Sector Placements,Services,08/08/2018,8000121035,731.40,Revenue,Merit Home Care Ltd,Home Care
Peterborough City Council,Adults,Independent Sector Placements,Services,08/08/2018,8000121212,945.00,Revenue,Sagecare,Home Care
Peterborough City Council,Adults,Independent Sector Placements,Services,08/08/2018,8000121215,840.00,Revenue,Sagecare,Home Care
Peterborough City Council,Adults,Independent Sector Placements,Services,08/08/2018,8000121216,3420.00,Revenue,Sagecare,Home Care
Peterborough City Council,Adults,Independent Sector Placements,Services,08/08/2018,8000121217,780.00,Revenue,Sagecare,Home Care
Peterborough City Council,Adults,Independent Sector Placements,Services,08/08/2018,8000121221,630.00,Revenue,Sagecare,Home Care
Peterborough City Council,Adults,Independent Sector Placements,Services,08/08/2018,8000121223,735.00,Revenue,Sagecare,Home Care
Peterborough City Council,Adults,Independent Sector Placements,Services,08/08/2018,8000121230,862.32,Revenue,Sagecare,Home Care
Peterborough City Council,Adults,Independent Sector Placements,Services,08/08/2018,8000121235,582.12,Revenue,Sagecare,Home Care
Peterborough City Council,Adults,Independent Sector Placements,Services,08/08/2018,8000121238,970.20,Revenue,Sagecare,Home Care
Peterborough City Council,Adults,Independent Sector Placements,Services,08/08/2018,8000121241,724.19,Revenue,Sagecare,Home Care
Peterborough City Council,Adults,Independent Sector Placements,Services,08/08/2018,8000121242,874.57,Revenue,Sagecare,Home Care
Peterborough City Council,Adults,Independent Sector Placements,Services,08/08/2018,8000121247,883.58,Revenue,Sagecare,Home Care
Peterborough City Council,Adults,Independent Sector Placements,Services,08/08/2018,8000121249,679.14,Revenue,Sagecare,Home Care
Peterborough City Council,Adults,Independent Sector Placements,Services,08/08/2018,8000121252,942.48,Revenue,Sagecare,Home Care
Peterborough City Council,Adults,Independent Sector Placements,Services,08/08/2018,8000121255,611.69,Revenue,Sagecare,Home Care
Peterborough City Council,Adults,Independent Sector Placements,Services,08/08/2018,8000121256,582.12,Revenue,Sagecare,Home Care
Peterborough City Council,Adults,Independent Sector Placements,Services,08/08/2018,8000121261,676.14,Revenue,Sagecare,Home Care
Peterborough City Council,Adults,Independent Sector Placements,Services,08/08/2018,8000121262,1058.21,Revenue,Sagecare,Home Care
Peterborough City Council,Adults,Independent Sector Placements,Services,08/08/2018,8000121263,1746.36,Revenue,Sagecare,Home Care
Peterborough City Council,Adults,Independent Sector Placements,Services,08/08/2018,8000121264,4296.60,Revenue,Sagecare,Home Care
Peterborough City Council,Adults,Independent Sector Placements,Services,08/08/2018,8000121265,784.71,Revenue,Sagecare,Home Care
Peterborough City Council,Adults,Independent Sector Placements,Services,08/08/2018,8000121266,557.87,Revenue,Sagecare,Home Care
Peterborough City Council,Adults,Independent Sector Placements,Services,08/08/2018,8000121267,637.56,Revenue,Sagecare,Home Care
Peterborough City Council,Adults,Independent Sector Placements,Services,08/08/2018,8000121269,970.20,Revenue,Sagecare,Home Care
Peterborough City Council,Adults,Independent Sector Placements,Services,08/08/2018,8000121272,1940.40,Revenue,Sagecare,Home Care
Peterborough City Council,Adults,Independent Sector Placements,Services,08/08/2018,8000121277,1552.32,Revenue,Sagecare,Home Care
Peterborough City Council,Adults,Independent Sector Placements,Services,08/08/2018,8000121278,677.52,Revenue,Sagecare,Home Care
Peterborough City Council,Adults,Independent Sector Placements,Services,08/08/2018,8000121281,512.82,Revenue,Sagecare,Home Care
Peterborough City Council,Adults,Independent Sector Placements,Services,08/08/2018,8000121283,1552.32,Revenue,Sagecare,Home Care
Peterborough City Council,Adults,Independent Sector Placements,Services,08/08/2018,8000121287,1940.40,Revenue,Sagecare,Home Care
Peterborough City Council,Adults,Independent Sector Placements,Services,08/08/2018,8000121289,1552.32,Revenue,Sagecare,Home Care
Peterborough City Council,Adults,Independent Sector Placements,Services,08/08/2018,8000121290,1372.14,Revenue,Sagecare,Home Care
Peterborough City Council,Adults,Independent Sector Placements,Services,08/08/2018,8000121292,869.48,Revenue,Sagecare,Home Care
Peterborough City Council,Adults,Independent Sector Placements,Services,08/08/2018,8000121294,1094.94,Revenue,Sagecare,Home Care
Peterborough City Council,Adults,Independent Sector Placements,Services,08/08/2018,8000121296,869.02,Revenue,Sagecare,Home Care
Peterborough City Council,Adults,Independent Sector Placements,Services,08/08/2018,8000121298,1746.36,Revenue,Sagecare,Home Care
Peterborough City Council,Adults,Independent Sector Placements,Services,08/08/2018,8000121300,970.20,Revenue,Sagecare,Home Care
Peterborough City Council,Adults,Independent Sector Placements,Services,08/08/2018,8000121302,1746.36,Revenue,Sagecare,Home Care
Peterborough City Council,Adults,Independent Sector Placements,Services,08/08/2018,8000121308,547.47,Revenue,Sagecare,Home Care
Peterborough City Council,Adults,Independent Sector Placements,Services,08/08/2018,8000121309,859.09,Revenue,Sagecare,Home Care
Peterborough City Council,Adults,Independent Sector Placements,Services,08/08/2018,8000121311,790.94,Revenue,Sagecare,Home Care
Peterborough City Council,Adults,Independent Sector Placements,Services,08/08/2018,8000121312,574.96,Revenue,Sagecare,Home Care
Peterborough City Council,Adults,Independent Sector Placements,Services,08/08/2018,8000121314,706.86,Revenue,Sagecare,Home Care
Peterborough City Council,Adults,Independent Sector Placements,Services,08/08/2018,8000121318,2106.72,Revenue,Sagecare,Home Care
Peterborough City Council,Adults,Independent Sector Placements,Services,08/08/2018,8000121319,952.88,Revenue,Sagecare,Home Care
Peterborough City Council,Adults,Independent Sector Placements,Services,08/08/2018,8000121320,2328.48,Revenue,Sagecare,Home Care
Peterborough City Council,Adults,Independent Sector Placements,Services,08/08/2018,8000121411,1400.12,Revenue,Augusta Care Ltd,Home Care
Peterborough City Council,Adults,Independent Sector Placements,Services,08/08/2018,8000121412,3274.08,Revenue,Augusta Care Ltd,Home Care
Peterborough City Council,Adults,Independent Sector Placements,Services,08/08/2018,8000121413,1343.32,Revenue,Augusta Care Ltd,Home Care
Peterborough City Council,Adults,Independent Sector Placements,Services,08/08/2018,8000121414,2862.72,Revenue,Augusta Care Ltd,Home Care
Peterborough City Council,Adults,Independent Sector Placements,Services,08/08/2018,8000121415,4091.52,Revenue,Augusta Care Ltd,Home Care
Peterborough City Council,Adults,Independent Sector Placements,Services,08/08/2018,8000121416,4633.32,Revenue,Augusta Care Ltd,Home Care
Peterborough City Council,Adults,Independent Sector Placements,Services,08/08/2018,8000121417,4493.40,Revenue,Augusta Care Ltd,Home Care
Peterborough City Council,Adults,Independent Sector Placements,Services,08/08/2018,8000121418,4663.80,Revenue,Augusta Care Ltd,Home Care
Peterborough City Council,Adults,Independent Sector Placements,Services,08/08/2018,8000121419,1590.40,Revenue,Augusta Care Ltd,Home Care
Peterborough City Council,Adults,Independent Sector Placements,Services,08/08/2018,8000121420,1590.40,Revenue,Augusta Care Ltd,Home Care
Peterborough City Council,Adults,Independent Sector Placements,Services,08/08/2018,8000121421,5195.20,Revenue,Augusta Care Ltd,Home Care
Peterborough City Council,Adults,Independent Sector Placements,Services,08/08/2018,8000121424,1972.00,Revenue,Augusta Care Ltd,Home Care
Peterborough City Council,Adults,Independent Sector Placements,Services,08/08/2018,8000121425,4386.00,Revenue,Augusta Care Ltd,Home Care
Peterborough City Council,Adults,Independent Sector Placements,Services,08/08/2018,8000121426,653.20,Revenue,Augusta Care Ltd,Home Care
Peterborough City Council,Adults,Independent Sector Placements,Services,08/08/2018,8000121427,1420.00,Revenue,Augusta Care Ltd,Home Care
Peterborough City Council,Adults,Independent Sector Placements,Services,08/08/2018,8000121428,1022.40,Revenue,Augusta Care Ltd,Home Care
Peterborough City Council,Adults,Independent Sector Placements,Services,08/08/2018,8000121429,2044.80,Revenue,Augusta Care Ltd,Home Care
Peterborough City Council,Adults,Independent Sector Placements,Services,08/08/2018,8000121430,7481.60,Revenue,Augusta Care Ltd,Home Care
Peterborough City Council,Adults,Independent Sector Placements,Services,08/08/2018,8000121431,7084.00,Revenue,Augusta Care Ltd,Home Care
Peterborough City Council,Adults,Independent Sector Placements,Services,08/08/2018,8000121433,3388.32,Revenue,Augusta Care Ltd,Home Care
Peterborough City Council,Adults,Independent Sector Placements,Services,08/08/2018,8000121434,11132.80,Revenue,Augusta Care Ltd,Home Care
Peterborough City Council,Adults,Independent Sector Placements,Services,08/08/2018,8000121435,1604.60,Revenue,Augusta Care Ltd,Home Care
Peterborough City Council,Adults,Independent Sector Placements,Services,08/08/2018,8000121436,4157.16,Revenue,Augusta Care Ltd,Home Care
Peterborough City Council,Adults,Independent Sector Placements,Services,08/08/2018,8000121437,3385.80,Revenue,Augusta Care Ltd,Home Care
Peterborough City Council,Adults,Independent Sector Placements,Services,08/08/2018,8000121438,738.40,Revenue,Augusta Care Ltd,Home Care
Peterborough City Council,Adults,Independent Sector Placements,Services,08/08/2018,8000121439,7481.60,Revenue,Augusta Care Ltd,Home Care
Peterborough City Council,Adults,Independent Sector Placements,Services,08/08/2018,8000121440,2281.44,Revenue,Augusta Care Ltd,Home Care
Peterborough City Council,Adults,Independent Sector Placements,Services,08/08/2018,8000121441,1628.24,Revenue,Augusta Care Ltd,Home Care
Peterborough City Council,Adults,Independent Sector Placements,Services,08/08/2018,8000121442,2139.44,Revenue,Augusta Care Ltd,Home Care
Peterborough City Council,Adults,Independent Sector Placements,Services,08/08/2018,8000121443,4013.04,Revenue,Augusta Care Ltd,Home Care
Peterborough City Council,Adults,Independent Sector Placements,Services,08/08/2018,8000121444,1741.88,Revenue,Augusta Care Ltd,Home Care
Peterborough City Council,Adults,Independent Sector Placements,Services,08/08/2018,8000121445,1798.68,Revenue,Augusta Care Ltd,Home Care
Peterborough City Council,Adults,Independent Sector Placements,Services,08/08/2018,8000121446,1912.28,Revenue,Augusta Care Ltd,Home Care
Peterborough City Council,Adults,Independent Sector Placements,Services,08/08/2018,8000121447,2318.40,Revenue,Merit Home Care Ltd,Home Care
Peterborough City Council,Adults,Independent Sector Placements,Services,08/08/2018,8000121525,1178.10,Revenue,Sagecare,Home Care
Peterborough City Council,Adults,Independent Sector Placements,Services,08/08/2018,8000121529,578.66,Revenue,Sagecare,Home Care
Peterborough City Council,Adults,Independent Sector Placements,Services,08/08/2018,8000121530,880.11,Revenue,Sagecare,Home Care
Peterborough City Council,Adults,Independent Sector Placements,Services,08/08/2018,8000121531,904.37,Revenue,Sagecare,Home Care
Peterborough City Council,Adults,Independent Sector Placements,Services,08/08/2018,8000121532,680.30,Revenue,Sagecare,Home Care
Peterborough City Council,Adults,Independent Sector Placements,Services,08/08/2018,8000121597,749.70,Revenue,Axiom Housing Association Ltd,Home Care
Peterborough City Council,Adults,Independent Sector Placements,Services,08/08/2018,8000121598,749.70,Revenue,Axiom Housing Association Ltd,Home Care
Peterborough City Council,Adults,Independent Sector Placements,Services,08/08/2018,8000121601,749.70,Revenue,Axiom Housing Association Ltd,Home Care
Peterborough City Council,Adults,Independent Sector Placements,Services,08/08/2018,8000121723,678.30,Revenue,Axiom Housing Association Ltd,Home Care
Peterborough City Council,Adults,Independent Sector Placements,Services,08/08/2018,8000121729,511.70,Revenue,Axiom Housing Association Ltd,Home Care
Peterborough City Council,Adults,Independent Sector Placements,Services,08/08/2018,8000121732,583.10,Revenue,Axiom Housing Association Ltd,Home Care
Peterborough City Council,Adults,Independent Sector Placements,Services,08/08/2018,8000121734,1249.50,Revenue,Axiom Housing Association Ltd,Home Care
Peterborough City Council,Adults,Independent Sector Placements,Services,08/08/2018,8000121735,583.10,Revenue,Axiom Housing Association Ltd,Home Care
Peterborough City Council,Adults,Independent Sector Placements,Services,08/08/2018,8000121736,945.00,Revenue,Axiom Housing Association Ltd,Home Care
Peterborough City Council,Adults,Independent Sector Placements,Services,08/08/2018,8000121744,1582.70,Revenue,Axiom Housing Association Ltd,Home Care
Peterborough City Council,Adults,Independent Sector Placements,Services,08/08/2018,8000121746,583.10,Revenue,Axiom Housing Association Ltd,Home Care
Peterborough City Council,Adults,Independent Sector Placements,Services,08/08/2018,8000121750,511.70,Revenue,Axiom Housing Association Ltd,Home Care
Peterborough City Council,Adults,Independent Sector Placements,Services,08/08/2018,8000121751,583.10,Revenue,Axiom Housing Association Ltd,Home Care
Peterborough City Council,Adults,Independent Sector Placements,Services,08/08/2018,8000121752,952.00,Revenue,Axiom Housing Association Ltd,Home Care
Peterborough City Council,Adults,Independent Sector Placements,Services,08/08/2018,8000121754,1594.60,Revenue,Axiom Housing Association Ltd,Home Care
Peterborough City Council,Adults,Independent Sector Placements,Services,08/08/2018,8000121757,1106.70,Revenue,Axiom Housing Association Ltd,Home Care
Peterborough City Council,Adults,Independent Sector Placements,Services,08/08/2018,8000121760,749.70,Revenue,Axiom Housing Association Ltd,Home Care
Peterborough City Council,Adults,Independent Sector Placements,Services,08/08/2018,8000121761,850.85,Revenue,Axiom Housing Association Ltd,Home Care
Peterborough City Council,Adults,Independent Sector Placements,Services,08/08/2018,8000121762,666.40,Revenue,Axiom Housing Association Ltd,Home Care
Peterborough City Council,Adults,Independent Sector Placements,Services,08/08/2018,8000121764,892.50,Revenue,Axiom Housing Association Ltd,Home Care
Peterborough City Council,Adults,Independent Sector Placements,Services,08/08/2018,8000121768,666.40,Revenue,Axiom Housing Association Ltd,Home Care
Peterborough City Council,Adults,Independent Sector Placements,Services,08/08/2018,8000121769,749.70,Revenue,Axiom Housing Association Ltd,Home Care
Peterborough City Council,Adults,Independent Sector Placements,Services,08/08/2018,8000121770,1499.40,Revenue,Axiom Housing Association Ltd,Home Care
Peterborough City Council,Adults,Independent Sector Placements,Services,08/08/2018,8000121774,505.75,Revenue,Axiom Housing Association Ltd,Home Care
Peterborough City Council,Adults,Independent Sector Placements,Services,08/08/2018,8000121775,1059.10,Revenue,Axiom Housing Association Ltd,Home Care
Peterborough City Council,Adults,Independent Sector Placements,Services,08/08/2018,8000121777,583.10,Revenue,Axiom Housing Association Ltd,Home Care
Peterborough City Council,Adults,Independent Sector Placements,Services,08/08/2018,8000121781,583.10,Revenue,Axiom Housing Association Ltd,Home Care
Peterborough City Council,Adults,Independent Sector Placements,Services,08/08/2018,8000121782,583.10,Revenue,Axiom Housing Association Ltd,Home Care
Peterborough City Council,Adults,Independent Sector Placements,Services,08/08/2018,8000121783,749.70,Revenue,Axiom Housing Association Ltd,Home Care
Peterborough City Council,Adults,Independent Sector Placements,Services,08/08/2018,8000121784,583.10,Revenue,Axiom Housing Association Ltd,Home Care
Peterborough City Council,Adults,Independent Sector Placements,Services,08/08/2018,8000121785,928.20,Revenue,Axiom Housing Association Ltd,Home Care
Peterborough City Council,Adults,Independent Sector Placements,Services,08/08/2018,8000121790,928.20,Revenue,Axiom Housing Association Ltd,Home Care
Peterborough City Council,Adults,Independent Sector Placements,Services,08/08/2018,8000121792,583.10,Revenue,Axiom Housing Association Ltd,Home Care
Peterborough City Council,Adults,Independent Sector Placements,Services,08/08/2018,8000121793,2499.00,Revenue,Axiom Housing Association Ltd,Home Care
Peterborough City Council,Adults,Independent Sector Placements,Services,08/08/2018,8000121795,4252.00,Revenue,Augusta Care Ltd,Home Care
Peterborough City Council,Adults,Independent Sector Placements,Services,08/08/2018,8000122462,2446.56,Revenue,Augusta Care Ltd,Home Care
Peterborough City Council,Adults,Independent Sector Placements,Services,08/08/2018,8000122463,3882.80,Revenue,Augusta Care Ltd,Home Care
Peterborough City Council,Adults,Independent Sector Placements,Services,08/08/2018,8000122464,2746.80,Revenue,Augusta Care Ltd,Home Care
Peterborough City Council,Adults,Independent Sector Placements,Services,08/08/2018,8000122465,547.00,Revenue,Augusta Care Ltd,Home Care
Peterborough City Council,Adults,Independent Sector Placements,Services,08/08/2018,8000122466,887.80,Revenue,Augusta Care Ltd,Home Care
Peterborough City Council,Adults,Independent Sector Placements,Services,08/08/2018,8000122467,1576.20,Revenue,Augusta Care Ltd,Home Care
Peterborough City Council,Adults,Independent Sector Placements,Services,08/08/2018,8000122468,2688.20,Revenue,Augusta Care Ltd,Home Care
Peterborough City Council,Adults,Independent Sector Placements,Services,08/08/2018,8000122469,2343.00,Revenue,Augusta Care Ltd,Home Care
Peterborough City Council,Adults,Independent Sector Placements,Services,08/08/2018,8000122470,2399.76,Revenue,Augusta Care Ltd,Home Care
Peterborough City Council,Adults,Independent Sector Placements,Services,08/08/2018,8000122471,3251.80,Revenue,Augusta Care Ltd,Home Care
Peterborough City Council,Adults,Independent Sector Placements,Services,08/08/2018,8000122472,2173.16,Revenue,Augusta Care Ltd,Home Care
Peterborough City Council,Adults,Independent Sector Placements,Services,08/08/2018,8000122473,2456.60,Revenue,Augusta Care Ltd,Home Care
Peterborough City Council,Legal Services,Legal Services,Services,08/08/2018,8000123405,20000.00,Revenue,Redacted Personal Data,Compensation
Peterborough City Council,Director,Director,Insurances,09/08/2018,30064872,4424.53,Revenue,Debenham Tie Leung (DTZ),Insurance - Premises
Peterborough City Council,Director,Director,Rents,09/08/2018,30069349,31988.32,Revenue,Debenham Tie Leung (DTZ),Rent
Peterborough City Council,Director,Director,Rents,09/08/2018,30080287,31988.32,Revenue,Debenham Tie Leung (DTZ),Rent
Peterborough City Council,Director,Director,Rents,09/08/2018,30153232,-139819.74,Revenue,Debenham Tie Leung (DTZ),Rent
Peterborough City Council,Director,Director,Insurances,09/08/2018,30168869,4497.24,Revenue,Debenham Tie Leung (DTZ),Insurance - Premises
Peterborough City Council,Director,Director,Rents,09/08/2018,30168870,31988.32,Revenue,Debenham Tie Leung (DTZ),Rent
Peterborough City Council,Director,Director,Repair & Maintenance of Buildings,09/08/2018,30169108,-5384.76,Revenue,Debenham Tie Leung (DTZ),Service Charges - Premises
Peterborough City Council,Director,Director,Rents,09/08/2018,30188374,31988.32,Revenue,Debenham Tie Leung (DTZ),Rent
Peterborough City Council,Director,Director,Repair & Maintenance of Buildings,09/08/2018,30188548,-12672.52,Revenue,Debenham Tie Leung (DTZ),Service Charges - Premises
Peterborough City Council,Director,Director,Rents,09/08/2018,30189741,21183.61,Revenue,Debenham Tie Leung (DTZ),Rent
Peterborough City Council,Corporate,Corporate,Non Revenue,10/08/2018,30184588,14536.00,Capital,NPS Peterborough Ltd,Consultants Fees
Peterborough City Council,Public Health,PH Commissioning,Third Party Payments,10/08/2018,30185501,109790.00,Revenue,"CGL - Change, Grow, Live",Third Party Payments - Contract
Peterborough City Council,Adults,Independent Sector Placements,Services,10/08/2018,30186829,2413.40,Revenue,Linkage Community Trust Limited,Residential Care
Peterborough City Council,Corporate Property,Office Accomodation,Cleaning & Domestic Supplies,10/08/2018,30187038,605.29,Revenue,Beebys Ltd,Cleaning Materials
Peterborough City Council,Commissioning and Commercial Operations,Clare Lodge,Services,10/08/2018,30187040,2701.18,Revenue,B & H Projects Ltd,IT Services
Peterborough City Council,Education,School Standards & Effectiveness,Services,10/08/2018,30187042,1450.00,Revenue,KS Consulting,Education Expenses
Peterborough City Council,Adults,Independent Sector Placements,Services,10/08/2018,30187072,-657.45,Revenue,Avery House (Peterborough) t/a Brighterkind,Residential Care
Peterborough City Council,Education,School Standards & Effectiveness,Services,10/08/2018,30187175,1175.00,Revenue,Feniq Limited,Education Expenses
Peterborough City Council,Commissioning and Commercial Operations,Clare Lodge,Agency Staff,10/08/2018,30187519,832.00,Revenue,Wrixon Care Services,External Temporary Staff
Peterborough City Council,Commissioning and Commercial Operations,Clare Lodge,Agency Staff,10/08/2018,30187520,800.00,Revenue,Wrixon Care Services,External Temporary Staff
Peterborough City Council,Commissioning and Commercial Operations,Clare Lodge,Agency Staff,10/08/2018,30187521,1768.00,Revenue,Wrixon Care Services,External Temporary Staff
Peterborough City Council,Commissioning and Commercial Operations,Clare Lodge,Agency Staff,10/08/2018,30187525,904.00,Revenue,Wrixon Care Services,External Temporary Staff
Peterborough City Council,Adults,Independent Sector Placements,Services,10/08/2018,30187631,8823.48,Revenue,Home From Home Care Limited,Residential Care
Peterborough City Council,Adults,Independent Sector Placements,Services,10/08/2018,30187638,7860.68,Revenue,Home From Home Care Limited,Residential Care
Peterborough City Council,Adults,Independent Sector Placements,Services,10/08/2018,30187639,10856.48,Revenue,Home From Home Care Limited,Residential Care
Peterborough City Council,Adults,Independent Sector Placements,Services,10/08/2018,30187640,8767.56,Revenue,Home From Home Care Limited,Residential Care
Peterborough City Council,Adults,Independent Sector Placements,Services,10/08/2018,30187641,5686.80,Revenue,Lifeways Community Care,Residential Care
Peterborough City Council,Adults,Independent Sector Placements,Services,10/08/2018,30187643,3423.52,Revenue,Sanctuary Home Care Ltd (Southwood House),Residential Care
Peterborough City Council,Adults,Independent Sector Placements,Services,10/08/2018,30187657,2056.80,Revenue,The Regard Partnership Limited,Residential Care
Peterborough City Council,Adults,Independent Sector Placements,Services,10/08/2018,30187658,1394.16,Revenue,The Regard Partnership Limited,Residential Care
Peterborough City Council,Adults,Independent Sector Placements,Services,10/08/2018,30187659,1869.48,Revenue,The Cedars Bourne Care Home,Residential Care
Peterborough City Council,Adults,Independent Sector Placements,Services,10/08/2018,30187661,2287.48,Revenue,The Bancroft Residential Home Limited,Residential Care
Peterborough City Council,Adults,Independent Sector Placements,Services,10/08/2018,30187662,1468.24,Revenue,Omega Oak Barn,Residential Care
Peterborough City Council,Adults,Independent Sector Placements,Services,10/08/2018,30187671,4559.00,Revenue,Voyage,Home Care
Peterborough City Council,HR,HR WFD & Training,Interview & Training Expenses,10/08/2018,30187856,1600.00,Revenue,In-Trac Training & Consultancy Services,Training
Peterborough City Council,Peterborough Serco Strategic Partnership,PSSP Retained Services,Services,10/08/2018,30188045,751.88,Revenue,Whistl UK Ltd,Postage
Peterborough City Council,Communities,Housing,Services,10/08/2018,30188344,24724.17,Revenue,DA Rosalia Hotel,Temporary Accommodation
Peterborough City Council,Peterborough Highway Services,Highway Services - HoS,Agency Staff,10/08/2018,30188381,846.85,Revenue,Reed Specialist Recruitment Limited,External Temporary Staff
Peterborough City Council,Adults,Independent Sector Placements,Services,10/08/2018,30188466,6801.22,Revenue,Anchor Homes,Residential Care
Peterborough City Council,Adults,Independent Sector Placements,Services,10/08/2018,30188472,1605.48,Revenue,Avery House (Peterborough) t/a Brighterkind,Residential Care
Peterborough City Council,Adults,Independent Sector Placements,Services,10/08/2018,30188473,1623.84,Revenue,Avery House (Peterborough) t/a Brighterkind,Residential Care
Peterborough City Council,Adults,Independent Sector Placements,Services,10/08/2018,30188474,2176.24,Revenue,Avery House (Peterborough) t/a Brighterkind,Residential Care
Peterborough City Council,Adults,Independent Sector Placements,Services,10/08/2018,30188475,1531.76,Revenue,Avery House (Peterborough) t/a Brighterkind,Residential Care
Peterborough City Council,Adults,Independent Sector Placements,Services,10/08/2018,30188476,715.74,Revenue,Avery House (Peterborough) t/a Brighterkind,Residential Care
Peterborough City Council,Adults,Independent Sector Placements,Services,10/08/2018,30188496,2038.82,Revenue,Avery House (Peterborough) t/a Brighterkind,Residential Care
Peterborough City Council,Adults,Independent Sector Placements,Services,10/08/2018,30188497,1656.52,Revenue,Avery House (Peterborough) t/a Brighterkind,Residential Care
Peterborough City Council,Adults,Independent Sector Placements,Services,10/08/2018,30188498,1237.64,Revenue,Avery House (Peterborough) t/a Brighterkind,Residential Care
Peterborough City Council,Adults,Independent Sector Placements,Services,10/08/2018,30188499,-539.87,Revenue,Avery House (Peterborough) t/a Brighterkind,Residential Care
Peterborough City Council,Adults,Independent Sector Placements,Services,10/08/2018,30188524,883.84,Revenue,Avery House (Peterborough) t/a Brighterkind,Residential Care
Peterborough City Council,Adults,Independent Sector Placements,Services,10/08/2018,30188525,1159.12,Revenue,Avery House (Peterborough) t/a Brighterkind,Residential Care
Peterborough City Council,Adults,Independent Sector Placements,Services,10/08/2018,30188526,1495.84,Revenue,Avery House (Peterborough) t/a Brighterkind,Residential Care
Peterborough City Council,Adults,Independent Sector Placements,Services,10/08/2018,30188527,2179.24,Revenue,Avery House (Peterborough) t/a Brighterkind,Residential Care
Peterborough City Council,Adults,Independent Sector Placements,Services,10/08/2018,30188539,973.92,Revenue,Avery House (Peterborough) t/a Brighterkind,Residential Care
Peterborough City Council,Adults,Independent Sector Placements,Services,10/08/2018,30188540,1869.48,Revenue,Avery House (Peterborough) t/a Brighterkind,Residential Care
Peterborough City Council,Adults,Independent Sector Placements,Services,10/08/2018,30188541,1281.48,Revenue,Avery House (Peterborough) t/a Brighterkind,Residential Care
Peterborough City Council,Adults,Independent Sector Placements,Services,10/08/2018,30188542,1610.56,Revenue,Avery House (Peterborough) t/a Brighterkind,Residential Care
Peterborough City Council,Adults,Independent Sector Placements,Services,10/08/2018,30188543,1089.96,Revenue,Avery House (Peterborough) t/a Brighterkind,Residential Care
Peterborough City Council,Adults,Independent Sector Placements,Services,10/08/2018,30188544,2210.60,Revenue,Avery House (Peterborough) t/a Brighterkind,Residential Care
Peterborough City Council,Adults,Independent Sector Placements,Services,10/08/2018,30188545,947.48,Revenue,Avery House (Peterborough) t/a Brighterkind,Residential Care
Peterborough City Council,Adults,Independent Sector Placements,Services,10/08/2018,30188546,1269.48,Revenue,Avery House (Peterborough) t/a Brighterkind,Residential Care
